Transaction Number,Service - Fund ,Service  - Function ,Service - Cost Centre,Expense Type ,Expense Description,Supplier Name,Supplier Post Code (first 4 digits),Payment Date,Amount �
78668233,Museums & Heritage,Culture & Heritage,Steam:Education & Curatorial,Supplies and Services,Hire / Rental,1ST IMPRESSIONS SIGNS & GRAPHICS LTD,SN1 ,31/03/2023,73
78668233,Museums & Heritage,Culture & Heritage,Steam:Education & Curatorial,Supplies and Services,Hire / Rental,1ST IMPRESSIONS SIGNS & GRAPHICS LTD,SN1 ,31/03/2023,535
76010233,Physical Support,Adults,Physical Support 18 - 64,3rd Party Payments,Personal Budget - Domiciliary care,247 HOME CARE LTD,SN5 ,17/03/2023,-3.8
72678273,Physical Support,Adults,Physical Support 65 and over,3rd Party Payments,Personal Budget - Domiciliary care,247 HOME CARE LTD,SN5 ,03/03/2023,894.23
76012233,Physical Support,Adults,Physical Support 65 and over,3rd Party Payments,Personal Budget - Domiciliary care,247 HOME CARE LTD,SN5 ,17/03/2023,894.23
78504233,Physical Support,Adults,Physical Support 65 and over,3rd Party Payments,Personal Budget - Domiciliary care,247 HOME CARE LTD,SN5 ,31/03/2023,"1,257.12"
72678271,Physical Support,Adults,Physical Support 65 and over,3rd Party Payments,Personal Budget - Domiciliary care,247 HOME CARE LTD,SN5 ,03/03/2023,"1,099.98"
73950233,Physical Support,Adults,Physical Support 18 - 64,3rd Party Payments,Carers,247 HOME CARE LTD,SN5 ,10/03/2023,151.44
72678273,Physical Support,Adults,Physical Support 65 and over,3rd Party Payments,Personal Budget - Domiciliary care,247 HOME CARE LTD,SN5 ,03/03/2023,-162.87
76010233,Physical Support,Adults,Physical Support 18 - 64,3rd Party Payments,Personal Budget - Domiciliary care,247 HOME CARE LTD,SN5 ,17/03/2023,"1,116.85"
72678270,Physical Support,Adults,Physical Support 18 - 64,3rd Party Payments,Personal Budget - Domiciliary care,247 HOME CARE LTD,SN5 ,03/03/2023,-3.8
78503233,Physical Support,Adults,Physical Support 18 - 64,3rd Party Payments,Carers,247 HOME CARE LTD,SN5 ,31/03/2023,151.44
78503233,Physical Support,Adults,Physical Support 18 - 64,3rd Party Payments,Personal Budget - Domiciliary care,247 HOME CARE LTD,SN5 ,31/03/2023,"1,100.56"
78505233,Physical Support,Adults,Physical Support 65 and over,3rd Party Payments,Personal Budget - Domiciliary care,247 HOME CARE LTD,SN5 ,31/03/2023,-162.87
76807233,Physical Support,Adults,Physical Support 18 - 64,3rd Party Payments,Personal Budget - Domiciliary care,247 HOME CARE LTD,SN5 ,24/03/2023,-3.8
72678270,Physical Support,Adults,Physical Support 18 - 64,3rd Party Payments,Carers,247 HOME CARE LTD,SN5 ,03/03/2023,151.44
76043262,Physical Support,Adults,Physical Support 65 and over,3rd Party Payments,Personal Budget - Domiciliary care,247 HOME CARE LTD,SN5 ,17/03/2023,"1,099.98"
73951233,Physical Support,Adults,Physical Support 65 and over,3rd Party Payments,Personal Budget - Domiciliary care,247 HOME CARE LTD,SN5 ,10/03/2023,"1,099.98"
76807233,Physical Support,Adults,Physical Support 18 - 64,3rd Party Payments,Personal Budget - Domiciliary care,247 HOME CARE LTD,SN5 ,24/03/2023,"1,100.56"
73950233,Physical Support,Adults,Physical Support 18 - 64,3rd Party Payments,Personal Budget - Domiciliary care,247 HOME CARE LTD,SN5 ,10/03/2023,"1,100.56"
72678270,Physical Support,Adults,Physical Support 18 - 64,3rd Party Payments,Personal Budget - Domiciliary care,247 HOME CARE LTD,SN5 ,03/03/2023,"1,100.56"
78505233,Physical Support,Adults,Physical Support 65 and over,3rd Party Payments,Personal Budget - Domiciliary care,247 HOME CARE LTD,SN5 ,31/03/2023,894.23
73952233,Physical Support,Adults,Physical Support 65 and over,3rd Party Payments,Personal Budget - Domiciliary care,247 HOME CARE LTD,SN5 ,10/03/2023,894.23
76807233,Physical Support,Adults,Physical Support 18 - 64,3rd Party Payments,Carers,247 HOME CARE LTD,SN5 ,24/03/2023,151.44
78503233,Physical Support,Adults,Physical Support 18 - 64,3rd Party Payments,Personal Budget - Domiciliary care,247 HOME CARE LTD,SN5 ,31/03/2023,-3.8
76809233,Physical Support,Adults,Physical Support 65 and over,3rd Party Payments,Personal Budget - Domiciliary care,247 HOME CARE LTD,SN5 ,24/03/2023,-162.87
76809233,Physical Support,Adults,Physical Support 65 and over,3rd Party Payments,Personal Budget - Domiciliary care,247 HOME CARE LTD,SN5 ,24/03/2023,894.23
76808233,Physical Support,Adults,Physical Support 65 and over,3rd Party Payments,Personal Budget - Domiciliary care,247 HOME CARE LTD,SN5 ,24/03/2023,"1,099.98"
76012233,Physical Support,Adults,Physical Support 65 and over,3rd Party Payments,Personal Budget - Domiciliary care,247 HOME CARE LTD,SN5 ,17/03/2023,-162.87
73952233,Physical Support,Adults,Physical Support 65 and over,3rd Party Payments,Personal Budget - Domiciliary care,247 HOME CARE LTD,SN5 ,10/03/2023,-162.87
73950233,Physical Support,Adults,Physical Support 18 - 64,3rd Party Payments,Personal Budget - Domiciliary care,247 HOME CARE LTD,SN5 ,10/03/2023,-3.8
74305233,Care Management & Safeguarding,Adults,Mental Capacity & DOL,3rd Party Payments,Contracts - Social Care,3D RECRUIT LTD,TN33,10/03/2023,"1,236.00"
76082233,Highways Schemes,Strategic Planning and Highways,Non Highways Structures (Bridges within Parks),Capital,Contractor Payments,4 ACRE ECOLOGY LTD,OX29,17/03/2023,436.2
74326233,School Transport,"Education, Inclusion and Skills",Special Educational Needs Transport,Transport Costs,Home to School Transport,4K TRAVEL LTD,SN2 ,10/03/2023,"2,362.50"
74325233,School Transport,"Education, Inclusion and Skills",Mainstream School Transport,Transport Costs,Home to School Transport,4K TRAVEL LTD,SN2 ,10/03/2023,"4,257.00"
76539233,Highways Schemes,Strategic Planning and Highways,Key Routes East,Capital,Professional Fees,4WAY CONSULTING LTD,SK4 ,22/03/2023,"1,221.16"
72838233,Highways Schemes,Strategic Planning and Highways,Traffic Signals Maintenance,Capital,Contractor Payments,4WAY CONSULTING LTD,SK4 ,01/03/2023,710.6
74331233,Homelessness and Travellers,Housing Services,Ukrainian Support Scheme,Supplies and Services,Discretionary Costs,REDACTED PERSONAL DATA,SN6 ,10/03/2023,"1,669.00"
77630313,Homelessness and Travellers,Housing Services,Leased Private Managed Accommodation,Transfer Payments,Payment of Costs,REDACTED PERSONAL DATA,SN3 ,24/03/2023,800
76895233,Social Care,"Children, Families and Community Health Services",Children Looked After,3rd Party Payments,Personal Needs,A. E. SMITH & SON,SN3 ,22/03/2023,525
73873233,Human Resources and Organisational Development,"People, Culture and Organisational Resilience",Organisational Development,Employees,Training,A1 RISK SOLUTIONS LIMITED,SK15,08/03/2023,595
77385233,Other Repairs,Repairs,Cyclical Maintenance,Supplies and Services,Testing / Inspection,ABBEY ELECTRICAL (SWINDON) LTD T/A ABBEY ELECTRICAL UK,SN6 ,24/03/2023,444.2
76029233,Other Repairs,Repairs,Cyclical Maintenance,Supplies and Services,Testing / Inspection,ABBEY ELECTRICAL (SWINDON) LTD T/A ABBEY ELECTRICAL UK,SN6 ,29/03/2023,648.93
78208233,Responsive Repairs,Repairs,Responsive Repairs,3rd Party Payments,Contract Payments,ABBEY ELECTRICAL (SWINDON) LTD T/A ABBEY ELECTRICAL UK,SN6 ,29/03/2023,538.32
76031233,Other Repairs,Repairs,Cyclical Maintenance,Supplies and Services,Testing / Inspection,ABBEY ELECTRICAL (SWINDON) LTD T/A ABBEY ELECTRICAL UK,SN6 ,29/03/2023,422.92
75207233,Early Years Block,DSG Skills and Attainment,Free Nursery Education Commissioning - three & four  year olds,3rd Party Payments,Contracts - Child Care,ABBEY FARM EDUCATE TOGETHER PRIMARY,SN25,15/03/2023,"5,064.50"
77458240,High Needs Block,DSG Skills and Attainment,Notional SEN,3rd Party Payments,Top up funding - Academies and Free Schools Pre 16,ABBEY FARM EDUCATE TOGETHER PRIMARY,SN25,24/03/2023,"6,299.00"
74685233,High Needs Block,DSG Skills and Attainment,SEN Resourcing Assessment Panel,3rd Party Payments,Top up funding - Academies and Free Schools Pre 16,ABBEY MEADS COMMUNITY PRIMARY SCHOOL,SN25,13/03/2023,"12,928.76"
75209233,Early Years Block,DSG Skills and Attainment,Free Nursery Education Commissioning - three & four  year olds,3rd Party Payments,Contracts - Child Care,ABBEY MEADS COMMUNITY PRIMARY SCHOOL,SN25,15/03/2023,"5,508.54"
76439234,Public Health,Public Health,Sexual Health & Health Protection Budget,3rd Party Payments,Contract Payments,ABBEY MEADS MEDICAL GROUP,SN25,20/03/2023,"1,944.00"
77101233,Physical Support,Adults,Physical Support 18 - 64,3rd Party Payments,Personal Budget - Domiciliary care,ABICARE SERVICES LTD,BS32,22/03/2023,571.78
73438241,Physical Support,Adults,Physical Support 18 - 64,3rd Party Payments,Personal Budget - Domiciliary care,ABICARE SERVICES LTD,BS32,06/03/2023,571.78
78538233,Physical Support,Adults,Physical Support 18 - 64,3rd Party Payments,Personal Budget - Domiciliary care,ABICARE SERVICES LTD,BS32,29/03/2023,571.78
74084233,Physical Support,Adults,Physical Support 18 - 64,3rd Party Payments,Personal Budget - Domiciliary care,ABICARE SERVICES LTD,BS32,08/03/2023,571.78
76004233,Physical Support,Adults,Physical Support 18 - 64,3rd Party Payments,Personal Budget - Domiciliary care,ABICARE SERVICES LTD,BS32,17/03/2023,571.78
74088233,Mental Health,Adults,Mental Health 65 and over,3rd Party Payments,Personal Budget - Domiciliary care,ABICARE SERVICES LTD (LIVE IN),SP2 ,08/03/2023,"1,106.00"
76009233,Mental Health,Adults,Mental Health 65 and over,3rd Party Payments,Personal Budget - Domiciliary care,ABICARE SERVICES LTD (LIVE IN),SP2 ,17/03/2023,"1,106.00"
77106233,Mental Health,Adults,Mental Health 65 and over,3rd Party Payments,Personal Budget - Domiciliary care,ABICARE SERVICES LTD (LIVE IN),SP2 ,22/03/2023,"1,106.00"
78543233,Mental Health,Adults,Mental Health 65 and over,3rd Party Payments,Personal Budget - Domiciliary care,ABICARE SERVICES LTD (LIVE IN),SP2 ,29/03/2023,"1,106.00"
73438245,Mental Health,Adults,Mental Health 65 and over,3rd Party Payments,Personal Budget - Domiciliary care,ABICARE SERVICES LTD (LIVE IN),SP2 ,06/03/2023,"1,106.00"
73438244,Physical Support,Adults,Physical Support 18 - 64,3rd Party Payments,Personal Budget - Domiciliary care,ABICARE SERVICES LTD (LIVE IN),SP2 ,06/03/2023,"1,106.00"
78540233,Physical Support,Adults,Physical Support 18 - 64,3rd Party Payments,Personal Budget - Domiciliary care,ABICARE SERVICES LTD (LIVE IN),SP2 ,29/03/2023,"1,200.00"
74086233,Physical Support,Adults,Physical Support 18 - 64,3rd Party Payments,Personal Budget - Domiciliary care,ABICARE SERVICES LTD (LIVE IN),SP2 ,08/03/2023,"1,200.00"
74087233,Physical Support,Adults,Physical Support 18 - 64,3rd Party Payments,Personal Budget - Domiciliary care,ABICARE SERVICES LTD (LIVE IN),SP2 ,08/03/2023,"1,106.00"
76007233,Physical Support,Adults,Physical Support 18 - 64,3rd Party Payments,Personal Budget - Domiciliary care,ABICARE SERVICES LTD (LIVE IN),SP2 ,17/03/2023,"1,106.00"
76006233,Physical Support,Adults,Physical Support 18 - 64,3rd Party Payments,Personal Budget - Domiciliary care,ABICARE SERVICES LTD (LIVE IN),SP2 ,17/03/2023,"1,200.00"
78542233,Mental Health,Adults,Mental Health 65 and over,3rd Party Payments,Personal Budget - Domiciliary care,ABICARE SERVICES LTD (LIVE IN),SP2 ,29/03/2023,"1,106.00"
73438243,Physical Support,Adults,Physical Support 18 - 64,3rd Party Payments,Personal Budget - Domiciliary care,ABICARE SERVICES LTD (LIVE IN),SP2 ,06/03/2023,"1,200.00"
77104233,Physical Support,Adults,Physical Support 18 - 64,3rd Party Payments,Personal Budget - Domiciliary care,ABICARE SERVICES LTD (LIVE IN),SP2 ,22/03/2023,"1,106.00"
76008233,Mental Health,Adults,Mental Health 65 and over,3rd Party Payments,Personal Budget - Domiciliary care,ABICARE SERVICES LTD (LIVE IN),SP2 ,17/03/2023,"1,106.00"
78541233,Physical Support,Adults,Physical Support 18 - 64,3rd Party Payments,Personal Budget - Domiciliary care,ABICARE SERVICES LTD (LIVE IN),SP2 ,29/03/2023,"1,106.00"
73438246,Mental Health,Adults,Mental Health 65 and over,3rd Party Payments,Personal Budget - Domiciliary care,ABICARE SERVICES LTD (LIVE IN),SP2 ,06/03/2023,"1,106.00"
74089233,Mental Health,Adults,Mental Health 65 and over,3rd Party Payments,Personal Budget - Domiciliary care,ABICARE SERVICES LTD (LIVE IN),SP2 ,08/03/2023,"1,106.00"
77105233,Mental Health,Adults,Mental Health 65 and over,3rd Party Payments,Personal Budget - Domiciliary care,ABICARE SERVICES LTD (LIVE IN),SP2 ,22/03/2023,"1,106.00"
77103233,Physical Support,Adults,Physical Support 18 - 64,3rd Party Payments,Personal Budget - Domiciliary care,ABICARE SERVICES LTD (LIVE IN),SP2 ,22/03/2023,"1,200.00"
73462233,Streetsmart,Streetsmart,Waterside Fleet Hires,Transport Costs,Vehicle Hire / Contract,ACCESS HIRE NATIONWIDE,WF6 ,06/03/2023,"1,380.00"
73463233,Streetsmart,Streetsmart,Waterside Fleet Hires,Transport Costs,Vehicle Hire / Contract,ACCESS HIRE NATIONWIDE,WF6 ,06/03/2023,"1,432.00"
76050351,Physical Support,Adults,Physical Support 18 - 64,3rd Party Payments,Residential Care,ACCOMPLISH,B45 ,17/03/2023,"5,817.12"
76050351,Physical Support,Adults,Physical Support 18 - 64,Income,Client Contribution - Residential,ACCOMPLISH,B45 ,17/03/2023,-438.8
72627233,Human Resources and Organisational Development,"People, Culture and Organisational Resilience",Organisational Development,Employees,Training,ACHIEVING SUSTAINABLE CHANGE,CF23,01/03/2023,"4,500.00"
77630335,Homelessness and Travellers,Housing Services,Leased Private Managed Accommodation,Transfer Payments,Payment of Costs,REDACTED PERSONAL DATA,SN8 ,24/03/2023,700
77630372,Homelessness and Travellers,Housing Services,Leased Private Managed Accommodation,Transfer Payments,Payment of Costs,REDACTED PERSONAL DATA,SN8 ,24/03/2023,650
73739233,Social Care,"Children, Families and Community Health Services",External Placements,3rd Party Payments,Independent Fostering Agency Placements,ACTION FOR CHILDREN,WD18,08/03/2023,"3,660.17"
73740233,Social Care,"Children, Families and Community Health Services",External Placements,3rd Party Payments,Independent Fostering Agency Placements,ACTION FOR CHILDREN,WD18,08/03/2023,"3,660.17"
73735233,Social Care,"Children, Families and Community Health Services",External Placements,3rd Party Payments,Independent Fostering Agency Placements,ACTION FOR CHILDREN,WD18,08/03/2023,"3,170.99"
73734233,Social Care,"Children, Families and Community Health Services",External Placements,3rd Party Payments,Independent Fostering Agency Placements,ACTION FOR CHILDREN,WD18,08/03/2023,"3,170.99"
73738233,Social Care,"Children, Families and Community Health Services",External Placements,3rd Party Payments,Independent Fostering Agency Placements,ACTION FOR CHILDREN,WD18,08/03/2023,"3,660.17"
73737233,Social Care,"Children, Families and Community Health Services",External Placements,3rd Party Payments,Independent Fostering Agency Placements,ACTION FOR CHILDREN,WD18,08/03/2023,"3,175.33"
73741233,Social Care,"Children, Families and Community Health Services",External Placements,3rd Party Payments,Independent Fostering Agency Placements,ACTION FOR CHILDREN,WD18,08/03/2023,"3,660.17"
73736233,Social Care,"Children, Families and Community Health Services",External Placements,3rd Party Payments,Independent Fostering Agency Placements,ACTION FOR CHILDREN,WD18,08/03/2023,"3,175.33"
73441233,Disabled Children,"Children, Families and Community Health Services",ICES Paediatric,Supplies and Services,Equipment,ACTIVATE FOR KIDS LTD,SP2 ,06/03/2023,"1,432.47"
74730233,High Needs Block,DSG Skills and Attainment,SEN Resourcing Assessment Panel,3rd Party Payments,Top up funding - Academies and Free Schools Post 16,ACTIVATE LEARNING EDUCATION TRUST,OX1 ,13/03/2023,"2,372.83"
77458247,High Needs Block,DSG Skills and Attainment,Notional SEN,3rd Party Payments,Top up funding - Academies and Free Schools Pre 16,ACTIVATE LEARNING EDUCATION TRUST,OX1 ,24/03/2023,"3,056.00"
78062233,Social Care,"Children, Families and Community Health Services",External Placements,3rd Party Payments,Independent Fostering Agency Placements,ACTIVE CARE SOLUTIONS LTD,B60 ,27/03/2023,"3,277.01"
78060234,Social Care,"Children, Families and Community Health Services",External Placements,3rd Party Payments,Independent Fostering Agency Placements,ACTIVE CARE SOLUTIONS LTD,B60 ,27/03/2023,"6,394.68"
78062234,Social Care,"Children, Families and Community Health Services",External Placements,3rd Party Payments,Independent Fostering Agency Placements,ACTIVE CARE SOLUTIONS LTD,B60 ,27/03/2023,"3,365.36"
78061233,Social Care,"Children, Families and Community Health Services",Unaccompanied Asylum Seeking Children (UASC),3rd Party Payments,Independent Fostering Agency Placements,ACTIVE CARE SOLUTIONS LTD,B60 ,27/03/2023,"4,345.58"
78963233,Learning Disabilities,Adults,Learning Disability 18 - 64,Transfer Payments,Personal Budget - Direct Payments - Domiciliary Care,REDACTED PERSONAL DATA,SN4 ,31/03/2023,"1,290.77"
79007621,Learning Disabilities,Adults,Learning Disability 18 - 64,Transfer Payments,Personal Budget - Direct Payments - Domiciliary Care,REDACTED PERSONAL DATA,SN3 ,31/03/2023,"2,219.29"
74223233,Highways & Transport,Highways & Transport,Highways Management,Supplies and Services,Subscriptions,ADEPT----------------,M1 2,10/03/2023,645
77630334,Homelessness and Travellers,Housing Services,Leased Private Managed Accommodation,Transfer Payments,Payment of Costs,ADVANCE HOUSING & SUPPORT LTD,OX28,24/03/2023,"1,074.00"
78284233,Schools Maintenance,Skills & Attainment,Condition Works,Capital,Contractor Payments,AFFLECK MECHANICAL SERVICES LTD,SN3 ,29/03/2023,"25,571.71"
76050373,Learning Disabilities,Adults,Learning Disability 65 and over,Income,Client Contribution - Supported Living,AGINCARE ENABLE LTD,DT5 ,17/03/2023,-476.6
76050373,Learning Disabilities,Adults,Learning Disability 65 and over,3rd Party Payments,Supported Lodgings (Childrens)/Supported Living (Adults),AGINCARE ENABLE LTD,DT5 ,17/03/2023,"2,462.60"
76050373,Learning Disabilities,Adults,Learning Disability 65 and over,3rd Party Payments,Supported Lodgings (Childrens)/Supported Living (Adults),AGINCARE ENABLE LTD,DT5 ,17/03/2023,"5,835.00"
76050302,Physical Support,Adults,Physical Support 65 and over,3rd Party Payments,Residential Care,AGINCARE LTD,DT5 ,17/03/2023,"3,600.00"
77150233,Physical Support,Adults,Physical Support 65 and over,3rd Party Payments,Residential Care,AGINCARE LTD,DT5 ,22/03/2023,"2,560.12"
76050302,Physical Support,Adults,Physical Support 65 and over,Income,Client Contribution - Residential,AGINCARE LTD,DT5 ,17/03/2023,"-1,231.12"
77149234,Physical Support,Adults,Physical Support 65 and over,3rd Party Payments,Residential Care,AGINCARE LTD,DT5 ,22/03/2023,"3,980.00"
Corporate Card Transaction,Homelessness and Travellers,Housing Services,Bed and Breakfast Accommodation,Transfer Payments,Payment of Costs,Airbnb * Hmn8yaabxr,,09/03/2023,"1,543.62"
73846234,Learning Disabilities,Adults,Learning Disability 18 - 64,Transport Costs,Home to Centre Transport,AKCESS CIC,SN2 ,08/03/2023,"5,934.71"
73851233,School Transport,"Education, Inclusion and Skills",Mainstream School Transport,Transport Costs,Home to School Transport,AKCESS CIC,SN2 ,08/03/2023,"2,165.63"
73846234,Physical Support,Adults,Physical Support 65 and over,Transport Costs,Home to Centre Transport,AKCESS CIC,SN2 ,08/03/2023,"5,934.71"
73846234,Learning Disabilities,Adults,Learning Disability 18 - 64,Transport Costs,Home to Centre Transport,AKCESS CIC,SN2 ,08/03/2023,"20,778.00"
73850235,School Transport,"Education, Inclusion and Skills",Special Educational Needs Transport,Transport Costs,Home to School Transport,AKCESS CIC,SN2 ,08/03/2023,"6,323.63"
73846234,Physical Support,Adults,Physical Support 65 and over,Transport Costs,Home to Centre Transport,AKCESS CIC,SN2 ,08/03/2023,"2,968.29"
73852233,School Transport,"Education, Inclusion and Skills",Special Educational Needs Transport,Transport Costs,Home to School Transport,AKCESS CIC,SN2 ,08/03/2023,"1,995.00"
73618233,Travel,Highways & Transport,Public Transport,3rd Party Payments,Contract Payments,AKCESS CIC,SN2 ,08/03/2023,"16,284.67"
73806234,School Transport,"Education, Inclusion and Skills",Special Educational Needs Transport,Transport Costs,Home to School Transport,AKCESS CIC,SN2 ,08/03/2023,"64,598.21"
73768233,School Transport,"Education, Inclusion and Skills",Special Educational Needs Transport,Employees,Temporary / Agency - by Accounts Payable,AKCESS CIC,SN2 ,08/03/2023,"15,504.00"
73846234,Physical Support,Adults,Physical Support 65 and over,Transport Costs,Home to Centre Transport,AKCESS CIC,SN2 ,08/03/2023,"5,934.71"
76391233,Town Centre,"Economy, Growth and Place",Heritage Action Zone (HAZ),Supplies and Services,Consultants,ALAN BAXTER LIMITED,EC1M,20/03/2023,"1,250.00"
78240234,Supported Employment,Housing Services,EW - Timber,Supplies and Services,Repairs & Maintenance,ALAN CLARK ENGINEERING 1991 LTD,SN3 ,29/03/2023,669.45
72869233,Senior Management Team,"Children, Families and Community Health Services",Family Safeguarding Model,Supplies and Services,Services,ALASDAIR CANT & ASSOCIATES LIMITED,CB2 ,01/03/2023,"3,050.00"
79082233,Senior Management Team,"Children, Families and Community Health Services",Family Safeguarding Model,Supplies and Services,Services,ALASDAIR CANT & ASSOCIATES LIMITED,CB2 ,31/03/2023,650
77373233,Senior Management Team,"Children, Families and Community Health Services",Family Safeguarding Model,Supplies and Services,Services,ALASDAIR CANT & ASSOCIATES LIMITED,CB2 ,24/03/2023,"2,600.00"
75759233,Learning Disabilities,Adults,Learning Disability 18 - 64,3rd Party Payments,Supported Accommodation Scheme,REDACTED PERSONAL DATA,SN2 ,22/03/2023,"2,881.56"
79007661,Learning Disabilities,Adults,Learning Disability 18 - 64,Transfer Payments,Personal Budget - Direct Payments - Domiciliary Care,REDACTED PERSONAL DATA,SN25,31/03/2023,"1,135.30"
72767233,Early Help,Early Intervention & Prevention,"Holiday, Activities & Food Grant",3rd Party Payments,Contracts - Child Care,ALFRESCO CHILDCARE,SN6 ,01/03/2023,"1,192.00"
75375233,Early Years Block,DSG Skills and Attainment,Free Nursery Education Commissioning - three & four  year olds,3rd Party Payments,Contracts - Child Care,ALFRESCO CHILDCARE,SN6 ,15/03/2023,"3,730.48"
75792233,Learning Disabilities,Adults,Learning Disability 18 - 64,3rd Party Payments,Supported Accommodation Scheme,REDACTED PERSONAL DATA,SN1 ,22/03/2023,"2,881.56"
75792233,Learning Disabilities,Adults,Learning Disability 18 - 64,3rd Party Payments,Supported Accommodation Scheme,REDACTED PERSONAL DATA,SN1 ,22/03/2023,174.64
79007870,Learning Disabilities,Adults,Learning Disability 18 - 64,Transfer Payments,Personal Budget - Direct Payments - Domiciliary Care,REDACTED PERSONAL DATA,SN4 ,31/03/2023,"7,944.44"
79007874,Learning Disabilities,Adults,Learning Disability 18 - 64,Transfer Payments,Personal Budget - Direct Payments - Domiciliary Care,REDACTED PERSONAL DATA,SN4 ,31/03/2023,"2,739.40"
75793233,Learning Disabilities,Adults,Learning Disability 18 - 64,3rd Party Payments,Supported Accommodation Scheme,REDACTED PERSONAL DATA,SN2 ,22/03/2023,"2,339.94"
75793233,Learning Disabilities,Adults,Learning Disability 18 - 64,3rd Party Payments,Supported Accommodation Scheme,REDACTED PERSONAL DATA,SN2 ,22/03/2023,"1,969.44"
75793233,Learning Disabilities,Adults,Learning Disability 18 - 64,3rd Party Payments,Supported Accommodation Scheme,REDACTED PERSONAL DATA,SN2 ,22/03/2023,"2,012.25"
78964233,Learning Disabilities,Adults,Learning Disability 18 - 64,Transfer Payments,Personal Budget - Direct Payments - Domiciliary Care,REDACTED PERSONAL DATA,SN5 ,31/03/2023,"9,861.84"
75378233,Early Years Block,DSG Skills and Attainment,Free Nursery Education Commissioning - three & four  year olds,3rd Party Payments,Contracts - Child Care,REDACTED PERSONAL DATA,SN25,15/03/2023,"1,189.07"
75379233,Early Years Block,DSG Skills and Attainment,Free Nursery Education Commissioning - two year olds,3rd Party Payments,Contracts - Child Care,REDACTED PERSONAL DATA,SN25,15/03/2023,683.1
75217233,Early Years Block,DSG Skills and Attainment,Free Nursery Education Commissioning - three & four  year olds,3rd Party Payments,Contracts - Child Care,REDACTED PERSONAL DATA,SN1 ,15/03/2023,620.39
79007439,Learning Disabilities,Adults,Learning Disability 18 - 64,Transfer Payments,Personal Budget - Direct Payments - Domiciliary Care,REDACTED PERSONAL DATA,SN5 ,31/03/2023,"3,844.76"
73261233,Highways Schemes,Strategic Planning and Highways,Key Routes East,Capital,Contractor Payments,ALLBUILD BUILDING & LANDSCAPING SERVICES,SN25,03/03/2023,625
77008233,Streetsmart,Streetsmart,Waterside Fleet Workshops,Supplies and Services,Equipment,ALLIANCE AUTOMOTIVE UK T/A BRAYMARC,BD4 ,22/03/2023,945
74370233,Streetsmart,Streetsmart,Waterside Fleet Workshops,Supplies and Services,Equipment,ALLIANCE AUTOMOTIVE UK T/A BRAYMARC,BD4 ,10/03/2023,945
73677233,Treasury,Corporate Finance,Treasury,Supplies and Services,Bank Charges,ALLPAY-NET LIMITED,HR1 ,08/03/2023,522.4
74435233,Landlord Services,Supervision & Management,Estate Management Team,Supplies and Services,Contracts,ALLPAY-NET LIMITED,HR1 ,10/03/2023,"1,668.84"
75383233,Early Years Block,DSG Skills and Attainment,Free Nursery Education Commissioning - two year olds,3rd Party Payments,Contracts - Child Care,ALPHA PRE-SCHOOL,SN5 ,15/03/2023,"2,231.46"
75380233,Early Years Block,DSG Skills and Attainment,Free Nursery Education Commissioning - three & four  year olds,3rd Party Payments,Contracts - Child Care,ALPHA PRE-SCHOOL,SN5 ,15/03/2023,"1,527.48"
79075233,Social Care,"Children, Families and Community Health Services",Legal Fees,Supplies and Services,Fees,ALPHABIOLABS,WA5 ,31/03/2023,960
79065233,Social Care,"Children, Families and Community Health Services",Legal Fees,Supplies and Services,Fees,ALPHABIOLABS,WA5 ,31/03/2023,470
78295233,Insurance Team,Finance & Procurement Service,Insurance,Supplies and Services,Materials,ALPHATEC SOFTWARE LTD,NN7 ,29/03/2023,"3,986.00"
76050377,Physical Support,Adults,Physical Support 65 and over,3rd Party Payments,Nursing Care,ALTOGETHER CARE WEYMOUTH CARE HOME,DT4 ,17/03/2023,"4,023.28"
76050377,Physical Support,Adults,Physical Support 65 and over,Income,Client Contribution - Nursing,ALTOGETHER CARE WEYMOUTH CARE HOME,DT4 ,17/03/2023,-627.8
74316233,"Volutary Sector, Equipment and Carers",Adults,Voluntary Sector Adults,3rd Party Payments,Contracts - Social Care,ALZHEIMERS SOCIETY,PL2 ,10/03/2023,"2,433.00"
Corporate Card Transaction,Traded Services,Inclusion and Achievement,Plas Pencelli Outdoor Education Centre,Supplies and Services,Equipment,Amznmktplace,,23/03/2023,656.27
Corporate Card Transaction,Disabled Revenue Codes,Disabled Codes 2,Pinetrees,Supplies and Services,Materials,Amznmktplace,,22/03/2023,534.53
Corporate Card Transaction,Disabled Revenue Codes,Disabled Codes 2,Pinetrees,Supplies and Services,Materials,Amznmktplace, ,16/03/2023,"1,068.82"
73439251,Social Care,"Children, Families and Community Health Services",External Placements,3rd Party Payments,Residential Care,AMBERLEIGH CARE LTD,TF2 ,08/03/2023,"18,984.00"
72997233,Social Care,"Children, Families and Community Health Services",External Placements,3rd Party Payments,Residential Care,AMEGREEN CHILDREN'S SERVICES LTD,RG7 ,03/03/2023,"2,700.00"
77722247,Social Care,"Children, Families and Community Health Services",External Placements,3rd Party Payments,Residential Care,AMEGREEN CHILDREN'S SERVICES LTD,RG7 ,27/03/2023,"17,437.50"
73883234,Responsive Repairs,Repairs,Responsive Repairs,Premises Costs,Repairs - Buildings,AMELIO UTILITIES(GLOU) LTD T/A 3 COUNTIES DRAIN SERVICES,GL1 ,08/03/2023,63.67
73883234,Responsive Repairs,Repairs,Responsive Repairs,Premises Costs,Repairs - Buildings,AMELIO UTILITIES(GLOU) LTD T/A 3 COUNTIES DRAIN SERVICES,GL1 ,08/03/2023,287.29
73883234,Responsive Repairs,Repairs,Responsive Repairs,Premises Costs,Repairs - Buildings,AMELIO UTILITIES(GLOU) LTD T/A 3 COUNTIES DRAIN SERVICES,GL1 ,08/03/2023,191.02
73883234,Responsive Repairs,Repairs,Responsive Repairs,Premises Costs,Repairs - Buildings,AMELIO UTILITIES(GLOU) LTD T/A 3 COUNTIES DRAIN SERVICES,GL1 ,08/03/2023,127.35
73883234,Responsive Repairs,Repairs,Responsive Repairs,Premises Costs,Repairs - Buildings,AMELIO UTILITIES(GLOU) LTD T/A 3 COUNTIES DRAIN SERVICES,GL1 ,08/03/2023,159.94
77646233,Highways & Transport,Highways & Transport,Project Delivery,Supplies and Services,Services,AMEY OW LTD,L19 ,24/03/2023,"44,381.57"
77869233,Town Centre,"Economy, Growth and Place",Fleming Way Improvement Scheme,Capital,Professional Fees,AMEY OW LTD,L19 ,27/03/2023,"36,447.84"
73875233,Highways & Transport,Highways & Transport,Project Delivery,Supplies and Services,Services,AMEY OW LTD,L19 ,08/03/2023,"39,253.96"
76969234,Highways & Transport,Highways & Transport,Project Delivery,Supplies and Services,Services,AMEY OW LTD,L19 ,22/03/2023,"90,712.50"
75191233,Property Estates,Property,Estates - Corporate Property General,Premises Costs,Rents,AMEY TPT,EC4A,15/03/2023,"2,785.00"
73750233,Social Care,"Children, Families and Community Health Services",External Placements,3rd Party Payments,Independent Fostering Agency Placements,AMICUS FOSTER CARE,BS2 ,08/03/2023,"4,747.40"
76059233,Disabled Children,"Children, Families and Community Health Services",DCT Daytime Short Breaks,3rd Party Payments,Respite Care,AMICUS FOSTER CARE,BS2 ,17/03/2023,"3,200.00"
76062233,Disabled Children,"Children, Families and Community Health Services",DCT Daytime Short Breaks,3rd Party Payments,Respite Care,AMICUS FOSTER CARE,BS2 ,17/03/2023,"3,000.00"
77216234,Highways Inspections & Maintenance,Highway Operations and Car Parking,Streetlighting,Supplies and Services,Materials,AMR TRAFFIC MANAGEMENT LTD,RG14,27/03/2023,240
73911234,Highways Inspections & Maintenance,Highway Operations and Car Parking,Streetlighting,Supplies and Services,Materials,AMR TRAFFIC MANAGEMENT LTD,RG14,08/03/2023,"1,440.00"
78988233,Mental Health,Adults,Mental Health 18-64,Transfer Payments,Personal Budget - Direct Payments - Domiciliary Care,REDACTED PERSONAL DATA,SN25,31/03/2023,619.34
73777233,Planning & Regulatory,Strategic Planning,Landscape & Countryside Works,Supplies and Services,Discretionary Costs,ANDREW CUNNINGHAM ARBORICULTURAL CONSULTANT LIMITED (ACAC),GL5 ,08/03/2023,700
78978234,Learning Disabilities,Adults,Learning Disability 18 - 64,Transfer Payments,Personal Budget - Direct Payments - Domiciliary Care,REDACTED PERSONAL DATA,SP11,31/03/2023,502.46
77612233,Homelessness and Travellers,Housing Services,Leased Private Managed Accommodation,Transfer Payments,Payment of Costs,REDACTED PERSONAL DATA,SN26,24/03/2023,675
76633233,High Needs Block,DSG Skills and Attainment,SEN Resourcing Assessment Panel,3rd Party Payments,Top up funding - Maintained providers Pre 16,REDACTED PERSONAL DATA,SN5 ,22/03/2023,"1,044.00"
76619233,High Needs Block,DSG Skills and Attainment,SEN Resourcing Assessment Panel,3rd Party Payments,Top up funding - Maintained providers Pre 16,REDACTED PERSONAL DATA,SN5 ,22/03/2023,"1,320.00"
75583296,Early Years Block,DSG Skills and Attainment,Free Nursery Education Commissioning - two year olds,3rd Party Payments,Contracts - Child Care,REDACTED PERSONAL DATA,SN5 ,15/03/2023,"6,375.60"
75583293,Early Years Block,DSG Skills and Attainment,Free Nursery Education Commissioning - three & four  year olds,3rd Party Payments,Contracts - Child Care,REDACTED PERSONAL DATA,SN5 ,15/03/2023,"38,684.25"
75116233,Early Years Block,DSG Skills and Attainment,Free Nursery Education Commissioning - two year olds,3rd Party Payments,Contracts - Child Care,REDACTED PERSONAL DATA,SN5 ,15/03/2023,910.8
77630325,Homelessness and Travellers,Housing Services,Leased Private Managed Accommodation,Transfer Payments,Payment of Costs,ANGELVIEW PROPERTIES LTD,ALBO,24/03/2023,548.45
73115234,Planned Maintenance Programme,HRA Capital Financing,Windows,Capital,Contractor Payments,ANGLIAN BUILDING PRODUCTS LIMITED,NR6 ,03/03/2023,622.05
79007625,Physical Support,Adults,Physical Support 18 - 64,Transfer Payments,Personal Budget - Direct Payments - Domiciliary Care,REDACTED PERSONAL DATA,SN25,31/03/2023,"2,686.51"
72776233,Museums & Heritage,Culture & Heritage,Swindon Museum & Art Gallery,Supplies and Services,Materials,ANYA BEAUMONT ART,SN13,01/03/2023,760
75900233,HRA Overheads,Supervision & Management,Admin / Management General,Premises Costs,Insurance - Premises,AON UK LIMITED,EC3V,17/03/2023,"3,197.68"
78240241,Supported Employment,Housing Services,Community Meals,Supplies and Services,Food,APETITO LIMITED,BA14,29/03/2023,"1,234.95"
77217234,Supported Employment,Housing Services,Community Meals,Supplies and Services,Food,APETITO LIMITED,BA14,24/03/2023,"1,299.58"
77218234,Supported Employment,Housing Services,Community Meals,Supplies and Services,Food,APETITO LIMITED,BA14,24/03/2023,"1,196.85"
75709233,Supported Employment,Housing Services,Community Meals,Supplies and Services,Food,APETITO LIMITED,BA14,15/03/2023,"1,179.09"
78240239,Supported Employment,Housing Services,Community Meals,Supplies and Services,Food,APETITO LIMITED,BA14,29/03/2023,"1,260.64"
75710233,Supported Employment,Housing Services,Community Meals,Supplies and Services,Food,APETITO LIMITED,BA14,15/03/2023,"1,252.45"
78240238,Supported Employment,Housing Services,Community Meals,Supplies and Services,Food,APETITO LIMITED,BA14,29/03/2023,"1,254.60"
75638234,Responsive Repairs,Repairs,Responsive Repairs,3rd Party Payments,Contract Payments,APEX SCAFFOLDING SERVICES,SN2 ,15/03/2023,579.43
73179233,Responsive Repairs,Repairs,Responsive Repairs,3rd Party Payments,Contract Payments,APEX SCAFFOLDING SERVICES,SN2 ,03/03/2023,55
73181233,Responsive Repairs,Repairs,Responsive Repairs,3rd Party Payments,Contract Payments,APEX SCAFFOLDING SERVICES,SN2 ,03/03/2023,"3,870.00"
73884234,Responsive Repairs,Repairs,Responsive Repairs,3rd Party Payments,Contract Payments,APEX SCAFFOLDING SERVICES,SN2 ,08/03/2023,55
73180233,Responsive Repairs,Repairs,Responsive Repairs,3rd Party Payments,Contract Payments,APEX SCAFFOLDING SERVICES,SN2 ,03/03/2023,420
73903233,,,Balance Sheet,Balance Sheet & Recharge,MFD recharges,APOGEE CORPORATION LIMITED,ME16,08/03/2023,"19,130.26"
73310233,Communications & Engagement,Communications & Engagement,"Policy, Campaigns and Communications",Supplies and Services,Design & Printing Costs,APOGEE CORPORATION LIMITED,EC2A,03/03/2023,627.49
76589233,,,Balance Sheet,Balance Sheet & Recharge,Resources Recharges,APOGEE CORPORATION LIMITED,EC2A,22/03/2023,"4,602.00"
73346233,Communications & Engagement,Communications & Engagement,"Policy, Campaigns and Communications",Supplies and Services,Design & Printing Costs,APOGEE CORPORATION LIMITED,EC2A,06/03/2023,"13,200.00"
73972233,,,Balance Sheet,Balance Sheet & Recharge,Resources Recharges,APOGEE CORPORATION LIMITED,EC2A,08/03/2023,"14,038.05"
76050312,Learning Disabilities,Adults,Learning Disability 18 - 64,3rd Party Payments,Residential Care,APPLEFORD LTD T/A DANESWOOD,BS25,17/03/2023,"20,190.92"
76050312,Learning Disabilities,Adults,Learning Disability 18 - 64,Income,Client Contribution - Residential,APPLEFORD LTD T/A DANESWOOD,BS25,17/03/2023,-438.8
79114233,Adults - Staffing and Supporting People,Adults,Blue Badges,Supplies and Services,Materials,APS GROUP,SK3 ,31/03/2023,944.79
73699233,Adults - Staffing and Supporting People,Adults,Blue Badges,Supplies and Services,Materials,APS GROUP,SK3 ,08/03/2023,"1,338.74"
72957233,Communications & Engagement,Communications & Engagement,"Policy, Campaigns and Communications",Employees,Training,APSE--------------------------------,M32 ,03/03/2023,"8,931.00"
73501233,Learning Disabilities,Adults,Firethorn Close,Premises Costs,Maintenance - Grounds,AQUATRONIC GROUP MANAGEMENT PLC,CO6 ,06/03/2023,892.22
79129248,Social Care,"Children, Families and Community Health Services",External Placements,3rd Party Payments,Residential Care,REDACTED PERSONAL DATA,LL40,31/03/2023,"99,800.00"
76615233,High Needs Block,DSG Skills and Attainment,SEN Resourcing Assessment Panel,3rd Party Payments,Top up funding - Maintained providers Pre 16,REDACTED PERSONAL DATA,SN2 ,22/03/2023,"7,980.00"
76492233,Early Years Block,DSG Skills and Attainment,Free Nursery Education Commissioning - three & four  year olds,3rd Party Payments,Contracts - Child Care,REDACTED PERSONAL DATA,SN2 ,22/03/2023,"7,980.00"
75388233,Early Years Block,DSG Skills and Attainment,Free Nursery Education Commissioning - three & four  year olds,3rd Party Payments,Contracts - Child Care,REDACTED PERSONAL DATA,SN2 ,15/03/2023,"2,667.36"
77722249,Social Care,"Children, Families and Community Health Services",External Placements,3rd Party Payments,Residential Care,AREA CAMDEN GROUP,N8 0,27/03/2023,"22,585.67"
72998233,Social Care,"Children, Families and Community Health Services",External Placements,3rd Party Payments,Residential Care,AREA CAMDEN GROUP,N8 0,03/03/2023,"20,399.96"
Corporate Card Transaction,Social Care,"Children, Families and Community Health Services",Placement - Care Leaver Team,Transfer Payments,Grants to Individuals,Argos Ltd,,09/03/2023,543.95
73464233,Streetsmart,Streetsmart,Waterside Fleet Hires,Transport Costs,Vehicle Hire / Contract,ARNOLD PLANT HIRE LIMITED,SK6 ,06/03/2023,"1,400.00"
73465233,Streetsmart,Streetsmart,Waterside Fleet Hires,Transport Costs,Vehicle Hire / Contract,ARNOLD PLANT HIRE LIMITED,SK6 ,06/03/2023,"1,060.00"
75861233,Streetsmart,Streetsmart,Waste - Processing,Supplies and Services,Services,ARROW INDUSTRIAL GROUP LIMITED,RG21,17/03/2023,"15,700.00"
73018233,Streetsmart,Streetsmart,Waste - Processing,Supplies and Services,Services,ARROW INDUSTRIAL GROUP LIMITED,RG21,03/03/2023,"1,841.00"
72971233,Insurance Team,Finance & Procurement Service,Insurance,Premises Costs,Insurance - Premises,ARTHUR J GALLAGHER (UK) LTD T/A GALLAGHER,SN1 ,03/03/2023,"10,640.00"
72577233,Insurance Team,Finance & Procurement Service,Insurance,Premises Costs,Insurance - Premises,ARTHUR J GALLAGHER (UK) LTD T/A GALLAGHER,SN1 ,01/03/2023,"27,959.52"
77859233,Insurance Team,Finance & Procurement Service,Insurance,Premises Costs,Insurance - Premises,ARTHUR J GALLAGHER (UK) LTD T/A GALLAGHER,SN1 ,27/03/2023,"573,240.62"
77419233,Communications & Engagement,Communications & Engagement,"Policy, Campaigns and Communications",Supplies and Services,Materials,ASF SIGNS LTD,SN4 ,24/03/2023,427
75799233,Customer Strategy & Operations,"People, Culture and Organisational Resilience",Cemeteries & Crematoria,Supplies and Services,Equipment,ASF SIGNS LTD,SN4 ,15/03/2023,"3,370.00"
78298233,Highways & Transport,Highways & Transport,Highway Network Management,Supplies and Services,Equipment,ASF SIGNS LTD,SN4 ,29/03/2023,"2,600.00"
76050313,Mental Health,Adults,Mental Health 18-64,3rd Party Payments,Residential Care,ASH VIEW HOUSE,BS15,17/03/2023,"7,476.36"
76050313,Mental Health,Adults,Mental Health 18-64,Income,Client Contribution - Residential,ASH VIEW HOUSE,BS15,17/03/2023,520.91
76050313,Mental Health,Adults,Mental Health 18-64,Income,Client Contribution - Residential,ASH VIEW HOUSE,BS15,17/03/2023,-553.41
76050313,Mental Health,Adults,Mental Health 18-64,Income,Client Contribution - Residential,ASH VIEW HOUSE,BS15,17/03/2023,-418.8
76050242,Care Management & Safeguarding,Adults,Intermediate Care Team,3rd Party Payments,Residential Care,ASHBURY LODGE,SN3 ,17/03/2023,"3,474.45"
76429233,Physical Support,Adults,Physical Support 18 - 64,3rd Party Payments,Residential Care,ASHBURY LODGE,SN3 ,20/03/2023,"4,297.34"
76050242,Physical Support,Adults,Physical Support 65 and over,3rd Party Payments,Residential Care,ASHBURY LODGE,SN3 ,17/03/2023,"1,737.22"
76050242,Physical Support,Adults,Physical Support 65 and over,3rd Party Payments,Residential Care,ASHBURY LODGE,SN3 ,17/03/2023,"3,396.88"
76050242,Mental Health,Adults,Mental Health 65 and over,Income,Client Contribution - Residential,ASHBURY LODGE,SN3 ,17/03/2023,-805.32
76050242,Physical Support,Adults,Physical Support 65 and over,Income,Client Contribution - Residential,ASHBURY LODGE,SN3 ,17/03/2023,-469.03
76050242,Physical Support,Adults,Physical Support 65 and over,Income,Client Contribution - Residential,ASHBURY LODGE,SN3 ,17/03/2023,-602.8
76050242,Physical Support,Adults,Physical Support 65 and over,Income,Client Contribution - Residential,ASHBURY LODGE,SN3 ,17/03/2023,-886.6
76050242,Physical Support,Adults,Physical Support 65 and over,Income,Client Contribution - Residential,ASHBURY LODGE,SN3 ,17/03/2023,-875.2
76050242,Physical Support,Adults,Physical Support 65 and over,3rd Party Payments,Residential Care,ASHBURY LODGE,SN3 ,17/03/2023,822.9
76050242,Physical Support,Adults,Physical Support 65 and over,Income,Client Contribution - Residential,ASHBURY LODGE,SN3 ,17/03/2023,-582.96
76050242,Physical Support,Adults,Physical Support 65 and over,Income,Client Contribution - Residential,ASHBURY LODGE,SN3 ,17/03/2023,-657.68
76050242,Physical Support,Adults,Physical Support 65 and over,Income,Client Contribution - Residential,ASHBURY LODGE,SN3 ,17/03/2023,-627.8
76050242,Physical Support,Adults,Physical Support 65 and over,3rd Party Payments,Residential Care,ASHBURY LODGE,SN3 ,17/03/2023,"-2,377.25"
76050242,Physical Support,Adults,Physical Support 65 and over,3rd Party Payments,Residential Care,ASHBURY LODGE,SN3 ,17/03/2023,"2,560.12"
76050242,Physical Support,Adults,Physical Support 65 and over,3rd Party Payments,Residential Care,ASHBURY LODGE,SN3 ,17/03/2023,"2,668.72"
76050242,Care Management & Safeguarding,Adults,Intermediate Care Team,3rd Party Payments,Residential Care,ASHBURY LODGE,SN3 ,17/03/2023,"-3,200.15"
76050242,Mental Health,Adults,Mental Health 65 and over,3rd Party Payments,Residential Care,ASHBURY LODGE,SN3 ,17/03/2023,"2,668.72"
76050242,Physical Support,Adults,Physical Support 65 and over,3rd Party Payments,Residential Care,ASHBURY LODGE,SN3 ,17/03/2023,"3,383.02"
76050242,Physical Support,Adults,Physical Support 65 and over,3rd Party Payments,Residential Care,ASHBURY LODGE,SN3 ,17/03/2023,"2,742.99"
76050242,Physical Support,Adults,Physical Support 65 and over,Income,Client Contribution - Residential,ASHBURY LODGE,SN3 ,17/03/2023,-201.79
76050242,Physical Support,Adults,Physical Support 65 and over,Income,Client Contribution - Residential,ASHBURY LODGE,SN3 ,17/03/2023,-610
76050242,Physical Support,Adults,Physical Support 65 and over,3rd Party Payments,Residential Care,ASHBURY LODGE,SN3 ,17/03/2023,"3,600.00"
76050242,Care Management & Safeguarding,Adults,Intermediate Care Team,3rd Party Payments,Residential Care,ASHBURY LODGE,SN3 ,17/03/2023,"3,931.61"
76050242,Physical Support,Adults,Physical Support 65 and over,3rd Party Payments,Residential Care,ASHBURY LODGE,SN3 ,17/03/2023,"3,200.15"
76050242,Mental Health,Adults,Mental Health 65 and over,3rd Party Payments,Residential Care,ASHBURY LODGE,SN3 ,17/03/2023,"2,560.12"
76050242,Physical Support,Adults,Physical Support 65 and over,Income,Client Contribution - Residential,ASHBURY LODGE,SN3 ,17/03/2023,-730.76
76050242,Physical Support,Adults,Physical Support 65 and over,Income,Client Contribution - Residential,ASHBURY LODGE,SN3 ,17/03/2023,-587.4
76050242,Physical Support,Adults,Physical Support 65 and over,3rd Party Payments,Residential Care,ASHBURY LODGE,SN3 ,17/03/2023,"2,377.25"
76050241,Physical Support,Adults,Physical Support 65 and over,3rd Party Payments,Nursing Care,ASHGROVE HOUSE NURSING HOME,SN5 ,17/03/2023,"6,080.00"
76050241,Physical Support,Adults,Physical Support 65 and over,Income,Client Contribution - Nursing,ASHGROVE HOUSE NURSING HOME,SN5 ,17/03/2023,-326.56
76669233,Public Health,Public Health,Sexual Health & Health Protection Budget,3rd Party Payments,Contract Payments,ASHINGTON HOUSE SURGERY,SN5 ,22/03/2023,738
78128233,Public Health,Public Health,Supplementary SMTR Grant,3rd Party Payments,Contract Payments,ASHINGTON WAY PHARMACY,SN5 ,31/03/2023,500
79007673,Physical Support,Adults,Physical Support 18 - 64,Transfer Payments,Personal Budget - Direct Payments - Domiciliary Care,REDACTED PERSONAL DATA,SN25,31/03/2023,"1,689.94"
77247233,Libraries,"Education, Inclusion and Skills",Library Delivery,Supplies and Services,Materials,ASKEWS AND HOLTS LIBRARY SERVICES LIMITED,PR1 ,24/03/2023,"1,173.60"
72604233,Libraries,"Education, Inclusion and Skills",Library Delivery,Supplies and Services,Materials,ASKEWS AND HOLTS LIBRARY SERVICES LIMITED,PR1 ,01/03/2023,"1,003.25"
73347233,Libraries,"Education, Inclusion and Skills",Library Delivery,Supplies and Services,Materials,ASKEWS AND HOLTS LIBRARY SERVICES LIMITED,PR1 ,06/03/2023,913.85
78404234,Libraries,"Education, Inclusion and Skills",Library Delivery,Supplies and Services,Materials,ASKEWS AND HOLTS LIBRARY SERVICES LIMITED,PR1 ,29/03/2023,"1,530.02"
74245233,Libraries,"Education, Inclusion and Skills",Library Delivery,Supplies and Services,Materials,ASKEWS AND HOLTS LIBRARY SERVICES LIMITED,PR1 ,10/03/2023,"1,015.48"
76021233,Libraries,"Education, Inclusion and Skills",Library Delivery,Supplies and Services,Materials,ASKEWS AND HOLTS LIBRARY SERVICES LIMITED,PR1 ,17/03/2023,"1,560.24"
76050283,Learning Disabilities,Adults,Learning Disability 18 - 64,Income,Client Contribution - Residential,ASPECTS & MILESTONES TRUST,BS16,17/03/2023,-425.6
76050283,Learning Disabilities,Adults,Learning Disability 18 - 64,3rd Party Payments,Residential Care,ASPECTS & MILESTONES TRUST,BS16,17/03/2023,"6,426.36"
76050322,Mental Health,Adults,Mental Health 65 and over,3rd Party Payments,Supported Lodgings (Childrens)/Supported Living (Adults),ASPECTS 2 LTD,B70 ,17/03/2023,"1,259.89"
76050322,Learning Disabilities,Adults,Learning Disability 18 - 64,Income,Client Contribution - Residential,ASPECTS 2 LTD,B70 ,17/03/2023,-438.8
76050322,Learning Disabilities,Adults,Learning Disability 18 - 64,3rd Party Payments,Residential Care,ASPECTS 2 LTD,B70 ,17/03/2023,"8,284.52"
76050322,Mental Health,Adults,Mental Health 65 and over,3rd Party Payments,Supported Lodgings (Childrens)/Supported Living (Adults),ASPECTS 2 LTD,B70 ,17/03/2023,"1,356.80"
76050322,Mental Health,Adults,Mental Health 65 and over,3rd Party Payments,Supported Lodgings (Childrens)/Supported Living (Adults),ASPECTS 2 LTD,B70 ,17/03/2023,"-1,732.34"
76050322,Physical Support,Adults,Physical Support 18 - 64,3rd Party Payments,Supported Lodgings (Childrens)/Supported Living (Adults),ASPECTS 2 LTD,B70 ,17/03/2023,"3,931.20"
77637234,High Needs Block,DSG Skills and Attainment,Out of Borough School Fees,3rd Party Payments,Independent Special School- Pre 16,ASPRIS CHILDREN'S SERVICES,DL1 ,24/03/2023,"33,424.04"
75925233,Museums & Heritage,Culture & Heritage,Steam:Income Generation,Supplies and Services,Discretionary Costs,ASSOCIATION OF LARGER SCALE RAILWAY MODELLERS LIMITED,PE33,17/03/2023,"3,306.00"
76050343,Learning Disabilities,Adults,Learning Disability 18 - 64,Income,Client Contribution - Residential,ASTON CARE LIMITED,RG30,17/03/2023,-262.4
76050342,Learning Disabilities,Adults,Learning Disability 18 - 64,3rd Party Payments,Residential Care,ASTON CARE LIMITED,RG30,17/03/2023,"6,350.24"
76050342,Learning Disabilities,Adults,Learning Disability 18 - 64,Income,Client Contribution - Residential,ASTON CARE LIMITED,RG30,17/03/2023,-410.8
76050342,Learning Disabilities,Adults,Learning Disability 18 - 64,3rd Party Payments,Residential Care,ASTON CARE LIMITED,RG30,17/03/2023,"6,909.40"
76050343,Learning Disabilities,Adults,Learning Disability 18 - 64,3rd Party Payments,Residential Care,ASTON CARE LIMITED,RG30,17/03/2023,"9,182.84"
76050342,Learning Disabilities,Adults,Learning Disability 65 and over,3rd Party Payments,Residential Care,ASTON CARE LIMITED,RG30,17/03/2023,"6,607.12"
76050342,Learning Disabilities,Adults,Learning Disability 18 - 64,Income,Client Contribution - Residential,ASTON CARE LIMITED,RG30,17/03/2023,"-1,033.20"
76050342,Learning Disabilities,Adults,Learning Disability 18 - 64,Income,Client Contribution - Residential,ASTON CARE LIMITED,RG30,17/03/2023,-594.36
76050342,Learning Disabilities,Adults,Learning Disability 18 - 64,3rd Party Payments,Residential Care,ASTON CARE LIMITED,RG30,17/03/2023,"9,104.80"
72741233,Early Help,Early Intervention & Prevention,"Holiday, Activities & Food Grant",3rd Party Payments,Contracts - Child Care,ATBSHOP LTD,SN2 ,01/03/2023,"7,420.00"
76551233,Early Help,Early Intervention & Prevention,"Holiday, Activities & Food Grant",3rd Party Payments,Contracts - Child Care,ATBSHOP LTD,SN2 ,22/03/2023,"3,582.00"
73113234,Property Management,Property,Corporate Repairs & Maintenance Programme,Premises Costs,Maintenance - Buildings,ATLANTIC FIRE LTD,N18 ,03/03/2023,952.48
73114233,Planned Maintenance Programme,HRA Capital Financing,Contingent Major Repairs,Capital,Contractor Payments,ATLANTIC FIRE LTD,N18 ,03/03/2023,688
74048233,Other Repairs,Repairs,Unallocated job costs from OPEN system,Premises Costs,Maintenance - Buildings,ATLANTIC FIRE LTD,N18 ,08/03/2023,"1,100.00"
72528235,Other Repairs,Repairs,Unallocated job costs from OPEN system,Premises Costs,Repairs - Buildings,ATLANTIC FIRE LTD,N18 ,01/03/2023,688
72528236,Other Repairs,Repairs,Unallocated job costs from OPEN system,Premises Costs,Repairs - Buildings,ATLANTIC FIRE LTD,N18 ,01/03/2023,688
74047233,Planned Maintenance Programme,HRA Capital Financing,Contingent Major Repairs,Capital,Contractor Payments,ATLANTIC FIRE LTD,N18 ,08/03/2023,839
72533233,Other Repairs,Repairs,Unallocated job costs from OPEN system,Premises Costs,Repairs - Buildings,ATLANTIC FIRE LTD,N18 ,01/03/2023,688
76825234,Property Management,Property,Corporate Repairs & Maintenance Programme,Premises Costs,Maintenance - Buildings,ATLANTIC FIRE LTD,N18 ,27/03/2023,"19,080.00"
76826233,Property Management,Property,Corporate Repairs & Maintenance Programme,Premises Costs,Maintenance - Buildings,ATLANTIC FIRE LTD,N18 ,27/03/2023,"14,736.00"
73732234,Social Care,"Children, Families and Community Health Services",External Placements,3rd Party Payments,Residential Care,A-TRIANGLE CARE LIMITED,FY5 ,08/03/2023,"23,980.00"
73733233,Social Care,"Children, Families and Community Health Services",External Placements,3rd Party Payments,Residential Care,A-TRIANGLE CARE LIMITED,FY5 ,08/03/2023,"26,549.29"
73732233,Social Care,"Children, Families and Community Health Services",External Placements,3rd Party Payments,Residential Care,A-TRIANGLE CARE LIMITED,FY5 ,08/03/2023,"26,549.29"
73897233,Senior Management Team,"Children, Families and Community Health Services",Senior Management Team - Staffing,Employees,Temporary / Agency - by Accounts Payable,ATTENTI LTD,EC2R,08/03/2023,"4,130.00"
73895233,Senior Management Team,"Children, Families and Community Health Services",Senior Management Team - Staffing,Employees,Temporary / Agency - by Accounts Payable,ATTENTI LTD,EC2R,08/03/2023,"4,130.00"
73359233,Senior Management Team,"Children, Families and Community Health Services",Senior Management Team - Staffing,Employees,Temporary / Agency - by Accounts Payable,ATTENTI LTD,EC2R,06/03/2023,"4,130.00"
76947233,Senior Management Team,"Children, Families and Community Health Services",Senior Management Team - Staffing,Employees,Temporary / Agency - by Accounts Payable,ATTENTI LTD,EC2R,22/03/2023,"1,888.00"
73958233,Senior Management Team,"Children, Families and Community Health Services",Senior Management Team - Staffing,Employees,Temporary / Agency - by Accounts Payable,ATTENTI LTD,EC2R,08/03/2023,"4,130.00"
78068233,Senior Management Team,"Children, Families and Community Health Services",Senior Management Team - Staffing,Employees,Temporary / Agency - by Accounts Payable,ATTENTI LTD,EC2R,27/03/2023,"2,950.00"
73361233,Senior Management Team,"Children, Families and Community Health Services",Senior Management Team - Staffing,Employees,Temporary / Agency - by Accounts Payable,ATTENTI LTD,EC2R,06/03/2023,"4,130.00"
76840233,Senior Management Team,"Children, Families and Community Health Services",Senior Management Team - Staffing,Employees,Temporary / Agency - by Accounts Payable,ATTENTI LTD,EC2R,22/03/2023,"3,245.00"
72922233,Senior Management Team,"Children, Families and Community Health Services",Senior Management Team - Staffing,Employees,Temporary / Agency - by Accounts Payable,ATTENTI LTD,EC2R,03/03/2023,"4,130.00"
76839233,Senior Management Team,"Children, Families and Community Health Services",Senior Management Team - Staffing,Employees,Temporary / Agency - by Accounts Payable,ATTENTI LTD,EC2R,22/03/2023,"4,130.00"
74581233,Senior Management Team,"Children, Families and Community Health Services",Senior Management Team - Staffing,Employees,Temporary / Agency - by Accounts Payable,ATTENTI LTD,EC2R,10/03/2023,"1,947.00"
78072233,Senior Management Team,"Children, Families and Community Health Services",Senior Management Team - Staffing,Employees,Temporary / Agency - by Accounts Payable,ATTENTI LTD,EC2R,27/03/2023,"2,360.00"
72921233,Senior Management Team,"Children, Families and Community Health Services",Senior Management Team - Staffing,Employees,Temporary / Agency - by Accounts Payable,ATTENTI LTD,EC2R,03/03/2023,"2,478.00"
78070233,Senior Management Team,"Children, Families and Community Health Services",Senior Management Team - Staffing,Employees,Temporary / Agency - by Accounts Payable,ATTENTI LTD,EC2R,27/03/2023,"2,950.00"
74999233,Senior Management Team,"Children, Families and Community Health Services",Senior Management Team - Staffing,Employees,Temporary / Agency - by Accounts Payable,ATTENTI LTD,EC2R,15/03/2023,"4,130.00"
74579233,Senior Management Team,"Children, Families and Community Health Services",Senior Management Team - Staffing,Employees,Temporary / Agency - by Accounts Payable,ATTENTI LTD,EC2R,10/03/2023,"3,245.00"
76948233,Senior Management Team,"Children, Families and Community Health Services",Senior Management Team - Staffing,Employees,Temporary / Agency - by Accounts Payable,ATTENTI LTD,EC2R,22/03/2023,"3,540.00"
73896233,Senior Management Team,"Children, Families and Community Health Services",Senior Management Team - Staffing,Employees,Temporary / Agency - by Accounts Payable,ATTENTI LTD,EC2R,08/03/2023,"4,130.00"
75623233,Digital & Business Change,Digital & Business Change,IT Projects,Supplies and Services,Equipment,AUDITEL RENTAL & SERVICE LTD,HP12,15/03/2023,"2,750.00"
79007857,Physical Support,Adults,Physical Support 65 and over,Transfer Payments,Personal Budget - Direct Payments - Domiciliary Care,REDACTED PERSONAL DATA,SP11,31/03/2023,"4,204.35"
76050372,Care Management & Safeguarding,Adults,Intermediate Care Team,3rd Party Payments,Residential Care,AURA CARE LIVING CIRENCESTER LTD,GL7 ,17/03/2023,"4,400.00"
76050372,Physical Support,Adults,Physical Support 65 and over,Income,Client Contribution - Nursing,AURA CARE LIVING CIRENCESTER LTD,GL7 ,17/03/2023,-396.4
76050372,Physical Support,Adults,Physical Support 65 and over,3rd Party Payments,Nursing Care,AURA CARE LIVING CIRENCESTER LTD,GL7 ,17/03/2023,"4,400.00"
76050372,Mental Health,Adults,Mental Health 65 and over,3rd Party Payments,Residential Care,AURA CARE LIVING CIRENCESTER LTD,GL7 ,17/03/2023,"5,600.00"
76050372,Mental Health,Adults,Mental Health 18-64,3rd Party Payments,Nursing Care,AURA CARE LIVING CIRENCESTER LTD,GL7 ,17/03/2023,"5,400.00"
76050372,Physical Support,Adults,Physical Support 65 and over,3rd Party Payments,Nursing Care,AURA CARE LIVING CIRENCESTER LTD,GL7 ,17/03/2023,"5,400.00"
76050372,Care Management & Safeguarding,Adults,Intermediate Care Team,3rd Party Payments,Residential Care,AURA CARE LIVING CIRENCESTER LTD,GL7 ,17/03/2023,"5,000.00"
76050372,Mental Health,Adults,Mental Health 18-64,3rd Party Payments,Nursing Care,AURA CARE LIVING CIRENCESTER LTD,GL7 ,17/03/2023,"5,014.29"
76050372,Care Management & Safeguarding,Adults,Intermediate Care Team,3rd Party Payments,Residential Care,AURA CARE LIVING CIRENCESTER LTD,GL7 ,17/03/2023,"3,800.00"
76050372,Physical Support,Adults,Physical Support 65 and over,Income,Client Contribution - Nursing,AURA CARE LIVING CIRENCESTER LTD,GL7 ,17/03/2023,-627.8
76050372,Mental Health,Adults,Mental Health 18-64,3rd Party Payments,Residential Care,AURA CARE LIVING CIRENCESTER LTD,GL7 ,17/03/2023,"4,600.00"
76050372,Mental Health,Adults,Mental Health 18-64,3rd Party Payments,Residential Care,AURA CARE LIVING CIRENCESTER LTD,GL7 ,17/03/2023,"6,720.00"
76050354,Learning Disabilities,Adults,Learning Disability 65 and over,Income,Client Contribution - Residential,AUTONOMY LIFE LIMITED,SN12,17/03/2023,-528.8
76050354,Learning Disabilities,Adults,Learning Disability 65 and over,3rd Party Payments,Residential Care,AUTONOMY LIFE LIMITED,SN12,17/03/2023,"9,460.00"
77669233,Planned Maintenance Programme,HRA Capital Financing,Planned Maintenance,Capital,Contractor Payments,AVIUM,SN25,24/03/2023,855
74984233,Planned Maintenance Programme,HRA Capital Financing,Planned Maintenance,Capital,Contractor Payments,AVIUM,SN25,15/03/2023,"24,517.00"
72848233,Care Management & Safeguarding,Adults,Mental Health Non-Pool,3rd Party Payments,Contracts - Social Care,AVON & WILTSHIRE MENTAL HEALTH PARTNERSHIP NHS TRUST,BA1 ,01/03/2023,"7,823.00"
72770233,Care Management & Safeguarding,Adults,Mental Health Non-Pool,3rd Party Payments,Contracts - Social Care,AVON & WILTSHIRE MENTAL HEALTH PARTNERSHIP NHS TRUST,BA1 ,01/03/2023,"3,201.59"
72740233,Care Management & Safeguarding,Adults,Mental Health Non-Pool,3rd Party Payments,Contracts - Social Care,AVON & WILTSHIRE MENTAL HEALTH PARTNERSHIP NHS TRUST,BA1 ,01/03/2023,"3,201.59"
72679233,Care Management & Safeguarding,Adults,Mental Health Non-Pool,3rd Party Payments,Contracts - Social Care,AVON & WILTSHIRE MENTAL HEALTH PARTNERSHIP NHS TRUST,BA1 ,01/03/2023,"3,201.59"
72846233,Care Management & Safeguarding,Adults,Mental Health Non-Pool,3rd Party Payments,Contracts - Social Care,AVON & WILTSHIRE MENTAL HEALTH PARTNERSHIP NHS TRUST,BA1 ,01/03/2023,"10,010.00"
72676233,Care Management & Safeguarding,Adults,Mental Health Non-Pool,3rd Party Payments,Contracts - Social Care,AVON & WILTSHIRE MENTAL HEALTH PARTNERSHIP NHS TRUST,BA1 ,01/03/2023,"25,612.72"
72739233,Care Management & Safeguarding,Adults,Mental Health Non-Pool,3rd Party Payments,Contracts - Social Care,AVON & WILTSHIRE MENTAL HEALTH PARTNERSHIP NHS TRUST,BA1 ,01/03/2023,"3,201.59"
72771233,Care Management & Safeguarding,Adults,Mental Health Non-Pool,3rd Party Payments,Contracts - Social Care,AVON & WILTSHIRE MENTAL HEALTH PARTNERSHIP NHS TRUST,BA1 ,01/03/2023,"3,201.59"
72851233,Care Management & Safeguarding,Adults,Mental Health Non-Pool,3rd Party Payments,Contracts - Social Care,AVON & WILTSHIRE MENTAL HEALTH PARTNERSHIP NHS TRUST,BA1 ,01/03/2023,"5,940.00"
72845233,Care Management & Safeguarding,Adults,Mental Health Non-Pool,3rd Party Payments,Contracts - Social Care,AVON & WILTSHIRE MENTAL HEALTH PARTNERSHIP NHS TRUST,BA1 ,01/03/2023,"10,057.00"
72994233,Care Management & Safeguarding,Adults,Mental Health Non-Pool,3rd Party Payments,Contracts - Social Care,AVON & WILTSHIRE MENTAL HEALTH PARTNERSHIP NHS TRUST,BA1 ,03/03/2023,"5,672.00"
72774233,Care Management & Safeguarding,Adults,Mental Health Non-Pool,3rd Party Payments,Contracts - Social Care,AVON & WILTSHIRE MENTAL HEALTH PARTNERSHIP NHS TRUST,BA1 ,01/03/2023,"-22,411.13"
72849234,Care Management & Safeguarding,Adults,Mental Health Non-Pool,3rd Party Payments,Contracts - Social Care,AVON & WILTSHIRE MENTAL HEALTH PARTNERSHIP NHS TRUST,BA1 ,01/03/2023,"5,967.00"
72853233,Care Management & Safeguarding,Adults,Mental Health Non-Pool,3rd Party Payments,Contracts - Social Care,AVON & WILTSHIRE MENTAL HEALTH PARTNERSHIP NHS TRUST,BA1 ,01/03/2023,"33,178.00"
72773233,Care Management & Safeguarding,Adults,Mental Health Non-Pool,3rd Party Payments,Contracts - Social Care,AVON & WILTSHIRE MENTAL HEALTH PARTNERSHIP NHS TRUST,BA1 ,01/03/2023,"3,201.59"
72737233,Care Management & Safeguarding,Adults,Mental Health Non-Pool,3rd Party Payments,Contracts - Social Care,AVON & WILTSHIRE MENTAL HEALTH PARTNERSHIP NHS TRUST,BA1 ,01/03/2023,"3,201.59"
76050255,Learning Disabilities,Adults,Learning Disability 18 - 64,3rd Party Payments,Residential Care,AVON AUTISTIC FOUNDATION LTD,BS11,17/03/2023,"7,100.28"
76050254,Learning Disabilities,Adults,Learning Disability 18 - 64,Income,Client Contribution - Residential,AVON AUTISTIC FOUNDATION LTD,BS11,17/03/2023,-438.8
76050255,Learning Disabilities,Adults,Learning Disability 18 - 64,Income,Client Contribution - Residential,AVON AUTISTIC FOUNDATION LTD,BS11,17/03/2023,-414.2
76050254,Learning Disabilities,Adults,Learning Disability 18 - 64,3rd Party Payments,Residential Care,AVON AUTISTIC FOUNDATION LTD,BS11,17/03/2023,"5,075.96"
77630361,Homelessness and Travellers,Housing Services,Leased Private Managed Accommodation,Transfer Payments,Payment of Costs,AVONPARK PROPERTIES LTD,SN3 ,24/03/2023,550
77630267,Homelessness and Travellers,Housing Services,Leased Private Managed Accommodation,Transfer Payments,Payment of Costs,AVONPARK PROPERTIES LTD,SN3 ,24/03/2023,615
77630268,Homelessness and Travellers,Housing Services,Leased Private Managed Accommodation,Transfer Payments,Payment of Costs,AVONPARK PROPERTIES LTD,SN3 ,24/03/2023,800
74436233,Care Management & Safeguarding,Adults,Mental Capacity & DOL,3rd Party Payments,Contracts - Social Care,BACK CARE SOLUTIONS LTD,PR5 ,10/03/2023,"1,379.95"
74249233,Streetsmart,Streetsmart,Lydiard House & Hotel Improvements,Capital,Contractor Payments,BAILEY PARTNERSHIP (CONSULTANTS) LLP,PL1 ,10/03/2023,"24,800.00"
73681233,Town Centre,"Economy, Growth and Place","No 7, 9 & 11 Carriage works @ Railway Village",Capital,Consultants,BAILEY PARTNERSHIP (CONSULTANTS) LLP,PL1 ,08/03/2023,"3,000.00"
75734233,Streetsmart,Streetsmart,Waste - Processing,Supplies and Services,Materials,BALER OPTIONS LTD,DE55,15/03/2023,"9,440.00"
77372233,Senior Management Team,"Children, Families and Community Health Services",Senior Management Team - Non Staffing,Supplies and Services,Consultants,REDACTED PERSONAL DATA,BS1 ,24/03/2023,"3,125.00"
73629233,Senior Management Team,"Children, Families and Community Health Services",Senior Management Team - Staffing,Employees,Temporary / Agency - by Accounts Payable,REDACTED PERSONAL DATA,BS1 ,08/03/2023,"3,125.00"
78332233,Licencing,Regulatory Services,Taxis & Private Hire,Supplies and Services,Testing / Inspection,BANSAL MOTORS,SN2 ,29/03/2023,"3,400.00"
78334233,Licencing,Regulatory Services,Taxis & Private Hire,Supplies and Services,Testing / Inspection,BANSAL MOTORS,SN2 ,29/03/2023,"2,510.00"
78336233,Licencing,Regulatory Services,Taxis & Private Hire,Supplies and Services,Testing / Inspection,BANSAL MOTORS,SN2 ,29/03/2023,"2,565.00"
79007839,Physical Support,Adults,Physical Support 65 and over,Transfer Payments,Personal Budget - Direct Payments - Domiciliary Care,REDACTED PERSONAL DATA,2969,31/03/2023,864.26
76050349,Memory & Cognition,Adults,Support for Memory and Cognition 65 and over,3rd Party Payments,Nursing Care,BARCHESTER HEALTHCARE HOMES,GL7 ,17/03/2023,"6,271.84"
75391233,Early Years Block,DSG Skills and Attainment,Free Nursery Education Commissioning - three & four  year olds,3rd Party Payments,Contracts - Child Care,BARN OWL PRE-SCHOOL,SN25,15/03/2023,"6,501.26"
75067233,Care Management & Safeguarding,Adults,Community Safety Partnership,3rd Party Payments,Contract Payments,BARNARDO'S,IG6 ,15/03/2023,"130,000.00"
72501233,School Transport,"Education, Inclusion and Skills",Mainstream School Transport,Employees,Temporary / Agency - by Accounts Payable,BARNES COACHES LTD,SN3 ,01/03/2023,"1,454.54"
73262233,School Transport,"Education, Inclusion and Skills",Mainstream School Transport,Employees,Temporary / Agency - by Accounts Payable,BARNES COACHES LTD,SN3 ,03/03/2023,709.84
72501233,School Transport,"Education, Inclusion and Skills",Mainstream School Transport,Transport Costs,Home to School Transport,BARNES COACHES LTD,SN3 ,01/03/2023,"7,600.00"
73262233,School Transport,"Education, Inclusion and Skills",Mainstream School Transport,Transport Costs,Home to School Transport,BARNES COACHES LTD,SN3 ,03/03/2023,"9,960.00"
76212233,Libraries,"Education, Inclusion and Skills",Library Shop,Supplies and Services,Goods for resale,BARNES COACHES LTD,SN3 ,17/03/2023,685.74
72759234,Non-HRA Vehicles,Transport,Vehicle & Plant replacement strategy,Capital,Acquisitions,BARTEC MUNICIPAL TECHNOLOGIES LTD,S75 ,01/03/2023,"2,796.00"
72769233,Non-HRA Vehicles,Transport,Vehicle & Plant replacement strategy,Capital,Acquisitions,BARTEC MUNICIPAL TECHNOLOGIES LTD,S75 ,01/03/2023,-620
72780234,Non-HRA Vehicles,Transport,Vehicle & Plant replacement strategy,Capital,Contractor Payments,BARTEC MUNICIPAL TECHNOLOGIES LTD,S75 ,01/03/2023,"-1,500.00"
72759234,Non-HRA Vehicles,Transport,Vehicle & Plant replacement strategy,Capital,Acquisitions,BARTEC MUNICIPAL TECHNOLOGIES LTD,S75 ,01/03/2023,620
75927233,Human Resources and Organisational Development,"People, Culture and Organisational Resilience",Organisational Development,Employees,Training,BARTHOLOMEW CARE CONSULTING LTD,WR14,17/03/2023,"1,000.00"
75930233,Human Resources and Organisational Development,"People, Culture and Organisational Resilience",Organisational Development,Employees,Training,BARTHOLOMEW CARE CONSULTING LTD,WR14,17/03/2023,"1,000.00"
78354234,Human Resources and Organisational Development,"People, Culture and Organisational Resilience",Organisational Development,Employees,Training,BARTHOLOMEW CARE CONSULTING LTD,WR14,29/03/2023,"1,000.00"
78483234,Town Centre,"Economy, Growth and Place","No 7, 9 & 11 Carriage works @ Railway Village",Capital,Consultants,BBA ARCHITECTS LTD,BA2 ,29/03/2023,"6,400.00"
74656233,High Needs Block,DSG Skills and Attainment,SEN Resourcing Assessment Panel,3rd Party Payments,Top up funding - Maintained providers Pre 16,BEECHCROFT INFANT SCHOOL,SN2 ,13/03/2023,"16,422.09"
76044248,DSG Other Funding,DSG Skills and Attainment,DFE Additional Grants,3rd Party Payments,Payment of Pupil Premium to school,BEECHCROFT INFANT SCHOOL,SN2 ,17/03/2023,"8,128.00"
75735233,Schools Maintenance,Skills & Attainment,DFC Allocations to Schools,Capital,Grant Payments,BEECHCROFT INFANT SCHOOL,SN2 ,15/03/2023,"14,854.52"
76050310,Learning Disabilities,Adults,Learning Disability 18 - 64,Income,Client Contribution - Residential,BEECHWOOD COURT LTD,CF10,17/03/2023,-322.56
76050310,Learning Disabilities,Adults,Learning Disability 18 - 64,3rd Party Payments,Residential Care,BEECHWOOD COURT LTD,CF10,17/03/2023,"26,739.16"
76050310,Learning Disabilities,Adults,Learning Disability 18 - 64,3rd Party Payments,Residential Care,BEECHWOOD COURT LTD,CF10,17/03/2023,"18,598.72"
78662233,Legal Services,Legal Services,Legal Services,Employees,Training,BELVEDERE LEGAL LTD,FY8 ,31/03/2023,"2,000.00"
73742233,Social Care,"Children, Families and Community Health Services",External Placements,3rd Party Payments,Residential Care,BENJAMIN UK LIMITED,HP23,08/03/2023,"17,692.01"
73439257,Social Care,"Children, Families and Community Health Services",External Placements,3rd Party Payments,Residential Care,BENJAMIN UK LIMITED,HP23,08/03/2023,"15,979.88"
73439256,Social Care,"Children, Families and Community Health Services",External Placements,3rd Party Payments,Residential Care,BENJAMIN UK LIMITED,HP23,08/03/2023,"17,692.01"
73439255,Social Care,"Children, Families and Community Health Services",External Placements,3rd Party Payments,Residential Care,BENJAMIN UK LIMITED,HP23,08/03/2023,"15,979.88"
75197233,Local Transport Plan Funded,Strategic Planning and Highways,Local Safety Schemes,Capital,Contractor Payments,BERNARD GEOMATICS LTD,SN2 ,15/03/2023,"1,658.00"
75200233,Highways Schemes,Strategic Planning and Highways,Non Highways Structures (Bridges within Parks),Capital,Contractor Payments,BERNARD GEOMATICS LTD,SN2 ,15/03/2023,"1,037.00"
77046233,Local Transport Plan Funded,Strategic Planning and Highways,Surface Water Management,Capital,Contractor Payments,BERNARD GEOMATICS LTD,SN2 ,22/03/2023,805
77046233,Local Transport Plan Funded,Strategic Planning and Highways,Surface Water Management,Capital,Contractor Payments,BERNARD GEOMATICS LTD,SN2 ,22/03/2023,805
79063233,Highways Schemes,Strategic Planning and Highways,Non Highways Structures (Bridges within Parks),Capital,Contractor Payments,BERNARD GEOMATICS LTD,SN2 ,31/03/2023,"2,609.00"
78370233,Local Transport Plan Funded,Strategic Planning and Highways,Local Safety Schemes,Capital,Contractor Payments,BERNARD GEOMATICS LTD,SN2 ,29/03/2023,"1,658.00"
73586233,Care Management & Safeguarding,Adults,Community Safety Partnership,3rd Party Payments,Contract Payments,BEST - BE A BETTER YOU,SN3 ,08/03/2023,"11,000.00"
75395233,Early Years Block,DSG Skills and Attainment,Free Nursery Education Commissioning - three & four  year olds,3rd Party Payments,Contracts - Child Care,REDACTED PERSONAL DATA,SN4 ,15/03/2023,"2,791.75"
78601233,Public Health,Public Health,Health Checks,Supplies and Services,Testing / Inspection,BHR PHARMACEUTICALS LTD,CV11,29/03/2023,"4,250.00"
79048233,Public Health,Public Health,Health Checks,Supplies and Services,Testing / Inspection,BHR PHARMACEUTICALS LTD,CV11,31/03/2023,"2,880.00"
78600233,Public Health,Public Health,Health Checks,Supplies and Services,Testing / Inspection,BHR PHARMACEUTICALS LTD,CV11,29/03/2023,750
75670234,Learning Disabilities,Adults,LD Day Services (OK4U),Supplies and Services,Service Charges,BIFFA WASTE SERVICES LTD,HP12,15/03/2023,"1,032.33"
78622233,Libraries,"Education, Inclusion and Skills",Central,Premises Costs,Waste,BIFFA WASTE SERVICES LTD,HP12,31/03/2023,476.4
75674233,Learning Disabilities,Adults,LD Day Services (OK4U),Supplies and Services,Service Charges,BIFFA WASTE SERVICES LTD,HP12,15/03/2023,-524.07
74933233,Care Management & Safeguarding,Adults,Community Safety Partnership,3rd Party Payments,Contract Payments,BIG BEAR PROMO LTD,LE19,15/03/2023,780
74828233,High Needs Block,DSG Skills and Attainment,Out of Borough School Fees,3rd Party Payments,OLA Special schools- Pre 16,BIRMINGHAM CITY COUNCIL,B2 2,13/03/2023,"18,343.52"
75735234,Schools Maintenance,Skills & Attainment,DFC Allocations to Schools,Capital,Grant Payments,BISHOPSTONE C E PRIMARY SCHOOL,SN6 ,15/03/2023,"10,922.76"
76044240,DSG Other Funding,DSG Skills and Attainment,DFE Additional Grants,3rd Party Payments,Payment of Pupil Premium to school,BISHOPSTONE C E PRIMARY SCHOOL,SN6 ,17/03/2023,914
73412233,Museums & Heritage,Culture & Heritage,Steam:Education & Curatorial,Supplies and Services,Hire / Rental,BLACKBOX-AV LTD,SA12,06/03/2023,552
72931233,Streetsmart,Streetsmart,Waterside Fleet Hires,Transport Costs,Vehicle Hire / Contract,BLAKEDALE LTD,PR7 ,03/03/2023,700
73439238,Social Care,"Children, Families and Community Health Services",External Placements,3rd Party Payments,Independent Fostering Agency Placements,BLUE SKY,HA1 ,08/03/2023,"3,402.56"
73439237,Social Care,"Children, Families and Community Health Services",External Placements,3rd Party Payments,Independent Fostering Agency Placements,BLUE SKY,HA1 ,08/03/2023,"5,880.00"
73439240,Social Care,"Children, Families and Community Health Services",External Placements,3rd Party Payments,Independent Fostering Agency Placements,BLUE SKY,HA1 ,08/03/2023,"5,359.76"
73439236,Social Care,"Children, Families and Community Health Services",External Placements,3rd Party Payments,Parent & Child Placements,BLUE SKY,HA1 ,08/03/2023,"4,662.00"
73439239,Social Care,"Children, Families and Community Health Services",External Placements,3rd Party Payments,Independent Fostering Agency Placements,BLUE SKY,HA1 ,08/03/2023,"3,402.56"
74353267,Learning Disabilities,Adults,Learning Disability 18 - 64,3rd Party Payments,Personal Budget - Domiciliary care,BLUEBIRD CARE (SWINDON),SN25,10/03/2023,"1,234.64"
74353264,Learning Disabilities,Adults,Learning Disability 18 - 64,3rd Party Payments,Personal Budget - Domiciliary care,BLUEBIRD CARE (SWINDON),SN25,10/03/2023,607.2
74353258,Learning Disabilities,Adults,Learning Disability 18 - 64,3rd Party Payments,Personal Budget - Domiciliary care,BLUEBIRD CARE (SWINDON),SN25,10/03/2023,"1,092.96"
74353265,Learning Disabilities,Adults,Learning Disability 18 - 64,3rd Party Payments,Personal Budget - Domiciliary care,BLUEBIRD CARE (SWINDON),SN25,10/03/2023,698.28
74353266,Physical Support,Adults,Physical Support 18 - 64,3rd Party Payments,Personal Budget - Domiciliary care,BLUEBIRD CARE (SWINDON),SN25,10/03/2023,910.8
74353262,Learning Disabilities,Adults,Learning Disability 18 - 64,3rd Party Payments,Personal Budget - Domiciliary care,BLUEBIRD CARE (SWINDON),SN25,10/03/2023,526.24
74353269,Learning Disabilities,Adults,Learning Disability 18 - 64,3rd Party Payments,Personal Budget - Domiciliary care,BLUEBIRD CARE (SWINDON),SN25,10/03/2023,"1,092.96"
74353268,Physical Support,Adults,Physical Support 65 and over,3rd Party Payments,Personal Budget - Domiciliary care,BLUEBIRD CARE (SWINDON),SN25,10/03/2023,"1,558.48"
77557234,Physical Support,Adults,Physical Support 65 and over,3rd Party Payments,Carers,BLUEBIRD CARE (SWINDON),SN25,24/03/2023,809.6
75403233,Early Years Block,DSG Skills and Attainment,Free Nursery Education Commissioning - two year olds,3rd Party Payments,Contracts - Child Care,REDACTED PERSONAL DATA,SN3 ,15/03/2023,633.42
75400233,Early Years Block,DSG Skills and Attainment,Free Nursery Education Commissioning - three & four  year olds,3rd Party Payments,Contracts - Child Care,REDACTED PERSONAL DATA,SN3 ,15/03/2023,"6,424.40"
76050335,Mental Health,Adults,Mental Health 65 and over,3rd Party Payments,Residential Care,BOLEALLER HOUSE LTD,EX15,17/03/2023,"4,719.32"
76081233,Physical Support,Adults,Fessey House,Supplies and Services,Food,BOOKER LIMITED,CH5 ,17/03/2023,28.5
76079234,Physical Support,Adults,Fessey House,Supplies and Services,Food,BOOKER LIMITED,CH5 ,17/03/2023,426.11
76076233,Physical Support,Adults,Fessey House,Supplies and Services,Food,BOOKER LIMITED,CH5 ,17/03/2023,606.49
76081233,Physical Support,Adults,Fessey House,Supplies and Services,Food,BOOKER LIMITED,CH5 ,17/03/2023,487.29
76076233,Physical Support,Adults,Fessey House,Supplies and Services,Food,BOOKER LIMITED,CH5 ,17/03/2023,143.46
76079234,Physical Support,Adults,Fessey House,Supplies and Services,Food,BOOKER LIMITED,CH5 ,17/03/2023,85.46
76050278,Physical Support,Adults,Physical Support 65 and over,3rd Party Payments,Nursing Care,BOTHWELLS LTD,HA6 ,17/03/2023,"2,384.04"
76050278,Physical Support,Adults,Physical Support 65 and over,Income,Client Contribution - Nursing,BOTHWELLS LTD,HA6 ,17/03/2023,-659.8
76050278,Physical Support,Adults,Physical Support 65 and over,3rd Party Payments,Nursing Care,BOTHWELLS LTD,HA6 ,17/03/2023,"-2,645.66"
76050278,Physical Support,Adults,Physical Support 65 and over,3rd Party Payments,Nursing Care,BOTHWELLS LTD,HA6 ,17/03/2023,"2,920.32"
76050278,Physical Support,Adults,Physical Support 65 and over,3rd Party Payments,Nursing Care,BOTHWELLS LTD,HA6 ,17/03/2023,"2,560.12"
76050278,Physical Support,Adults,Physical Support 65 and over,Income,Client Contribution - Nursing,BOTHWELLS LTD,HA6 ,17/03/2023,-648.28
76050278,Physical Support,Adults,Physical Support 65 and over,Income,Client Contribution - Nursing,BOTHWELLS LTD,HA6 ,17/03/2023,-781.4
76050278,Physical Support,Adults,Physical Support 65 and over,3rd Party Payments,Nursing Care,BOTHWELLS LTD,HA6 ,17/03/2023,"4,156.12"
76050278,Physical Support,Adults,Physical Support 65 and over,3rd Party Payments,Nursing Care,BOTHWELLS LTD,HA6 ,17/03/2023,"3,733.20"
76050278,Physical Support,Adults,Physical Support 65 and over,3rd Party Payments,Nursing Care,BOTHWELLS LTD,HA6 ,17/03/2023,"3,396.88"
76050278,Physical Support,Adults,Physical Support 18 - 64,3rd Party Payments,Nursing Care,BOTHWELLS LTD,HA6 ,17/03/2023,"2,560.12"
76050278,Physical Support,Adults,Physical Support 18 - 64,Income,Client Contribution - Nursing,BOTHWELLS LTD,HA6 ,17/03/2023,-425.6
76050278,Physical Support,Adults,Physical Support 65 and over,Income,Client Contribution - Nursing,BOTHWELLS LTD,HA6 ,17/03/2023,-909.16
76050278,Learning Disabilities,Adults,Learning Disability 18 - 64,3rd Party Payments,Nursing Care,BOTHWELLS LTD,HA6 ,17/03/2023,"-3,496.36"
76050278,Physical Support,Adults,Physical Support 18 - 64,Income,Client Contribution - Nursing,BOTHWELLS LTD,HA6 ,17/03/2023,-414.2
76050278,Physical Support,Adults,Physical Support 65 and over,3rd Party Payments,Nursing Care,BOTHWELLS LTD,HA6 ,17/03/2023,"5,337.95"
76050278,Physical Support,Adults,Physical Support 65 and over,3rd Party Payments,Nursing Care,BOTHWELLS LTD,HA6 ,17/03/2023,"2,043.46"
76050278,Physical Support,Adults,Physical Support 65 and over,Income,Client Contribution - Nursing,BOTHWELLS LTD,HA6 ,17/03/2023,-608.8
76050278,Physical Support,Adults,Physical Support 65 and over,3rd Party Payments,Nursing Care,BOTHWELLS LTD,HA6 ,17/03/2023,"3,639.51"
76553233,Early Help,Early Intervention & Prevention,"Holiday, Activities & Food Grant",3rd Party Payments,Contracts - Child Care,BRAMBLE HOUSE DAY NURSERY LTD,SN2 ,22/03/2023,504
75407233,Early Years Block,DSG Skills and Attainment,Free Nursery Education Commissioning - two year olds,3rd Party Payments,Contracts - Child Care,BRAMBLE HOUSE DAY NURSERY LTD,SN2 ,15/03/2023,"2,823.48"
76616233,High Needs Block,DSG Skills and Attainment,SEN Resourcing Assessment Panel,3rd Party Payments,Top up funding - Maintained providers Pre 16,BRAMBLE HOUSE DAY NURSERY LTD,SN2 ,22/03/2023,660
75404233,Early Years Block,DSG Skills and Attainment,Free Nursery Education Commissioning - three & four  year olds,3rd Party Payments,Contracts - Child Care,BRAMBLE HOUSE DAY NURSERY LTD,SN2 ,15/03/2023,"8,491.53"
72762233,Early Help,Early Intervention & Prevention,"Holiday, Activities & Food Grant",3rd Party Payments,Contracts - Child Care,BRAMBLE HOUSE DAY NURSERY LTD,SN2 ,01/03/2023,"2,236.00"
76043325,Social Care,"Children, Families and Community Health Services",External Placements,3rd Party Payments,Residential Care,BRANAS ISAF LIMITED,EN6 ,17/03/2023,"24,578.66"
79046233,Public Protection,Regulatory Services,Trading Standards,Supplies and Services,Discretionary Costs,BRISTOL CITY COUNCIL,BS1 ,31/03/2023,"2,783.03"
76231233,Property Management,Property,Corporate Repairs & Maintenance Programme,Premises Costs,Maintenance - Buildings,BRISTOL FIRE,BS37,17/03/2023,427
77133234,Property Management,Property,Corporate Repairs & Maintenance Programme,Premises Costs,Maintenance - Buildings,BRISTOL FIRE,BS37,24/03/2023,776.5
77218249,Responsive Repairs,Repairs,Responsive Repairs,3rd Party Payments,Contract Payments,BRISTOL FIRE,BS37,24/03/2023,"1,973.75"
78240245,Other Repairs,Repairs,Unallocated job costs from OPEN system,3rd Party Payments,Contract Payments,BRISTOL FIRE,BS37,29/03/2023,"1,724.25"
77348233,Town Centre,"Economy, Growth and Place","No 7, 9 & 11 Carriage works @ Railway Village",Capital,"Equipment, Fixtures & Fittings",BRITISH GAS TRADING LTD,S98 ,24/03/2023,846.16
Corporate Card Transaction,Homelessness and Travellers,Housing Services,Warm Welcome Project,Supplies and Services,Discretionary Costs,British Heart Foundation,,20/03/2023,886.67
76661233,Education,"Education, Inclusion and Skills",Education Psychology Service,Employees,Training,BRITISH PSYCHOLOGICAL SOCIETY,LE1 ,22/03/2023,"4,470.00"
75185233,,,Balance Sheet,Balance Sheet & Recharge,British Telecom invoices,BRITISH TELECOMMUNICATIONS PLC,NE82,15/03/2023,"20,820.15"
75187233,,,Balance Sheet,Balance Sheet & Recharge,Mobile phone invoices,BRITISH TELECOMMUNICATIONS PLC,NE82,15/03/2023,"21,776.21"
77047233,Public Health,Public Health,DAAT,3rd Party Payments,Contract Payments,BROADWAY LODGE LTD,BS24,22/03/2023,"4,400.00"
74736233,High Needs Block,DSG Skills and Attainment,Post 16 - New Responsibilties,3rd Party Payments,Independent Service Provider- Post 16,BRUNEL EDUCATION,SN25,13/03/2023,"109,689.43"
74706242,High Needs Block,DSG Skills and Attainment,SEN Resourcing Assessment Panel,3rd Party Payments,Top up funding - Academies and Free Schools Pre 16,REDACTED PERSONAL DATA,SN25,13/03/2023,"137,202.94"
77645246,High Needs Block,DSG Skills and Attainment,SEN Resourcing Assessment Panel,3rd Party Payments,Top up funding - Academies and Free Schools Pre 16,REDACTED PERSONAL DATA,SN25,27/03/2023,915.74
77645245,High Needs Block,DSG Skills and Attainment,SEN Resourcing Assessment Panel,3rd Party Payments,Top up funding - Academies and Free Schools Pre 16,REDACTED PERSONAL DATA,SN25,27/03/2023,"15,208.96"
73769233,School Transport,"Education, Inclusion and Skills",Special Educational Needs Transport,Employees,Temporary / Agency - by Accounts Payable,REDACTED PERSONAL DATA,SN25,08/03/2023,"11,401.60"
73770233,School Transport,"Education, Inclusion and Skills",Special Educational Needs Transport,Employees,Temporary / Agency - by Accounts Payable,REDACTED PERSONAL DATA,SN25,08/03/2023,"1,183.65"
74706239,High Needs Block,DSG Skills and Attainment,SEN Resourcing Assessment Panel,3rd Party Payments,Top up funding - Academies and Free Schools Pre 16,REDACTED PERSONAL DATA,SN25,13/03/2023,"53,705.36"
74721233,High Needs Block,DSG Skills and Attainment,SEN Resourcing Assessment Panel,3rd Party Payments,Top up funding - Academies and Free Schools Pre 16,REDACTED PERSONAL DATA,SN25,13/03/2023,"9,249.73"
74161233,School Transport,"Education, Inclusion and Skills",Special Educational Needs Transport,Employees,Temporary / Agency - by Accounts Payable,REDACTED PERSONAL DATA,SN25,10/03/2023,"3,103.04"
74729233,High Needs Block,DSG Skills and Attainment,SEN Resourcing Assessment Panel,3rd Party Payments,Top up funding - Academies and Free Schools Post 16,REDACTED PERSONAL DATA,SN25,13/03/2023,"49,688.36"
77994233,High Needs Block,DSG Skills and Attainment,SEN Resourcing Assessment Panel,Supplies and Services,Services,REDACTED PERSONAL DATA,SN2 ,27/03/2023,"3,630.00"
77645248,High Needs Block,DSG Skills and Attainment,SEN Resourcing Assessment Panel,3rd Party Payments,Top up funding - Academies and Free Schools Pre 16,REDACTED PERSONAL DATA,SN25,27/03/2023,"41,948.15"
74706240,High Needs Block,DSG Skills and Attainment,SEN Resourcing Assessment Panel,3rd Party Payments,Top up funding - Academies and Free Schools Pre 16,REDACTED PERSONAL DATA,SN25,13/03/2023,"100,379.13"
75372247,Early Years Block,DSG Skills and Attainment,Free Nursery Education Commissioning - three & four  year olds,3rd Party Payments,Contracts - Child Care,REDACTED PERSONAL DATA,SN25,15/03/2023,"2,889.11"
74714233,High Needs Block,DSG Skills and Attainment,SEN Resourcing Assessment Panel,3rd Party Payments,Top up funding - Academies and Free Schools Pre 16,REDACTED PERSONAL DATA,SN25,13/03/2023,"38,167.41"
74706245,High Needs Block,DSG Skills and Attainment,SEN Resourcing Assessment Panel,3rd Party Payments,Top up funding - Academies and Free Schools Pre 16,REDACTED PERSONAL DATA,SN25,13/03/2023,"139,410.69"
76702233,High Needs Block,DSG Skills and Attainment,SEN Resourcing Assessment Panel,Supplies and Services,Services,REDACTED PERSONAL DATA,SN2 ,22/03/2023,"1,210.00"
74725233,High Needs Block,DSG Skills and Attainment,SEN Resourcing Assessment Panel,3rd Party Payments,Top up funding - Academies and Free Schools Pre 16,REDACTED PERSONAL DATA,SN25,13/03/2023,"21,503.03"
77645250,High Needs Block,DSG Skills and Attainment,SEN Resourcing Assessment Panel,3rd Party Payments,Top up funding - Academies and Free Schools Post 16,REDACTED PERSONAL DATA,SN25,27/03/2023,"44,800.62"
74706238,High Needs Block,DSG Skills and Attainment,SEN Resourcing Assessment Panel,3rd Party Payments,Top up funding - Academies and Free Schools Pre 16,REDACTED PERSONAL DATA,SN25,13/03/2023,"119,880.14"
76696233,High Needs Block,DSG Skills and Attainment,SEN Resourcing Assessment Panel,Supplies and Services,Services,REDACTED PERSONAL DATA,SN2 ,22/03/2023,"12,960.00"
74726233,High Needs Block,DSG Skills and Attainment,SEN Resourcing Assessment Panel,3rd Party Payments,Top up funding - Academies and Free Schools Pre 16,REDACTED PERSONAL DATA,SN25,13/03/2023,"21,422.05"
74706241,High Needs Block,DSG Skills and Attainment,SEN Resourcing Assessment Panel,3rd Party Payments,Top up funding - Academies and Free Schools Pre 16,REDACTED PERSONAL DATA,SN25,13/03/2023,"97,448.07"
73801233,Landscaping & Open Space,Culture & Heritage & Art,Great Western Community Forest,Capital,Contractor Payments,BRUNEL SURVEYS LTD,CM20,08/03/2023,615
76218233,Landscaping & Open Space,Culture & Heritage & Art,Landscape Improvements at Greengridge & Blagrove,Capital,Contractor Payments,BRUNEL SURVEYS LTD,CM20,17/03/2023,"2,050.00"
73494233,NEV,"Economy, Growth and Place",Southern Connector Road,Capital,Consultants,BRUTON KNOWLES,GL2 ,06/03/2023,"1,248.23"
74339233,Highways & Transport,Highways & Transport,Traffic Management & Road Safety,3rd Party Payments,Contract Payments,BUCHANAN COMPUTING,W6 7,10/03/2023,914
76022233,NEV,"Economy, Growth and Place",Southern Connector Road,Capital,Contractor Payments,BUCKINGHAM GROUP CONTRACTING LIMITED,MK18,17/03/2023,"1,301,615.67"
72733233,Human Resources and Organisational Development,"People, Culture and Organisational Resilience",HR Systems & Strategy,Employees,Temporary / Agency - by Accounts Payable,BURMAN HR,DT1 ,01/03/2023,"2,250.00"
74197234,Human Resources and Organisational Development,"People, Culture and Organisational Resilience",HR Systems & Strategy,Employees,Temporary / Agency - by Accounts Payable,BURMAN HR,DT1 ,10/03/2023,"2,250.00"
76442233,Human Resources and Organisational Development,"People, Culture and Organisational Resilience",HR Systems & Strategy,Employees,Temporary / Agency - by Accounts Payable,BURMAN HR,DT1 ,20/03/2023,"2,250.00"
72694233,Human Resources and Organisational Development,"People, Culture and Organisational Resilience",HR Systems & Strategy,Employees,Temporary / Agency - by Accounts Payable,BURMAN HR,DT1 ,01/03/2023,"2,250.00"
75846233,Human Resources and Organisational Development,"People, Culture and Organisational Resilience",HR Systems & Strategy,Employees,Temporary / Agency - by Accounts Payable,BURMAN HR,DT1 ,17/03/2023,"1,350.00"
72732234,Human Resources and Organisational Development,"People, Culture and Organisational Resilience",HR Systems & Strategy,Employees,Temporary / Agency - by Accounts Payable,BURMAN HR,DT1 ,01/03/2023,"2,250.00"
76814233,Human Resources and Organisational Development,"People, Culture and Organisational Resilience",HR Systems & Strategy,Employees,Temporary / Agency - by Accounts Payable,BURMAN HR,DT1 ,22/03/2023,"2,250.00"
75408233,Early Years Block,DSG Skills and Attainment,Free Nursery Education Commissioning - three & four  year olds,3rd Party Payments,Contracts - Child Care,"BUSY BEES, BROOME MANOR",SN3 ,15/03/2023,"14,808.17"
75415233,Early Years Block,DSG Skills and Attainment,Free Nursery Education Commissioning - two year olds,3rd Party Payments,Contracts - Child Care,"BUSY BEES, PEATMOOR",SN5 ,15/03/2023,"2,277.00"
75123233,Early Years Block,DSG Skills and Attainment,Free Nursery Education Commissioning - three & four  year olds,3rd Party Payments,Contracts - Child Care,"BUSY BEES, PEATMOOR",SN5 ,15/03/2023,"1,151.50"
75412233,Early Years Block,DSG Skills and Attainment,Free Nursery Education Commissioning - three & four  year olds,3rd Party Payments,Contracts - Child Care,"BUSY BEES, PEATMOOR",SN5 ,15/03/2023,"9,028.45"
75416233,Early Years Block,DSG Skills and Attainment,Free Nursery Education Commissioning - three & four  year olds,3rd Party Payments,Contracts - Child Care,"BUSY BEES, ST ANDREWS RIDGE",SN25,15/03/2023,"18,327.15"
75417233,Early Years Block,DSG Skills and Attainment,Free Nursery Education Commissioning - two year olds,3rd Party Payments,Contracts - Child Care,"BUSY BEES, ST ANDREWS RIDGE",SN25,15/03/2023,910.8
78058235,Social Care,"Children, Families and Community Health Services",External Placements,3rd Party Payments,Independent Fostering Agency Placements,BY THE BRIDGE LIMITED,ME9 ,27/03/2023,"2,904.34"
76050296,Learning Disabilities,Adults,Learning Disability 18 - 64,Income,Client Contribution - Residential,C.H.O.I.C.E LTD,RG12,17/03/2023,-391
76050295,Learning Disabilities,Adults,Learning Disability 65 and over,3rd Party Payments,Residential Care,C.H.O.I.C.E LTD,RG12,17/03/2023,"8,898.76"
76050295,Learning Disabilities,Adults,Learning Disability 65 and over,Income,Client Contribution - Residential,C.H.O.I.C.E LTD,RG12,17/03/2023,-773.2
76050297,Physical Support,Adults,Physical Support 18 - 64,3rd Party Payments,Residential Care,C.H.O.I.C.E LTD,RG12,17/03/2023,"10,222.80"
76050297,Learning Disabilities,Adults,Learning Disability 18 - 64,3rd Party Payments,Residential Care,C.H.O.I.C.E LTD,RG12,17/03/2023,"10,934.04"
76050296,Learning Disabilities,Adults,Learning Disability 18 - 64,3rd Party Payments,Residential Care,C.H.O.I.C.E LTD,RG12,17/03/2023,"6,825.52"
76050292,Learning Disabilities,Adults,Learning Disability 18 - 64,3rd Party Payments,Residential Care,C.H.O.I.C.E LTD,RG12,17/03/2023,"6,691.00"
76050293,Learning Disabilities,Adults,Learning Disability 18 - 64,Income,Client Contribution - Residential,C.H.O.I.C.E LTD,RG12,17/03/2023,-415
76050296,Learning Disabilities,Adults,Learning Disability 65 and over,3rd Party Payments,Residential Care,C.H.O.I.C.E LTD,RG12,17/03/2023,"9,474.20"
76050295,Learning Disabilities,Adults,Learning Disability 65 and over,3rd Party Payments,Residential Care,C.H.O.I.C.E LTD,RG12,17/03/2023,"8,447.72"
76050297,Learning Disabilities,Adults,Learning Disability 18 - 64,Income,Client Contribution - Residential,C.H.O.I.C.E LTD,RG12,17/03/2023,-454.8
76050297,Learning Disabilities,Adults,Learning Disability 18 - 64,Income,Client Contribution - Residential,C.H.O.I.C.E LTD,RG12,17/03/2023,-207.6
76050291,Learning Disabilities,Adults,Learning Disability 18 - 64,Income,Client Contribution - Residential,C.H.O.I.C.E LTD,RG12,17/03/2023,-298.2
76050296,Learning Disabilities,Adults,Learning Disability 65 and over,Income,Client Contribution - Residential,C.H.O.I.C.E LTD,RG12,17/03/2023,-636.32
76050293,Learning Disabilities,Adults,Learning Disability 18 - 64,3rd Party Payments,Residential Care,C.H.O.I.C.E LTD,RG12,17/03/2023,"10,940.40"
76050292,Learning Disabilities,Adults,Learning Disability 18 - 64,Income,Client Contribution - Residential,C.H.O.I.C.E LTD,RG12,17/03/2023,-423
76050297,Physical Support,Adults,Physical Support 18 - 64,Income,Client Contribution - Residential,C.H.O.I.C.E LTD,RG12,17/03/2023,-414.2
76050296,Learning Disabilities,Adults,Learning Disability 65 and over,3rd Party Payments,Residential Care,C.H.O.I.C.E LTD,RG12,17/03/2023,"8,340.72"
76050297,Learning Disabilities,Adults,Learning Disability 18 - 64,3rd Party Payments,Residential Care,C.H.O.I.C.E LTD,RG12,17/03/2023,"11,677.40"
76050294,Learning Disabilities,Adults,Learning Disability 18 - 64,3rd Party Payments,Residential Care,C.H.O.I.C.E LTD,SO23,17/03/2023,"42,482.93"
76050291,Learning Disabilities,Adults,Learning Disability 18 - 64,3rd Party Payments,Residential Care,C.H.O.I.C.E LTD,RG12,17/03/2023,"9,147.40"
76050296,Learning Disabilities,Adults,Learning Disability 65 and over,Income,Client Contribution - Residential,C.H.O.I.C.E LTD,RG12,17/03/2023,-550.84
76050294,Learning Disabilities,Adults,Learning Disability 18 - 64,3rd Party Payments,Residential Care,C.H.O.I.C.E LTD,SO23,17/03/2023,910.73
76050295,Learning Disabilities,Adults,Learning Disability 65 and over,Income,Client Contribution - Residential,C.H.O.I.C.E LTD,RG12,17/03/2023,-607.6
72984233,Youth Offending,"Children, Families and Community Health Services",YJS - Effective Practise,Supplies and Services,Repairs & Maintenance,CACI LTD,W14 ,03/03/2023,"13,597.14"
73613233,Homeline,Special Services,Homeline,Supplies and Services,Equipment,CAIR (UK) LTD,HX1 ,08/03/2023,"6,750.00"
76873233,Homeline,Special Services,Homeline,Supplies and Services,Equipment,CAIR (UK) LTD,HX1 ,22/03/2023,"3,950.00"
76043326,Social Care,"Children, Families and Community Health Services",External Placements,3rd Party Payments,Residential Care,CALCOT SERVICES FOR CHILDREN LTD,RG7 ,17/03/2023,"29,361.34"
76043327,Social Care,"Children, Families and Community Health Services",External Placements,3rd Party Payments,Residential Care,CALCOT SERVICES FOR CHILDREN LTD,RG7 ,17/03/2023,"29,892.68"
79129271,Social Care,"Children, Families and Community Health Services",External Placements,3rd Party Payments,Independent Fostering Agency Placements,CALDECOTT FOSTERING LTD,TN25,31/03/2023,"7,146.52"
79007510,Learning Disabilities,Adults,Learning Disability 18 - 64,Transfer Payments,Personal Budget - Direct Payments - Domiciliary Care,REDACTED PERSONAL DATA,SP11,31/03/2023,"2,076.30"
79007704,Learning Disabilities,Adults,Learning Disability 18 - 64,Transfer Payments,Personal Budget - Direct Payments - Domiciliary Care,REDACTED PERSONAL DATA,SP11,31/03/2023,707.37
74061233,Lydiard Park,Culture & Heritage,Lydiard : Hotel Operations,Premises Costs,Gas,CALOR GAS LTD,CV34,08/03/2023,"1,974.50"
76960233,Highways & Transport,Highways & Transport,Highways Management,Supplies and Services,Services,CALVERT CONSULTING,SO40,22/03/2023,"1,250.00"
73002233,Social Care,"Children, Families and Community Health Services",External Placements,3rd Party Payments,Residential Care,CAMBIAN CHILDCARE LTD,EN6 ,03/03/2023,"23,731.96"
77722233,Social Care,"Children, Families and Community Health Services",External Placements,3rd Party Payments,Residential Care,CAMBIAN CHILDCARE LTD,EN6 ,27/03/2023,"26,274.67"
73001233,Social Care,"Children, Families and Community Health Services",External Placements,3rd Party Payments,Residential Care,CAMBIAN CHILDCARE LTD,EN6 ,03/03/2023,"26,274.67"
73000233,Social Care,"Children, Families and Community Health Services",External Placements,3rd Party Payments,Residential Care,CAMBIAN CHILDCARE LTD,EN6 ,03/03/2023,"26,274.67"
78937251,Physical Support,Adults,Physical Support 18 - 64,Transfer Payments,Personal Budget - Direct Payments - Domiciliary Care,REDACTED PERSONAL DATA,SN25,31/03/2023,940.61
77203233,Community Health & Wellbeing,Public Health,Live Well Hub,Supplies and Services,Design & Printing Costs,CANCER RESEARCH UK,E20 ,24/03/2023,600
78016233,Landscaping & Open Space,Culture & Heritage & Art,Spring Gardens Refurbishment,Capital,Contractor Payments,CANTILLON GROUP LTD,SN25,27/03/2023,"3,158.00"
78550234,Planned Maintenance Programme,HRA Capital Financing,Bathrooms,Capital,Contractor Payments,CANTILLON GROUP LTD,SN25,29/03/2023,"2,274.24"
78550234,Void Repairs,Supervision & Management,Void Property Repairs,3rd Party Payments,Contract Payments,CANTILLON GROUP LTD,SN25,29/03/2023,120.46
78550234,Void Repairs,Supervision & Management,Void Property Repairs,3rd Party Payments,Contract Payments,CANTILLON GROUP LTD,SN25,29/03/2023,275.54
78550234,Void Repairs,Supervision & Management,Void Property Repairs,3rd Party Payments,Contract Payments,CANTILLON GROUP LTD,SN25,29/03/2023,"7,820.17"
78550234,Void Repairs,Supervision & Management,Void Property Repairs,3rd Party Payments,Contract Payments,CANTILLON GROUP LTD,SN25,29/03/2023,"7,404.37"
78550234,Void Repairs,Supervision & Management,Void Property Repairs,3rd Party Payments,Contract Payments,CANTILLON GROUP LTD,SN25,29/03/2023,"1,943.09"
78550234,Planned Maintenance Programme,HRA Capital Financing,Bathrooms,Capital,Contractor Payments,CANTILLON GROUP LTD,SN25,29/03/2023,"2,249.83"
78550234,Planned Maintenance Programme,HRA Capital Financing,Bathrooms,Capital,Contractor Payments,CANTILLON GROUP LTD,SN25,29/03/2023,"1,819.04"
78550234,Void Repairs,Supervision & Management,Void Property Repairs,3rd Party Payments,Contract Payments,CANTILLON GROUP LTD,SN25,29/03/2023,"5,396.81"
78550234,Void Repairs,Supervision & Management,Void Property Repairs,3rd Party Payments,Contract Payments,CANTILLON GROUP LTD,SN25,29/03/2023,129.34
78550234,Void Repairs,Supervision & Management,Void Property Repairs,3rd Party Payments,Contract Payments,CANTILLON GROUP LTD,SN25,29/03/2023,"2,995.71"
78550234,Void Repairs,Supervision & Management,Void Property Repairs,3rd Party Payments,Contract Payments,CANTILLON GROUP LTD,SN25,29/03/2023,"5,214.97"
78550234,Void Repairs,Supervision & Management,Void Property Repairs,3rd Party Payments,Contract Payments,CANTILLON GROUP LTD,SN25,29/03/2023,"-50,000.00"
78550234,Planned Maintenance Programme,HRA Capital Financing,Kitchens,Capital,Contractor Payments,CANTILLON GROUP LTD,SN25,29/03/2023,"3,502.20"
78550234,Void Repairs,Supervision & Management,Void Property Repairs,3rd Party Payments,Contract Payments,CANTILLON GROUP LTD,SN25,29/03/2023,"8,027.18"
78016233,Landscaping & Open Space,Culture & Heritage & Art,Spring Gardens Refurbishment,Capital,Contractor Payments,CANTILLON GROUP LTD,SN25,27/03/2023,"1,000.00"
78550234,Void Repairs,Supervision & Management,Void Property Repairs,3rd Party Payments,Contract Payments,CANTILLON GROUP LTD,SN25,29/03/2023,"5,028.26"
78550234,Planned Maintenance Programme,HRA Capital Financing,Kitchens,Capital,Contractor Payments,CANTILLON GROUP LTD,SN25,29/03/2023,"4,121.31"
78550234,Void Repairs,Supervision & Management,Void Property Repairs,3rd Party Payments,Contract Payments,CANTILLON GROUP LTD,SN25,29/03/2023,"50,000.00"
78550234,Void Repairs,Supervision & Management,Void Property Repairs,3rd Party Payments,Contract Payments,CANTILLON GROUP LTD,SN25,29/03/2023,"5,102.88"
78550234,Void Repairs,Supervision & Management,Void Property Repairs,3rd Party Payments,Contract Payments,CANTILLON GROUP LTD,SN25,29/03/2023,"5,934.44"
78550234,Void Repairs,Supervision & Management,Void Property Repairs,3rd Party Payments,Contract Payments,CANTILLON GROUP LTD,SN25,29/03/2023,"4,790.02"
78550234,Void Repairs,Supervision & Management,Void Property Repairs,3rd Party Payments,Contract Payments,CANTILLON GROUP LTD,SN25,29/03/2023,"5,003.86"
78550234,Void Repairs,Supervision & Management,Void Property Repairs,3rd Party Payments,Contract Payments,CANTILLON GROUP LTD,SN25,29/03/2023,"14,008.95"
75882233,Revenues & Benefits,Revenues & Benefits,Revenues,3rd Party Payments,Strategic Partnership Service Charges,CAPITA BUSINESS SERVICES LTD,DL1 ,17/03/2023,"120,096.84"
75882233,Revenues & Benefits,Revenues & Benefits,Benefits,3rd Party Payments,Strategic Partnership Service Charges,CAPITA BUSINESS SERVICES LTD,DL1 ,17/03/2023,"1,925.00"
75882233,Revenues & Benefits,Revenues & Benefits,Benefits,3rd Party Payments,Strategic Partnership Service Charges,CAPITA BUSINESS SERVICES LTD,DL1 ,17/03/2023,"2,613.00"
75882233,Revenues & Benefits,Revenues & Benefits,Benefits,3rd Party Payments,Strategic Partnership Service Charges,CAPITA BUSINESS SERVICES LTD,DL1 ,17/03/2023,950
72983233,Digital & Business Change,Digital & Business Change,IT Operations,3rd Party Payments,Strategic Partnership Service Charges,CAPITA BUSINESS SERVICES LTD,DL1 ,03/03/2023,"12,974.81"
75882233,Revenues & Benefits,Revenues & Benefits,Revenues,3rd Party Payments,Strategic Partnership Service Charges,CAPITA BUSINESS SERVICES LTD,DL1 ,17/03/2023,"13,892.34"
78349233,Digital & Business Change,Digital & Business Change,IT Systems,Supplies and Services,License Costs,CAPITA BUSINESS SERVICES LTD,DL1 ,29/03/2023,"169,762.82"
75882233,Revenues & Benefits,Revenues & Benefits,Benefits,3rd Party Payments,Strategic Partnership Service Charges,CAPITA BUSINESS SERVICES LTD,DL1 ,17/03/2023,"212,484.03"
75882233,Revenues & Benefits,Revenues & Benefits,Benefits,3rd Party Payments,Strategic Partnership Service Charges,CAPITA BUSINESS SERVICES LTD,DL1 ,17/03/2023,285
73379233,Human Resources and Organisational Development,"People, Culture and Organisational Resilience",HR Systems & Strategy,Supplies and Services,Fees,CAPITA RESOURCING LTD,RG22,06/03/2023,"2,486.00"
73379233,Human Resources and Organisational Development,"People, Culture and Organisational Resilience",HR Systems & Strategy,Supplies and Services,Fees,CAPITA RESOURCING LTD,RG22,06/03/2023,900.06
79129267,Social Care,"Children, Families and Community Health Services",External Placements,3rd Party Payments,Independent Fostering Agency Placements,CAPSTONE FOSTER CARE (SW) LTD,TQ12,31/03/2023,"3,587.01"
79129265,Social Care,"Children, Families and Community Health Services",External Placements,3rd Party Payments,Independent Fostering Agency Placements,CAPSTONE FOSTER CARE (SW) LTD,TQ12,31/03/2023,"7,506.34"
79129266,Social Care,"Children, Families and Community Health Services",External Placements,3rd Party Payments,Independent Fostering Agency Placements,CAPSTONE FOSTER CARE (SW) LTD,TQ12,31/03/2023,"3,551.14"
72817233,Streetsmart,Streetsmart,Waterside Fleet Workshops,Supplies and Services,Materials,CAR AND TRUCK SERVICES (SWINDON) LTD,SN1 ,01/03/2023,220.93
73878233,Treasury,Corporate Finance,Treasury,Supplies and Services,Fees,CARD PROCESSING ADVISORY SERVICES LTD (CPRAS),W1W ,08/03/2023,"1,306.06"
74327233,Disabled Children,"Children, Families and Community Health Services",ICES Paediatric,Supplies and Services,Equipment,CARE & INDEPENDENCE SYSTEMS LTD,OX26,10/03/2023,"2,174.70"
77747233,Disabled Children,"Children, Families and Community Health Services",ICES Paediatric,Supplies and Services,Equipment,CARE & INDEPENDENCE SYSTEMS LTD,OX26,27/03/2023,"2,207.00"
72858233,Learning Disabilities,Adults,Service Delivery LD,Supplies and Services,Fees,CARE QUALITY COMMISSION,WF3 ,01/03/2023,456
72858233,Physical Support,Adults,Fessey House,Supplies and Services,Fees,CARE QUALITY COMMISSION,WF3 ,01/03/2023,"11,050.00"
72858233,Learning Disabilities,Adults,Service Delivery LD,Supplies and Services,Fees,CARE QUALITY COMMISSION,WF3 ,01/03/2023,"3,280.00"
72858233,Physical Support,Adults,Reablement Delivery,Supplies and Services,Fees,CARE QUALITY COMMISSION,WF3 ,01/03/2023,"1,705.00"
72858233,Learning Disabilities,Adults,Firethorn Close,Supplies and Services,Fees,CARE QUALITY COMMISSION,WF3 ,01/03/2023,"1,634.00"
75867233,Adults - Staffing and Supporting People,Adults,ASC Development Projects,Supplies and Services,Discretionary Costs,CARE247SOLUTIONS LTD,SN2 ,17/03/2023,"3,152.70"
75877233,Adults - Staffing and Supporting People,Adults,ASC Development Projects,Supplies and Services,Discretionary Costs,CARE247SOLUTIONS LTD,SN2 ,17/03/2023,"2,565.45"
76050371,Learning Disabilities,Adults,Learning Disability 18 - 64,3rd Party Payments,Supported Lodgings (Childrens)/Supported Living (Adults),CAREFORYOU LTD,N13 ,17/03/2023,"4,882.00"
74897233,Physical Support,Adults,Physical Support 65 and over,3rd Party Payments,Personal Budget - Domiciliary care,CAREWATCH (SWINDON),BA14,15/03/2023,"3,084.00"
74901233,Physical Support,Adults,Physical Support 65 and over,3rd Party Payments,Personal Budget - Domiciliary care,CAREWATCH (SWINDON),BA14,15/03/2023,842.96
74894233,Mental Health,Adults,Mental Health 65 and over,3rd Party Payments,Personal Budget - Domiciliary care,CAREWATCH (SWINDON),BA14,15/03/2023,215.88
74898233,Physical Support,Adults,Physical Support 65 and over,3rd Party Payments,Personal Budget - Domiciliary care,CAREWATCH (SWINDON),BA14,15/03/2023,534.56
74894233,Mental Health,Adults,Mental Health 65 and over,3rd Party Payments,Personal Budget - Domiciliary care,CAREWATCH (SWINDON),BA14,15/03/2023,107.94
74894233,Mental Health,Adults,Mental Health 65 and over,3rd Party Payments,Personal Budget - Domiciliary care,CAREWATCH (SWINDON),BA14,15/03/2023,693.9
74897236,Physical Support,Adults,Physical Support 65 and over,3rd Party Payments,Personal Budget - Domiciliary care,CAREWATCH (SWINDON),BA14,15/03/2023,"1,315.84"
74902234,Physical Support,Adults,Physical Support 65 and over,3rd Party Payments,Personal Budget - Domiciliary care,CAREWATCH (SWINDON),BA14,15/03/2023,801.84
74898236,Physical Support,Adults,Physical Support 18 - 64,3rd Party Payments,Personal Budget - Domiciliary care,CAREWATCH (SWINDON),BA14,15/03/2023,"2,970.92"
74895234,Physical Support,Adults,Physical Support 65 and over,3rd Party Payments,Personal Budget - Domiciliary care,CAREWATCH (SWINDON),BA14,15/03/2023,956.04
74899233,Physical Support,Adults,Physical Support 65 and over,3rd Party Payments,Personal Budget - Domiciliary care,CAREWATCH (SWINDON),BA14,15/03/2023,"1,439.20"
75386233,Social Care,"Children, Families and Community Health Services",Looked After Children Service,3rd Party Payments,Personal Needs,CARING FOR COMMUNITIES AND PEOPLE (CCP),GL50,15/03/2023,"1,580.57"
79129256,Social Care,"Children, Families and Community Health Services",Placement - Care Leaver Team,3rd Party Payments,Semi Independent,CARING FOR COMMUNITIES AND PEOPLE (CCP),GL50,31/03/2023,"2,510.00"
79129255,Social Care,"Children, Families and Community Health Services",Placement - Care Leaver Team,3rd Party Payments,Semi Independent,CARING FOR COMMUNITIES AND PEOPLE (CCP),GL50,31/03/2023,"2,360.00"
79129251,Social Care,"Children, Families and Community Health Services",Placement - Care Leaver Team,3rd Party Payments,Semi Independent,CARING FOR COMMUNITIES AND PEOPLE (CCP),GL50,31/03/2023,"2,360.00"
77367233,Social Care,"Children, Families and Community Health Services",Looked After Children Service,3rd Party Payments,Personal Needs,CARING FOR COMMUNITIES AND PEOPLE (CCP),GL50,24/03/2023,"1,085.10"
79129250,Social Care,"Children, Families and Community Health Services",Placement - Care Leaver Team,3rd Party Payments,Semi Independent,CARING FOR COMMUNITIES AND PEOPLE (CCP),GL50,31/03/2023,"3,590.00"
79129249,Social Care,"Children, Families and Community Health Services",Placement - Care Leaver Team,3rd Party Payments,Semi Independent,CARING FOR COMMUNITIES AND PEOPLE (CCP),GL50,31/03/2023,"3,320.00"
79129253,Social Care,"Children, Families and Community Health Services",Placement - Care Leaver Team,3rd Party Payments,Semi Independent,CARING FOR COMMUNITIES AND PEOPLE (CCP),GL50,31/03/2023,"2,360.00"
79129263,Social Care,"Children, Families and Community Health Services",External Placements,3rd Party Payments,Care Packages,CARING FOR COMMUNITIES AND PEOPLE (CCP),GL50,31/03/2023,"3,200.01"
79129257,Social Care,"Children, Families and Community Health Services",Unaccompanied Asylum Seeking Children (UASC),3rd Party Payments,Semi Independent,CARING FOR COMMUNITIES AND PEOPLE (CCP),GL50,31/03/2023,"3,320.00"
79129262,Social Care,"Children, Families and Community Health Services",External Placements,3rd Party Payments,Semi Independent,CARING FOR COMMUNITIES AND PEOPLE (CCP),GL50,31/03/2023,"7,000.00"
79129261,Social Care,"Children, Families and Community Health Services",External Placements,3rd Party Payments,Semi Independent,CARING FOR COMMUNITIES AND PEOPLE (CCP),GL50,31/03/2023,"5,140.00"
73804233,Disabled Children,"Children, Families and Community Health Services",DCT Daytime Short Breaks,3rd Party Payments,Respite Care,CARING FOR COMMUNITIES AND PEOPLE (CCP),GL50,08/03/2023,"1,207.75"
79129260,Social Care,"Children, Families and Community Health Services",Unaccompanied Asylum Seeking Children (UASC),3rd Party Payments,Semi Independent,CARING FOR COMMUNITIES AND PEOPLE (CCP),GL50,31/03/2023,"2,510.00"
79129259,Social Care,"Children, Families and Community Health Services",Unaccompanied Asylum Seeking Children (UASC),3rd Party Payments,Semi Independent,CARING FOR COMMUNITIES AND PEOPLE (CCP),GL50,31/03/2023,"2,360.00"
79129258,Social Care,"Children, Families and Community Health Services",Unaccompanied Asylum Seeking Children (UASC),3rd Party Payments,Semi Independent,CARING FOR COMMUNITIES AND PEOPLE (CCP),GL50,31/03/2023,"3,590.00"
74861233,Social Care,"Children, Families and Community Health Services",Looked After Children Service,3rd Party Payments,Personal Needs,CARING FOR COMMUNITIES AND PEOPLE (CCP),GL50,13/03/2023,"2,307.39"
79129252,Social Care,"Children, Families and Community Health Services",Placement - Care Leaver Team,3rd Party Payments,Semi Independent,CARING FOR COMMUNITIES AND PEOPLE (CCP),GL50,31/03/2023,"2,510.00"
79129254,Social Care,"Children, Families and Community Health Services",Placement - Care Leaver Team,3rd Party Payments,Semi Independent,CARING FOR COMMUNITIES AND PEOPLE (CCP),GL50,31/03/2023,"2,510.00"
76193233,Physical Support,Adults,Physical Support 65 and over,3rd Party Payments,Personal Budget - Domiciliary care,CARING HEART CARERS LIMITED,SN25,17/03/2023,"1,094.82"
73068244,Physical Support,Adults,Physical Support 65 and over,3rd Party Payments,Personal Budget - Domiciliary care,CARING HEART CARERS LIMITED,SN25,03/03/2023,945.76
73068246,Physical Support,Adults,Physical Support 18 - 64,3rd Party Payments,Personal Budget - Domiciliary care,CARING HEART CARERS LIMITED,SN25,03/03/2023,"1,069.12"
73068242,Physical Support,Adults,Physical Support 18 - 64,3rd Party Payments,Personal Budget - Domiciliary care,CARING HEART CARERS LIMITED,SN25,03/03/2023,863.52
73686233,Disabled Children,"Children, Families and Community Health Services",Aiming High for Disabled Children,3rd Party Payments,Cash Support,REDACTED PERSONAL DATA,SN3 ,08/03/2023,519.5
78968233,Learning Disabilities,Adults,Learning Disability 18 - 64,Transfer Payments,Personal Budget - Direct Payments - Domiciliary Care,REDACTED PERSONAL DATA,SN2 ,31/03/2023,"2,640.28"
79007594,Physical Support,Adults,Physical Support 65 and over,3rd Party Payments,Carers,REDACTED PERSONAL DATA,SP11,31/03/2023,591.27
79007600,Learning Disabilities,Adults,Learning Disability 18 - 64,Transfer Payments,Personal Budget - Direct Payments - Other,REDACTED PERSONAL DATA,SN2 ,31/03/2023,"2,840.89"
79007599,Learning Disabilities,Adults,Learning Disability 18 - 64,Transfer Payments,Personal Budget - Direct Payments - Domiciliary Care,REDACTED PERSONAL DATA,SN2 ,31/03/2023,"1,572.42"
75230233,Early Years Block,DSG Skills and Attainment,Free Nursery Education Commissioning - three & four  year olds,3rd Party Payments,Contracts - Child Care,REDACTED PERSONAL DATA,SN3 ,15/03/2023,"1,357.12"
73110233,Responsive Repairs,Repairs,Responsive Repairs,3rd Party Payments,Contract Payments,CARPET WAREHOUSE SWINDON LTD,SN2 ,03/03/2023,"3,373.33"
76123233,Responsive Repairs,Repairs,Responsive Repairs,3rd Party Payments,Contract Payments,CARPET WAREHOUSE SWINDON LTD,SN2 ,17/03/2023,"1,067.79"
73109233,Responsive Repairs,Repairs,Responsive Repairs,3rd Party Payments,Contract Payments,CARPET WAREHOUSE SWINDON LTD,SN2 ,03/03/2023,"3,373.33"
73258233,Highways Schemes,Strategic Planning and Highways,Key Routes East,Capital,Contractor Payments,CARYN KOH ART,SN25,03/03/2023,"2,239.00"
78979233,Learning Disabilities,Adults,Learning Disability 18 - 64,Transfer Payments,Personal Budget - Direct Payments - Domiciliary Care,REDACTED PERSONAL DATA,SN6 ,31/03/2023,"2,744.96"
72649233,Traded Services,"Education, Inclusion and Skills",Plas Pencelli Outdoor Education Centre,Supplies and Services,Materials,CASTELL HOWELL FOODS LIMITED,SA14,01/03/2023,415.62
74128233,Traded Services,"Education, Inclusion and Skills",Plas Pencelli Outdoor Education Centre,Supplies and Services,Materials,CASTELL HOWELL FOODS LIMITED,SA14,10/03/2023,826.85
74128233,Traded Services,"Education, Inclusion and Skills",Plas Pencelli Outdoor Education Centre,Supplies and Services,Materials,CASTELL HOWELL FOODS LIMITED,SA14,10/03/2023,117.55
72649233,Traded Services,"Education, Inclusion and Skills",Plas Pencelli Outdoor Education Centre,Supplies and Services,Materials,CASTELL HOWELL FOODS LIMITED,SA14,01/03/2023,"1,082.81"
73644233,Treasury,Corporate Finance,Private Finance Initiatives (PFI),Supplies and Services,Services,CASTLE GATE LEGAL & COMMERCIAL LTD,NG12,08/03/2023,"2,000.00"
72537233,Treasury,Corporate Finance,Private Finance Initiatives (PFI),Supplies and Services,Services,CASTLE GATE LEGAL & COMMERCIAL LTD,NG12,01/03/2023,"2,000.00"
77110233,Public Protection,Public Health,Food Safety,Supplies and Services,Fees,CATG LTD,LA4 ,22/03/2023,"1,197.00"
75206233,Public Protection,Public Health,Food Safety,Supplies and Services,Fees,CATG LTD,LA4 ,15/03/2023,738
76050265,Learning Disabilities,Adults,Learning Disability 18 - 64,3rd Party Payments,Supported Lodgings (Childrens)/Supported Living (Adults),CATHEDRAL HOMES,GL1 ,17/03/2023,"2,176.20"
76050265,Learning Disabilities,Adults,Learning Disability 18 - 64,3rd Party Payments,Supported Lodgings (Childrens)/Supported Living (Adults),CATHEDRAL HOMES,GL1 ,17/03/2023,631.8
76050265,Learning Disabilities,Adults,Learning Disability 18 - 64,Income,Client Contribution - Supported Living,CATHEDRAL HOMES,GL1 ,17/03/2023,-414.2
76050265,Learning Disabilities,Adults,Learning Disability 18 - 64,3rd Party Payments,Supported Lodgings (Childrens)/Supported Living (Adults),CATHEDRAL HOMES,GL1 ,17/03/2023,"3,018.60"
76050265,Learning Disabilities,Adults,Learning Disability 18 - 64,3rd Party Payments,Supported Lodgings (Childrens)/Supported Living (Adults),CATHEDRAL HOMES,GL1 ,17/03/2023,"1,597.04"
76050265,Learning Disabilities,Adults,Learning Disability 18 - 64,3rd Party Payments,Supported Lodgings (Childrens)/Supported Living (Adults),CATHEDRAL HOMES,GL1 ,17/03/2023,"4,176.92"
76050265,Learning Disabilities,Adults,Learning Disability 18 - 64,Income,Client Contribution - Personal Budget - Fairer Charging,CATHEDRAL HOMES,GL1 ,17/03/2023,-164.8
75791233,Learning Disabilities,Adults,Learning Disability 18 - 64,3rd Party Payments,Supported Accommodation Scheme,REDACTED PERSONAL DATA,SN6 ,22/03/2023,"1,969.44"
75791233,Learning Disabilities,Adults,Learning Disability 18 - 64,3rd Party Payments,Supported Accommodation Scheme,REDACTED PERSONAL DATA,SN6 ,22/03/2023,"2,426.63"
77220233,Highways & Transport,Highways & Transport,Capability Fund,Supplies and Services,Services,CC GROUND INVESTIGATIONS LTD,GL3 ,24/03/2023,"2,693.10"
73634233,Highways & Transport,Highways & Transport,Capability Fund,Supplies and Services,Services,CC GROUND INVESTIGATIONS LTD,GL3 ,08/03/2023,"2,011.00"
73438237,Mental Health,Adults,Mental Health 65 and over,3rd Party Payments,Personal Budget - Domiciliary care,CELTIC CARE SERVICES LTD,SN15,06/03/2023,582.8
73438236,Physical Support,Adults,Physical Support 65 and over,3rd Party Payments,Personal Budget - Domiciliary care,CELTIC CARE SERVICES LTD,SN15,06/03/2023,"2,622.60"
75868233,Adults - Staffing and Supporting People,Adults,ASC Development Projects,Supplies and Services,Discretionary Costs,CELTIC CARE SERVICES LTD,SN15,17/03/2023,"3,362.88"
73303233,Physical Support,Adults,Physical Support 65 and over,3rd Party Payments,Personal Budget - Domiciliary care,CELTIC CARE SERVICES LTD,SN15,03/03/2023,"2,590.56"
73305233,Physical Support,Adults,Physical Support 65 and over,3rd Party Payments,Personal Budget - Domiciliary care,CELTIC CARE SERVICES LTD,SN15,03/03/2023,"1,439.20"
73438238,Physical Support,Adults,Physical Support 65 and over,3rd Party Payments,Personal Budget - Domiciliary care,CELTIC CARE SERVICES LTD,SN15,06/03/2023,"1,457.00"
73304233,Mental Health,Adults,Mental Health 65 and over,3rd Party Payments,Personal Budget - Domiciliary care,CELTIC CARE SERVICES LTD,SN15,03/03/2023,575.68
75878233,Adults - Staffing and Supporting People,Adults,ASC Development Projects,Supplies and Services,Discretionary Costs,CELTIC CARE SERVICES LTD,SN15,17/03/2023,"2,736.48"
75781233,Streetsmart,Streetsmart,Waste - Processing,Supplies and Services,Repairs & Maintenance,CENTRAL CONVEYOR BELTING SERVICES LTD,RG19,15/03/2023,"1,766.12"
76570233,Early Help,Early Intervention & Prevention,"Holiday, Activities & Food Grant",3rd Party Payments,Contracts - Child Care,CENTRAL PRE-SCHOOL,SN1 ,22/03/2023,"1,564.00"
75425233,Early Years Block,DSG Skills and Attainment,Free Nursery Education Commissioning - three & four  year olds,3rd Party Payments,Contracts - Child Care,CENTRAL PRE-SCHOOL,SN1 ,15/03/2023,"16,242.83"
75428233,Early Years Block,DSG Skills and Attainment,Free Nursery Education Commissioning - two year olds,3rd Party Payments,Contracts - Child Care,CENTRAL PRE-SCHOOL,SN1 ,15/03/2023,"1,184.04"
77002233,Public Health,Public Health,Affordable Warmth,Supplies and Services,Service Charges,CENTRE FOR SUSTAINABLE ENERGY,BS1 ,22/03/2023,"25,000.00"
77817233,Public Health,Public Health,Supplementary SMTR Grant,3rd Party Payments,Contract Payments,CHANGE GROW LIVE SERVICES LTD,BN1 ,27/03/2023,"16,400.00"
77643233,Streetsmart,Streetsmart,Waterside Canteen,Supplies and Services,Food,CHARLES SAUNDERS LTD,BS37,24/03/2023,650.64
73241233,Lydiard Park,Culture & Heritage,Lydiard : Forest Caf�,Supplies and Services,Food,CHARLES SAUNDERS LTD,BS37,03/03/2023,409.83
77636233,Streetsmart,Streetsmart,Waterside Canteen,Supplies and Services,Food,CHARLES SAUNDERS LTD,BS37,24/03/2023,501.46
77636233,Streetsmart,Streetsmart,Waterside Canteen,Supplies and Services,Confectionary,CHARLES SAUNDERS LTD,BS37,24/03/2023,19.84
73241233,Lydiard Park,Culture & Heritage,Lydiard : Forest Caf�,Supplies and Services,Confectionary,CHARLES SAUNDERS LTD,BS37,03/03/2023,45.28
73241233,Lydiard Park,Culture & Heritage,Lydiard : Forest Caf�,Supplies and Services,Confectionary,CHARLES SAUNDERS LTD,BS37,03/03/2023,120.95
77643233,Streetsmart,Streetsmart,Waterside Canteen,Supplies and Services,Materials,CHARLES SAUNDERS LTD,BS37,24/03/2023,42.26
75583335,Early Years Block,DSG Skills and Attainment,Free Nursery Education Commissioning - three & four  year olds,3rd Party Payments,Contracts - Child Care,CHEEKY CHIMPS,SN2 ,15/03/2023,"7,845.32"
75583338,Early Years Block,DSG Skills and Attainment,Free Nursery Education Commissioning - two year olds,3rd Party Payments,Contracts - Child Care,CHEEKY CHIMPS,SN2 ,15/03/2023,"1,925.10"
76489233,Early Years Block,DSG Skills and Attainment,Free Nursery Education Commissioning - three & four  year olds,3rd Party Payments,Contracts - Child Care,CHEEKY CHIMPS,SN2 ,22/03/2023,750
73691233,Public Health,Public Health,Sexual Health & Health Protection Budget,3rd Party Payments,Contract Payments,CHELSEA & WESTMINSTER HOSPITAL NHS FOUNDATION TRUST,SW10,08/03/2023,615.25
73688233,Public Health,Public Health,Sexual Health & Health Protection Budget,3rd Party Payments,Contract Payments,CHELSEA & WESTMINSTER HOSPITAL NHS FOUNDATION TRUST,SW10,08/03/2023,"1,007.51"
73686234,Public Health,Public Health,Sexual Health & Health Protection Budget,3rd Party Payments,Contract Payments,CHELSEA & WESTMINSTER HOSPITAL NHS FOUNDATION TRUST,SW10,08/03/2023,"1,164.07"
73689233,Public Health,Public Health,Sexual Health & Health Protection Budget,3rd Party Payments,Contract Payments,CHELSEA & WESTMINSTER HOSPITAL NHS FOUNDATION TRUST,SW10,08/03/2023,974.52
73684233,Public Health,Public Health,Sexual Health & Health Protection Budget,3rd Party Payments,Contract Payments,CHELSEA & WESTMINSTER HOSPITAL NHS FOUNDATION TRUST,SW10,08/03/2023,"1,332.40"
73687233,Public Health,Public Health,Sexual Health & Health Protection Budget,3rd Party Payments,Contract Payments,CHELSEA & WESTMINSTER HOSPITAL NHS FOUNDATION TRUST,SW10,08/03/2023,"1,086.59"
73682234,Public Health,Public Health,Sexual Health & Health Protection Budget,3rd Party Payments,Contract Payments,CHELSEA & WESTMINSTER HOSPITAL NHS FOUNDATION TRUST,SW10,08/03/2023,"1,574.69"
76050239,Physical Support,Adults,Physical Support 65 and over,Income,Client Contribution - Nursing,CHERITON (SW CARE) LTD,GL52,17/03/2023,-635.71
76050239,Physical Support,Adults,Physical Support 65 and over,3rd Party Payments,Nursing Care,CHERITON (SW CARE) LTD,GL52,17/03/2023,"1,737.22"
76050239,Physical Support,Adults,Physical Support 65 and over,Income,Client Contribution - Nursing,CHERITON (SW CARE) LTD,GL52,17/03/2023,513.57
76050239,Physical Support,Adults,Physical Support 65 and over,3rd Party Payments,Residential Care,CHERITON (SW CARE) LTD,GL52,17/03/2023,"-3,931.03"
76050239,Physical Support,Adults,Physical Support 65 and over,3rd Party Payments,Nursing Care,CHERITON (SW CARE) LTD,GL52,17/03/2023,"2,285.82"
76050239,Physical Support,Adults,Physical Support 65 and over,3rd Party Payments,Nursing Care,CHERITON (SW CARE) LTD,GL52,17/03/2023,"5,459.27"
76050239,Physical Support,Adults,Physical Support 65 and over,Income,Client Contribution - Nursing,CHERITON (SW CARE) LTD,GL52,17/03/2023,-513.57
75583373,Early Years Block,DSG Skills and Attainment,Free Nursery Education Commissioning - three & four  year olds,3rd Party Payments,Contracts - Child Care,CHILD BASE NURSERIES,MK16,15/03/2023,"13,321.13"
75143233,Early Years Block,DSG Skills and Attainment,Free Nursery Education Commissioning - three & four  year olds,3rd Party Payments,Contracts - Child Care,CHILD BASE NURSERIES,MK16,15/03/2023,619.87
79120236,Responsive Repairs,Repairs,Responsive Repairs,3rd Party Payments,Contract Payments,CHILD SCAFFOLDING LTD,SN1 ,31/03/2023,720
79120237,Responsive Repairs,Repairs,Responsive Repairs,3rd Party Payments,Contract Payments,CHILD SCAFFOLDING LTD,SN1 ,31/03/2023,980
78640233,Responsive Repairs,Repairs,Responsive Repairs,3rd Party Payments,Contract Payments,CHILD SCAFFOLDING LTD,SN1 ,31/03/2023,880
79120233,Responsive Repairs,Repairs,Responsive Repairs,3rd Party Payments,Contract Payments,CHILD SCAFFOLDING LTD,SN1 ,31/03/2023,440
73889233,Responsive Repairs,Repairs,Responsive Repairs,3rd Party Payments,Contract Payments,CHILD SCAFFOLDING LTD,SN1 ,08/03/2023,65
79120239,Responsive Repairs,Repairs,Responsive Repairs,3rd Party Payments,Contract Payments,CHILD SCAFFOLDING LTD,SN1 ,31/03/2023,540
79120234,Responsive Repairs,Repairs,Responsive Repairs,3rd Party Payments,Contract Payments,CHILD SCAFFOLDING LTD,SN1 ,31/03/2023,480
79117233,Responsive Repairs,Repairs,Responsive Repairs,3rd Party Payments,Contract Payments,CHILD SCAFFOLDING LTD,SN1 ,31/03/2023,980
73889233,Responsive Repairs,Repairs,Responsive Repairs,3rd Party Payments,Contract Payments,CHILD SCAFFOLDING LTD,SN1 ,08/03/2023,260
73890233,Responsive Repairs,Repairs,Responsive Repairs,3rd Party Payments,Contract Payments,CHILD SCAFFOLDING LTD,SN1 ,08/03/2023,440
79120240,Responsive Repairs,Repairs,Responsive Repairs,3rd Party Payments,Contract Payments,CHILD SCAFFOLDING LTD,SN1 ,31/03/2023,660
73889233,Responsive Repairs,Repairs,Responsive Repairs,3rd Party Payments,Contract Payments,CHILD SCAFFOLDING LTD,SN1 ,08/03/2023,130
78639233,Responsive Repairs,Repairs,Responsive Repairs,3rd Party Payments,Contract Payments,CHILD SCAFFOLDING LTD,SN1 ,31/03/2023,880
79120235,Responsive Repairs,Repairs,Responsive Repairs,3rd Party Payments,Contract Payments,CHILD SCAFFOLDING LTD,SN1 ,31/03/2023,440
78645233,Responsive Repairs,Repairs,Responsive Repairs,3rd Party Payments,Contract Payments,CHILD SCAFFOLDING LTD,SN1 ,31/03/2023,880
78643233,Responsive Repairs,Repairs,Responsive Repairs,3rd Party Payments,Contract Payments,CHILD SCAFFOLDING LTD,SN1 ,31/03/2023,"1,100.00"
78638233,Responsive Repairs,Repairs,Responsive Repairs,3rd Party Payments,Contract Payments,CHILD SCAFFOLDING LTD,SN1 ,31/03/2023,"1,400.00"
79118233,Responsive Repairs,Repairs,Responsive Repairs,3rd Party Payments,Contract Payments,CHILD SCAFFOLDING LTD,SN1 ,31/03/2023,"1,050.00"
78644233,Responsive Repairs,Repairs,Responsive Repairs,3rd Party Payments,Contract Payments,CHILD SCAFFOLDING LTD,SN1 ,31/03/2023,860
79120238,Responsive Repairs,Repairs,Responsive Repairs,3rd Party Payments,Contract Payments,CHILD SCAFFOLDING LTD,SN1 ,31/03/2023,420
79119233,Responsive Repairs,Repairs,Responsive Repairs,3rd Party Payments,Contract Payments,CHILD SCAFFOLDING LTD,SN1 ,31/03/2023,"1,250.00"
78641233,Responsive Repairs,Repairs,Responsive Repairs,3rd Party Payments,Contract Payments,CHILD SCAFFOLDING LTD,SN1 ,31/03/2023,680
77189233,Responsive Repairs,Repairs,Responsive Repairs,3rd Party Payments,Contract Payments,CHILD SCAFFOLDING LTD,SN1 ,24/03/2023,440
73889233,Responsive Repairs,Repairs,Responsive Repairs,3rd Party Payments,Contract Payments,CHILD SCAFFOLDING LTD,SN1 ,08/03/2023,195
77534233,Highways & Transport,Highways & Transport,Traffic Management & Road Safety,Supplies and Services,Services,CHILD SEAT SAFETY LTD,PR26,24/03/2023,675
79129247,Social Care,"Children, Families and Community Health Services",Unaccompanied Asylum Seeking Children (UASC),3rd Party Payments,Independent Fostering Agency Placements,REDACTED PERSONAL DATA,B60 ,31/03/2023,"3,506.10"
79070233,Streetsmart,Streetsmart,Waste - Processing,Supplies and Services,Materials,CHIPPENHAM PALLET COMPANY LTD (CPC PRODUCTS LTD),SN14,31/03/2023,"1,530.00"
76975234,Parking & Bus lanes,Highway Operations and Car Parking,Street Parking,Supplies and Services,Materials,CHIPSIDE LTD,SN15,22/03/2023,722.76
76975234,Parking & Bus lanes,Highway Operations and Car Parking,Street Parking,Supplies and Services,Materials,CHIPSIDE LTD,SN15,22/03/2023,471.45
75090233,Parking & Bus lanes,Highway Operations and Car Parking,Street Parking,Supplies and Services,Fees,CHIPSIDE LTD,SN15,15/03/2023,855.54
76975234,Parking & Bus lanes,Highway Operations and Car Parking,Bus Lane Enforcement,Supplies and Services,Materials,CHIPSIDE LTD,SN15,22/03/2023,306.6
76975234,Parking & Bus lanes,Highway Operations and Car Parking,Bus Lane Enforcement,Supplies and Services,Materials,CHIPSIDE LTD,SN15,22/03/2023,"1,956.24"
76044241,DSG Other Funding,DSG Skills and Attainment,DFE Additional Grants,3rd Party Payments,Payment of Pupil Premium to school,CHISELDON PRIMARY SCHOOL,SN4 ,17/03/2023,"3,679.00"
75238233,Early Years Block,DSG Skills and Attainment,Free Nursery Education Commissioning - three & four  year olds,3rd Party Payments,Contracts - Child Care,CHISELDON PRIMARY SCHOOL,SN4 ,15/03/2023,"12,100.44"
76487233,Early Years Block,DSG Skills and Attainment,Free Nursery Education Commissioning - three & four  year olds,3rd Party Payments,Contracts - Child Care,CHISELDON PRIMARY SCHOOL,SN4 ,22/03/2023,"2,280.00"
75237233,Early Years Block,DSG Skills and Attainment,Free Nursery Education Commissioning - two year olds,3rd Party Payments,Contracts - Child Care,CHISELDON PRIMARY SCHOOL,SN4 ,15/03/2023,"3,990.96"
75736233,Schools Maintenance,Skills & Attainment,DFC Allocations to Schools,Capital,Grant Payments,CHISELDON PRIMARY SCHOOL,SN4 ,15/03/2023,"13,589.94"
76050279,Learning Disabilities,Adults,Learning Disability 65 and over,Income,Client Contribution - Residential,CHOSEN CARE LTD,GL3 ,17/03/2023,-605.8
76050279,Learning Disabilities,Adults,Learning Disability 65 and over,3rd Party Payments,Residential Care,CHOSEN CARE LTD,GL3 ,17/03/2023,"7,297.20"
76050279,Learning Disabilities,Adults,Learning Disability 18 - 64,3rd Party Payments,Residential Care,CHOSEN CARE LTD,GL3 ,17/03/2023,"7,145.08"
76050279,Learning Disabilities,Adults,Learning Disability 18 - 64,Income,Client Contribution - Residential,CHOSEN CARE LTD,GL3 ,17/03/2023,-319
76050279,Learning Disabilities,Adults,Learning Disability 18 - 64,Income,Client Contribution - Residential,CHOSEN CARE LTD,GL3 ,17/03/2023,-359
76050279,Learning Disabilities,Adults,Learning Disability 18 - 64,3rd Party Payments,Residential Care,CHOSEN CARE LTD,GL3 ,17/03/2023,"7,137.76"
79007323,Physical Support,Adults,Physical Support 18 - 64,Transfer Payments,Personal Budget - Direct Payments - Domiciliary Care,REDACTED PERSONAL DATA,SN25,31/03/2023,874.61
77933234,Social Care,"Children, Families and Community Health Services",Placement Adoption Service,3rd Party Payments,Adoption Allowances,REDACTED PERSONAL DATA,SN6 ,27/03/2023,699.84
74827271,Social Care,"Children, Families and Community Health Services",Placement Adoption Service,3rd Party Payments,Adoption Allowances,REDACTED PERSONAL DATA,SN6 ,13/03/2023,699.84
74827272,Social Care,"Children, Families and Community Health Services",Placement Adoption Service,3rd Party Payments,Adoption Allowances,REDACTED PERSONAL DATA,SN6 ,13/03/2023,"1,055.64"
77934233,Social Care,"Children, Families and Community Health Services",Placement Adoption Service,3rd Party Payments,Adoption Allowances,REDACTED PERSONAL DATA,SN6 ,27/03/2023,"1,055.64"
76874233,Sheltered Accomodation,Special Services,Sheltered Housing Management General,Supplies and Services,Repairs & Maintenance,CHUBB FIRE & SECURITY T/A CHUBB COMMUNITY CARE,BB1 ,22/03/2023,738
76050315,Physical Support,Adults,Physical Support 65 and over,Income,Client Contribution - Nursing,CHURCH VIEW,SN3 ,17/03/2023,-477.36
76050315,Physical Support,Adults,Physical Support 65 and over,Income,Client Contribution - Nursing,CHURCH VIEW,SN3 ,17/03/2023,-930.44
76050315,Physical Support,Adults,Physical Support 65 and over,Income,Client Contribution - Nursing,CHURCH VIEW,SN3 ,17/03/2023,-741.88
76050315,Physical Support,Adults,Physical Support 65 and over,Income,Client Contribution - Nursing,CHURCH VIEW,SN3 ,17/03/2023,-606.52
76050315,Physical Support,Adults,Physical Support 65 and over,Income,Client Contribution - Nursing,CHURCH VIEW,SN3 ,17/03/2023,-610
76050315,Physical Support,Adults,Physical Support 65 and over,Income,Client Contribution - Nursing,CHURCH VIEW,SN3 ,17/03/2023,-833.52
76050315,Physical Support,Adults,Physical Support 65 and over,Income,Client Contribution - Nursing,CHURCH VIEW,SN3 ,17/03/2023,-999.64
76050315,Physical Support,Adults,Physical Support 65 and over,3rd Party Payments,Nursing Care,CHURCH VIEW,SN3 ,17/03/2023,"3,840.18"
76050315,Physical Support,Adults,Physical Support 18 - 64,Income,Client Contribution - Nursing,CHURCH VIEW,SN3 ,17/03/2023,-552.52
76050315,Physical Support,Adults,Physical Support 18 - 64,3rd Party Payments,Nursing Care,CHURCH VIEW,SN3 ,17/03/2023,"2,668.72"
76050315,Physical Support,Adults,Physical Support 65 and over,3rd Party Payments,Nursing Care,CHURCH VIEW,SN3 ,17/03/2023,"-4,974.00"
76050315,Physical Support,Adults,Physical Support 65 and over,Income,Client Contribution - Nursing,CHURCH VIEW,SN3 ,17/03/2023,-984.92
76050315,Physical Support,Adults,Physical Support 65 and over,3rd Party Payments,Nursing Care,CHURCH VIEW,SN3 ,17/03/2023,"5,235.68"
76050315,Physical Support,Adults,Physical Support 65 and over,Income,Client Contribution - Nursing,CHURCH VIEW,SN3 ,17/03/2023,-763.24
76050315,Physical Support,Adults,Physical Support 65 and over,Income,Client Contribution - Nursing,CHURCH VIEW,SN3 ,17/03/2023,"-1,288.96"
76050315,Physical Support,Adults,Physical Support 65 and over,Income,Client Contribution - Nursing,CHURCH VIEW,SN3 ,17/03/2023,-627.8
76050315,Physical Support,Adults,Physical Support 65 and over,Income,Client Contribution - Nursing,CHURCH VIEW,SN3 ,17/03/2023,-979.88
76050315,Physical Support,Adults,Physical Support 65 and over,3rd Party Payments,Nursing Care,CHURCH VIEW,SN3 ,17/03/2023,"25,064.28"
76050315,Physical Support,Adults,Physical Support 65 and over,3rd Party Payments,Nursing Care,CHURCH VIEW,SN3 ,17/03/2023,"4,200.00"
76050315,Physical Support,Adults,Physical Support 65 and over,3rd Party Payments,Nursing Care,CHURCH VIEW,SN3 ,17/03/2023,"2,560.12"
76050315,Physical Support,Adults,Physical Support 65 and over,Income,Client Contribution - Nursing,CHURCH VIEW,SN3 ,17/03/2023,-800.96
76050315,Physical Support,Adults,Physical Support 65 and over,Income,Client Contribution - Nursing,CHURCH VIEW,SN3 ,17/03/2023,-535.88
76050315,Physical Support,Adults,Physical Support 65 and over,3rd Party Payments,Nursing Care,CHURCH VIEW,SN3 ,17/03/2023,"5,800.00"
76050315,Physical Support,Adults,Physical Support 65 and over,3rd Party Payments,Nursing Care,CHURCH VIEW,SN3 ,17/03/2023,"2,668.72"
76050315,Physical Support,Adults,Physical Support 65 and over,Income,Client Contribution - Nursing,CHURCH VIEW,SN3 ,17/03/2023,"-3,461.29"
76050315,Physical Support,Adults,Physical Support 65 and over,Income,Client Contribution - Nursing,CHURCH VIEW,SN3 ,17/03/2023,-668.44
76050315,Physical Support,Adults,Physical Support 65 and over,Income,Client Contribution - Nursing,CHURCH VIEW,SN3 ,17/03/2023,-620.28
76050340,Learning Disabilities,Adults,Learning Disability 18 - 64,Income,Client Contribution - Residential,CIDERSTONE HOUSE,SN25,17/03/2023,-438.8
76050340,Learning Disabilities,Adults,Learning Disability 18 - 64,Income,Client Contribution - Residential,CIDERSTONE HOUSE,SN25,17/03/2023,-425.6
76050340,Learning Disabilities,Adults,Learning Disability 18 - 64,3rd Party Payments,Residential Care,CIDERSTONE HOUSE,SN25,17/03/2023,"10,495.76"
76050340,Learning Disabilities,Adults,Learning Disability 18 - 64,3rd Party Payments,Residential Care,CIDERSTONE HOUSE,SN25,17/03/2023,"10,018.48"
76050340,Learning Disabilities,Adults,Learning Disability 18 - 64,3rd Party Payments,Residential Care,CIDERSTONE HOUSE,SN25,17/03/2023,"9,703.96"
76050340,Learning Disabilities,Adults,Learning Disability 18 - 64,Income,Client Contribution - Residential,CIDERSTONE HOUSE,SN25,17/03/2023,-414.2
76050340,Learning Disabilities,Adults,Learning Disability 18 - 64,3rd Party Payments,Residential Care,CIDERSTONE HOUSE,SN25,17/03/2023,"9,895.88"
76050340,Learning Disabilities,Adults,Learning Disability 18 - 64,3rd Party Payments,Residential Care,CIDERSTONE HOUSE,SN25,17/03/2023,"11,049.40"
76050340,Learning Disabilities,Adults,Learning Disability 18 - 64,Income,Client Contribution - Residential,CIDERSTONE HOUSE,SN25,17/03/2023,-677.6
76050340,Learning Disabilities,Adults,Learning Disability 18 - 64,Income,Client Contribution - Residential,CIDERSTONE HOUSE,SN25,17/03/2023,-423
78362233,Finance Team,Finance & Procurement Service,Financial Support,Supplies and Services,Subscriptions,CIPFA BUSINESS LIMITED,E1 8,29/03/2023,"2,030.00"
75196233,Finance Team,Finance & Procurement Service,Financial Support,Supplies and Services,Subscriptions,CIPFA BUSINESS LIMITED,E1 8,15/03/2023,"6,890.00"
75198233,Finance Team,Finance & Procurement Service,Financial Support,Supplies and Services,Subscriptions,CIPFA BUSINESS LIMITED,E1 8,15/03/2023,"5,330.00"
75977233,Revenues & Benefits,Revenues & Benefits,Benefits,Supplies and Services,Subscriptions,CIPFA BUSINESS LIMITED,E1 8,17/03/2023,"2,485.00"
78360234,Internal Audit,Internal Audit,Internal Audit,Supplies and Services,Services,CIPFA BUSINESS LIMITED,E1 8,29/03/2023,"2,240.00"
74739233,High Needs Block,DSG Skills and Attainment,Post 16 - New Responsibilties,3rd Party Payments,FE Colleges,CIRENCESTER COLLEGE,GL7 ,13/03/2023,"3,255.08"
74735233,High Needs Block,DSG Skills and Attainment,Out of Borough School Fees,3rd Party Payments,Other Local Authority Mainstream Schools- Pre 16,CIRENCESTER KINGSHILL SCHOOL,GL7 ,13/03/2023,609.58
74734233,High Needs Block,DSG Skills and Attainment,Out of Borough School Fees,3rd Party Payments,Other Local Authority Mainstream Schools- Pre 16,CIRENCESTER KINGSHILL SCHOOL,GL7 ,13/03/2023,609.58
77610233,Homelessness and Travellers,Housing Services,Leased Private Managed Accommodation,Transfer Payments,Payment of Costs,REDACTED PERSONAL DATA,SN5 ,24/03/2023,575
79045233,Licencing,Regulatory Services,Licensing,Supplies and Services,Equipment,CIRRUS RESEARCH PLC,YO14,31/03/2023,740.3
73802233,Town Centre,"Economy, Growth and Place",Fleming Way Improvement Scheme,Capital,Contractor Payments,CITYFIBRE LIMITED,WC2E,08/03/2023,"17,722.50"
73800233,Elections & Democracy,Elections and Democracy,Register of Electors,Supplies and Services,Post,CIVICA ELECTION SERVICES LIMITED,N8 0,08/03/2023,538.5
79094233,Elections & Democracy,Elections and Democracy,Register of Electors,Supplies and Services,Post,CIVICA ELECTION SERVICES LIMITED,N8 0,31/03/2023,914.75
79094233,Elections & Democracy,Elections and Democracy,Register of Electors,Supplies and Services,Materials,CIVICA ELECTION SERVICES LIMITED,N8 0,31/03/2023,131.23
72581233,Elections & Democracy,Elections and Democracy,Register of Electors,Supplies and Services,Post,CIVICA ELECTION SERVICES LIMITED,N8 0,01/03/2023,"1,041.20"
73800233,Elections & Democracy,Elections and Democracy,Register of Electors,Supplies and Services,Materials,CIVICA ELECTION SERVICES LIMITED,N8 0,08/03/2023,236.53
72581233,Elections & Democracy,Elections and Democracy,Register of Electors,Supplies and Services,Materials,CIVICA ELECTION SERVICES LIMITED,N8 0,01/03/2023,141.82
76025233,Elections & Democracy,Elections and Democracy,Local Elections,Supplies and Services,Service Charges,CIVICA UK LTD,DY1 ,17/03/2023,"5,951.79"
76025233,Elections & Democracy,Elections and Democracy,Register of Electors,Supplies and Services,Services,CIVICA UK LTD,DY1 ,17/03/2023,"16,153.35"
72927233,Libraries,"Education, Inclusion and Skills",Library Delivery,Supplies and Services,Materials,CIVICA UK LTD,DY1 ,03/03/2023,"1,075.00"
72951233,Planning & Regulatory,Strategic Planning,Economy & Development Management,Employees,Temporary / Agency - by Accounts Payable,REDACTED PERSONAL DATA,BS37,03/03/2023,"10,086.90"
77058233,Disabled Children,"Children, Families and Community Health Services",DCT Daytime Short Breaks,Transfer Payments,Personal Budget - Direct Payments - Other,REDACTED PERSONAL DATA,SN3 ,22/03/2023,"1,682.00"
75242233,Early Years Block,DSG Skills and Attainment,Free Nursery Education Commissioning - three & four  year olds,3rd Party Payments,Contracts - Child Care,REDACTED PERSONAL DATA,SN2 ,15/03/2023,536.38
73440233,Care Management & Safeguarding,Adults,Swindon Safeguarding Partnershiph,Supplies and Services,Fees,CLARK WARD ASSOCIATES LTD,SN1 ,06/03/2023,"1,160.00"
74420233,Property Management,Property,Property Assets,Supplies and Services,Subscriptions,CLARKE WILLMOTT LLP,BS1 ,10/03/2023,"4,785.00"
74421233,Property Management,Property,Property Assets,Supplies and Services,Subscriptions,CLARKE WILLMOTT LLP,BS1 ,10/03/2023,"1,290.00"
75202233,Disabled Children,"Children, Families and Community Health Services",DCT Daytime Short Breaks,Transfer Payments,Personal Budget - Direct Payments - Other,REDACTED PERSONAL DATA,SN25,15/03/2023,610.2
76903233,Care Management & Safeguarding,Adults,Community Safety Partnership,3rd Party Payments,Contract Payments,CLEARVIEW COMMUNICATIONS LTD,CM1 ,22/03/2023,448
76340233,Early Years Block,DSG Skills and Attainment,Free Nursery Education Commissioning - three & four  year olds,3rd Party Payments,Contracts - Child Care,CLIFTON ST PRE-SCHOOL,SN1 ,22/03/2023,800
76484233,Early Years Block,DSG Skills and Attainment,Free Nursery Education Commissioning - three & four  year olds,3rd Party Payments,Contracts - Child Care,CLIFTON ST PRE-SCHOOL,SN1 ,22/03/2023,"3,060.00"
75432233,Early Years Block,DSG Skills and Attainment,Free Nursery Education Commissioning - three & four  year olds,3rd Party Payments,Contracts - Child Care,CLIFTON ST PRE-SCHOOL,SN1 ,15/03/2023,"5,562.00"
76050306,Physical Support,Adults,Physical Support 18 - 64,Income,Client Contribution - Residential,COATE WATER CARE CO LTD,SN3 ,17/03/2023,-359
76050306,Physical Support,Adults,Physical Support 65 and over,Income,Client Contribution - Residential,COATE WATER CARE CO LTD,SN3 ,17/03/2023,44.13
76050306,Physical Support,Adults,Physical Support 65 and over,Income,Client Contribution - Residential,COATE WATER CARE CO LTD,SN3 ,17/03/2023,-154.66
76050306,Physical Support,Adults,Physical Support 65 and over,Income,Client Contribution - Residential,COATE WATER CARE CO LTD,SN3 ,17/03/2023,-954
76050306,Physical Support,Adults,Physical Support 65 and over,Income,Client Contribution - Residential,COATE WATER CARE CO LTD,SN3 ,17/03/2023,-510.92
76050306,Physical Support,Adults,Physical Support 65 and over,3rd Party Payments,Residential Care,COATE WATER CARE CO LTD,SN3 ,17/03/2023,914.32
76050306,Physical Support,Adults,Physical Support 65 and over,Income,Client Contribution - Residential,COATE WATER CARE CO LTD,SN3 ,17/03/2023,"-1,434.76"
76050306,Physical Support,Adults,Physical Support 65 and over,Income,Client Contribution - Residential,COATE WATER CARE CO LTD,SN3 ,17/03/2023,-627.8
76050306,Physical Support,Adults,Physical Support 65 and over,3rd Party Payments,Residential Care,COATE WATER CARE CO LTD,SN3 ,17/03/2023,"2,102.96"
76050306,Physical Support,Adults,Physical Support 65 and over,3rd Party Payments,Residential Care,COATE WATER CARE CO LTD,SN3 ,17/03/2023,457.16
76050306,Physical Support,Adults,Physical Support 65 and over,3rd Party Payments,Residential Care,COATE WATER CARE CO LTD,SN3 ,17/03/2023,"3,328.00"
76050306,Care Management & Safeguarding,Adults,Intermediate Care Team,3rd Party Payments,Residential Care,COATE WATER CARE CO LTD,SN3 ,17/03/2023,"-3,335.90"
77417233,Physical Support,Adults,Physical Support 65 and over,3rd Party Payments,Personal Budget - Respite Care,COATE WATER CARE CO LTD,SN3 ,24/03/2023,"1,002.26"
76050306,Physical Support,Adults,Physical Support 65 and over,Income,Client Contribution - Residential,COATE WATER CARE CO LTD,SN3 ,17/03/2023,"-1,015.06"
76050306,Physical Support,Adults,Physical Support 65 and over,Income,Client Contribution - Residential,COATE WATER CARE CO LTD,SN3 ,17/03/2023,-727.2
76050306,Physical Support,Adults,Physical Support 65 and over,Income,Client Contribution - Residential,COATE WATER CARE CO LTD,SN3 ,17/03/2023,-732
76050306,Care Management & Safeguarding,Adults,Intermediate Care Team,3rd Party Payments,Residential Care,COATE WATER CARE CO LTD,SN3 ,17/03/2023,"-3,291.58"
76432233,Physical Support,Adults,Physical Support 65 and over,3rd Party Payments,Personal Budget - Respite Care,COATE WATER CARE CO LTD,SN3 ,20/03/2023,"1,097.19"
76431233,Physical Support,Adults,Physical Support 65 and over,3rd Party Payments,Personal Budget - Respite Care,COATE WATER CARE CO LTD,SN3 ,20/03/2023,"2,560.12"
76430233,Physical Support,Adults,Physical Support 65 and over,3rd Party Payments,Personal Budget - Respite Care,COATE WATER CARE CO LTD,SN3 ,20/03/2023,874
76050306,Physical Support,Adults,Physical Support 65 and over,Income,Client Contribution - Residential,COATE WATER CARE CO LTD,SN3 ,17/03/2023,176.53
76050306,Physical Support,Adults,Physical Support 65 and over,Income,Client Contribution - Residential,COATE WATER CARE CO LTD,SN3 ,17/03/2023,-506.2
76050306,Physical Support,Adults,Physical Support 65 and over,3rd Party Payments,Residential Care,COATE WATER CARE CO LTD,SN3 ,17/03/2023,"-2,377.25"
76050306,Physical Support,Adults,Physical Support 65 and over,3rd Party Payments,Residential Care,COATE WATER CARE CO LTD,SN3 ,17/03/2023,-365.73
76050306,Physical Support,Adults,Physical Support 65 and over,3rd Party Payments,Residential Care,COATE WATER CARE CO LTD,SN3 ,17/03/2023,-91.43
76050306,Physical Support,Adults,Physical Support 65 and over,3rd Party Payments,Residential Care,COATE WATER CARE CO LTD,SN3 ,17/03/2023,"2,560.12"
76050306,Physical Support,Adults,Physical Support 65 and over,3rd Party Payments,Residential Care,COATE WATER CARE CO LTD,SN3 ,17/03/2023,"3,200.15"
76050306,Physical Support,Adults,Physical Support 65 and over,3rd Party Payments,Residential Care,COATE WATER CARE CO LTD,SN3 ,17/03/2023,"3,931.61"
76050306,Physical Support,Adults,Physical Support 65 and over,3rd Party Payments,Residential Care,COATE WATER CARE CO LTD,SN3 ,17/03/2023,"4,205.91"
76050306,Care Management & Safeguarding,Adults,Intermediate Care Team,3rd Party Payments,Residential Care,COATE WATER CARE CO LTD,SN3 ,17/03/2023,"2,925.85"
76050306,Care Management & Safeguarding,Adults,Intermediate Care Team,3rd Party Payments,Residential Care,COATE WATER CARE CO LTD,SN3 ,17/03/2023,"3,291.58"
76050306,Mental Health,Adults,Mental Health 65 and over,3rd Party Payments,Residential Care,COATE WATER CARE CO LTD,SN3 ,17/03/2023,"2,800.00"
77418233,Physical Support,Adults,Physical Support 65 and over,3rd Party Payments,Personal Budget - Respite Care,COATE WATER CARE CO LTD,SN3 ,24/03/2023,"2,004.52"
76050306,Physical Support,Adults,Physical Support 65 and over,Income,Client Contribution - Residential,COATE WATER CARE CO LTD,SN3 ,17/03/2023,-630.56
76050306,Mental Health,Adults,Mental Health 65 and over,3rd Party Payments,Residential Care,COATE WATER CARE CO LTD,SN3 ,17/03/2023,344
76050306,Physical Support,Adults,Physical Support 65 and over,Income,Client Contribution - Residential,COATE WATER CARE CO LTD,SN3 ,17/03/2023,-403.59
76050306,Physical Support,Adults,Physical Support 65 and over,Income,Client Contribution - Residential,COATE WATER CARE CO LTD,SN3 ,17/03/2023,-897.48
76050306,Physical Support,Adults,Physical Support 65 and over,Income,Client Contribution - Residential,COATE WATER CARE CO LTD,SN3 ,17/03/2023,-955.48
76050306,Physical Support,Adults,Physical Support 65 and over,Income,Client Contribution - Residential,COATE WATER CARE CO LTD,SN3 ,17/03/2023,-807.17
76050306,Physical Support,Adults,Physical Support 65 and over,3rd Party Payments,Residential Care,COATE WATER CARE CO LTD,SN3 ,17/03/2023,"2,668.72"
76050306,Care Management & Safeguarding,Adults,Intermediate Care Team,3rd Party Payments,Residential Care,COATE WATER CARE CO LTD,SN3 ,17/03/2023,"-3,931.61"
76050306,Care Management & Safeguarding,Adults,Intermediate Care Team,3rd Party Payments,Residential Care,COATE WATER CARE CO LTD,SN3 ,17/03/2023,"4,098.39"
76050306,Physical Support,Adults,Physical Support 65 and over,Income,Client Contribution - Residential,COATE WATER CARE CO LTD,SN3 ,17/03/2023,-597.4
76050306,Physical Support,Adults,Physical Support 65 and over,Income,Client Contribution - Residential,COATE WATER CARE CO LTD,SN3 ,17/03/2023,-539.4
76050306,Physical Support,Adults,Physical Support 65 and over,3rd Party Payments,Residential Care,COATE WATER CARE CO LTD,SN3 ,17/03/2023,"3,291.58"
76050306,Physical Support,Adults,Physical Support 18 - 64,3rd Party Payments,Residential Care,COATE WATER CARE CO LTD,SN3 ,17/03/2023,"2,560.12"
76050306,Physical Support,Adults,Physical Support 65 and over,Income,Client Contribution - Residential,COATE WATER CARE CO LTD,SN3 ,17/03/2023,-220.66
76050306,Physical Support,Adults,Physical Support 65 and over,Income,Client Contribution - Residential,COATE WATER CARE CO LTD,SN3 ,17/03/2023,-713.24
76050306,Physical Support,Adults,Physical Support 65 and over,3rd Party Payments,Residential Care,COATE WATER CARE CO LTD,SN3 ,17/03/2023,"1,645.79"
76050306,Care Management & Safeguarding,Adults,Intermediate Care Team,3rd Party Payments,Residential Care,COATE WATER CARE CO LTD,SN3 ,17/03/2023,"2,560.12"
77417234,Physical Support,Adults,Physical Support 65 and over,3rd Party Payments,Personal Budget - Respite Care,COATE WATER CARE CO LTD,SN3 ,24/03/2023,"1,002.26"
76050263,Learning Disabilities,Adults,Learning Disability 18 - 64,3rd Party Payments,Residential Care,COCKLEBURY FARMHOUSE,SN15,17/03/2023,"26,280.14"
76050263,Learning Disabilities,Adults,Learning Disability 18 - 64,Income,Client Contribution - Residential,COCKLEBURY FARMHOUSE,SN15,17/03/2023,-425.6
76050263,Learning Disabilities,Adults,Learning Disability 18 - 64,3rd Party Payments,Residential Care,COCKLEBURY FARMHOUSE,SN15,17/03/2023,"-21,016.00"
76050263,Learning Disabilities,Adults,Learning Disability 18 - 64,3rd Party Payments,Residential Care,COCKLEBURY FARMHOUSE,SN15,17/03/2023,"10,364.00"
79154234,Highways Inspections & Maintenance,Highway Operations and Car Parking,Highway Maintenance,Supplies and Services,Materials,COLAS LTD,B37 ,31/03/2023,780
76385233,Town Centre,"Economy, Growth and Place",Fleming Way Improvement Scheme,Capital,Contractor Payments,COLAS LTD,B37 ,20/03/2023,"450,680.40"
72839234,Property & Assets,Property & Assets,General Enhancement Works Corporate Buildings,Capital,Contractor Payments,COLES SCAFFOLDING CONTRACTORS LTD,SN25,01/03/2023,"1,324.80"
72839234,Property & Assets,Property & Assets,General Enhancement Works Corporate Buildings,Capital,Contractor Payments,COLES SCAFFOLDING CONTRACTORS LTD,SN25,01/03/2023,400
75435233,Early Years Block,DSG Skills and Attainment,Free Nursery Education Commissioning - three & four  year olds,3rd Party Payments,Contracts - Child Care,COLEVIEW PRE-SCHOOL,SN3 ,15/03/2023,"7,257.40"
73874233,Disabled Children,"Children, Families and Community Health Services",DCT Daytime Short Breaks,3rd Party Payments,Respite Care,COLLABORATIVE CARE SERVICES LTD,SN2 ,08/03/2023,"26,208.00"
75438233,Early Years Block,DSG Skills and Attainment,Free Nursery Education Commissioning - three & four  year olds,3rd Party Payments,Contracts - Child Care,COLOURFUL TIME DAY NURSERY LTD,SN5 ,15/03/2023,"7,283.06"
75441233,Early Years Block,DSG Skills and Attainment,Free Nursery Education Commissioning - two year olds,3rd Party Payments,Contracts - Child Care,COLOURFUL TIME DAY NURSERY LTD,SN5 ,15/03/2023,"1,511.10"
76640233,Physical Support,Adults,Physical Support 18 - 64,3rd Party Payments,Personal Budget - Day services,COMMUNITY ACCESS NETWORK LTD,SN25,22/03/2023,506
76050252,Learning Disabilities,Adults,Learning Disability 18 - 64,3rd Party Payments,Supported Lodgings (Childrens)/Supported Living (Adults),COMMUNITY ACCESS NETWORK LTD,SN25,17/03/2023,"3,681.24"
76336233,Physical Support,Adults,Physical Support 18 - 64,3rd Party Payments,Personal Budget - Day services,COMMUNITY ACCESS NETWORK LTD,SN25,20/03/2023,650.72
76050251,Learning Disabilities,Adults,Learning Disability 18 - 64,3rd Party Payments,Residential Care,COMMUNITY ACCESS NETWORK LTD,SN25,17/03/2023,"6,282.60"
76050252,Learning Disabilities,Adults,Learning Disability 18 - 64,3rd Party Payments,Supported Lodgings (Childrens)/Supported Living (Adults),COMMUNITY ACCESS NETWORK LTD,SN25,17/03/2023,"1,215.16"
76050252,Learning Disabilities,Adults,Learning Disability 18 - 64,3rd Party Payments,Supported Lodgings (Childrens)/Supported Living (Adults),COMMUNITY ACCESS NETWORK LTD,SN25,17/03/2023,24.68
76050251,Learning Disabilities,Adults,Learning Disability 18 - 64,Income,Client Contribution - Residential,COMMUNITY ACCESS NETWORK LTD,SN25,17/03/2023,-293.6
76334233,Physical Support,Adults,Physical Support 18 - 64,3rd Party Payments,Personal Budget - Day services,COMMUNITY ACCESS NETWORK LTD,SN25,20/03/2023,506
76335233,Physical Support,Adults,Physical Support 18 - 64,3rd Party Payments,Personal Budget - Day services,COMMUNITY ACCESS NETWORK LTD,SN25,20/03/2023,637.56
76050252,Learning Disabilities,Adults,Learning Disability 18 - 64,Income,Client Contribution - Supported Living,COMMUNITY ACCESS NETWORK LTD,SN25,17/03/2023,-142.8
76050251,Learning Disabilities,Adults,Learning Disability 65 and over,3rd Party Payments,Supported Lodgings (Childrens)/Supported Living (Adults),COMMUNITY ACCESS NETWORK LTD,SN25,17/03/2023,809.6
76050252,Learning Disabilities,Adults,Learning Disability 18 - 64,3rd Party Payments,Supported Lodgings (Childrens)/Supported Living (Adults),COMMUNITY ACCESS NETWORK LTD,SN25,17/03/2023,500.36
76050252,Learning Disabilities,Adults,Learning Disability 18 - 64,3rd Party Payments,Supported Lodgings (Childrens)/Supported Living (Adults),COMMUNITY ACCESS NETWORK LTD,SN25,17/03/2023,"1,342.76"
76050252,Learning Disabilities,Adults,Learning Disability 18 - 64,3rd Party Payments,Supported Lodgings (Childrens)/Supported Living (Adults),COMMUNITY ACCESS NETWORK LTD,SN25,17/03/2023,24
76043328,Social Care,"Children, Families and Community Health Services",External Placements,3rd Party Payments,Independent Fostering Agency Placements,COMMUNITY FOSTER CARE,GL1 ,17/03/2023,"3,665.48"
76043329,Social Care,"Children, Families and Community Health Services",External Placements,3rd Party Payments,Independent Fostering Agency Placements,COMMUNITY FOSTER CARE,GL1 ,17/03/2023,"4,642.40"
76050307,Learning Disabilities,Adults,Learning Disability 18 - 64,3rd Party Payments,Residential Care,COMMUNITY THERAPEUTIC SERVICES LTD,BS22,17/03/2023,"11,398.08"
77722253,Social Care,"Children, Families and Community Health Services",External Placements,3rd Party Payments,Residential Care,COMPASS CHILDREN'S HOMES LTD,LE7 ,27/03/2023,"18,000.08"
73439248,Social Care,"Children, Families and Community Health Services",External Placements,3rd Party Payments,Residential Care,COMPASS CHILDREN'S HOMES LTD,LE7 ,08/03/2023,"18,200.00"
77722254,Social Care,"Children, Families and Community Health Services",External Placements,3rd Party Payments,Residential Care,COMPASS CHILDREN'S HOMES LTD,LE7 ,27/03/2023,"20,150.00"
73439249,Social Care,"Children, Families and Community Health Services",External Placements,3rd Party Payments,Residential Care,COMPASS CHILDREN'S HOMES LTD,LE7 ,08/03/2023,"5,142.88"
73439244,Social Care,"Children, Families and Community Health Services",Placement - Care Leaver Team,3rd Party Payments,Staying Put,COMPASS FOSTERING LONDON LTD,LE11,08/03/2023,"-1,822.92"
73439243,Social Care,"Children, Families and Community Health Services",Placement - Care Leaver Team,3rd Party Payments,Staying Put,COMPASS FOSTERING LONDON LTD,LE11,08/03/2023,"2,320.08"
75626233,Human Resources and Organisational Development,"People, Culture and Organisational Resilience",Pay & Reward,Employees,Temporary / Agency - by Accounts Payable,COMPAWISE LIMITED,WA14,15/03/2023,"3,300.00"
78272233,Human Resources and Organisational Development,"People, Culture and Organisational Resilience",Pay & Reward,Employees,Temporary / Agency - by Accounts Payable,COMPAWISE LIMITED,WA14,29/03/2023,"3,000.00"
74174233,Human Resources and Organisational Development,"People, Culture and Organisational Resilience",Pay & Reward,Employees,Temporary / Agency - by Accounts Payable,COMPAWISE LIMITED,WA14,10/03/2023,"3,000.00"
73767233,Human Resources and Organisational Development,"People, Culture and Organisational Resilience",Pay & Reward,Employees,Temporary / Agency - by Accounts Payable,COMPAWISE LIMITED,WA14,08/03/2023,"3,000.00"
76875233,Human Resources and Organisational Development,"People, Culture and Organisational Resilience",Pay & Reward,Employees,Temporary / Agency - by Accounts Payable,COMPAWISE LIMITED,WA14,22/03/2023,"3,000.00"
74177233,Human Resources and Organisational Development,"People, Culture and Organisational Resilience",Pay & Reward,Employees,Temporary / Agency - by Accounts Payable,COMPAWISE LIMITED,WA14,10/03/2023,"3,000.00"
75038233,Disabled Children,"Children, Families and Community Health Services",DCT Daytime Short Breaks,3rd Party Payments,Respite Care,COMPLETELY CARE RECRUITMENT CONSULTANTS LIMITED (INACTIVE SEE 6138802),GL17,15/03/2023,528
78965235,Learning Disabilities,Adults,Learning Disability 18 - 64,Transfer Payments,Personal Budget - Direct Payments - Domiciliary Care,REDACTED PERSONAL DATA,GL2 ,31/03/2023,"4,433.38"
75046233,Environmental & Regulatory,Highways & Transport,Shaw Farm Landfill Site,Supplies and Services,Testing / Inspection,CONSOLIDATED DISTRIBUTION HOLDINGS LTD T/A HARRIER PNEUMATICS,BS2 ,15/03/2023,852.38
73845233,Streetsmart,Streetsmart,Recycling Service,Supplies and Services,Equipment,CONTENUR UK LTD,L33 ,08/03/2023,"13,478.40"
74567233,Property Service Charged Properties,Property,Service Charged - North Swindon Library Complex,Premises Costs,Maintenance - Buildings,COOLINK LTD,SN11,10/03/2023,285
74053233,Property Management,Property,Corporate Repairs & Maintenance Programme,Premises Costs,Maintenance - Buildings,COOLINK LTD,SN11,08/03/2023,548
74054233,Property Management,Property,Corporate Repairs & Maintenance Programme,Premises Costs,Maintenance - Buildings,COOLINK LTD,SN11,08/03/2023,278.6
74567233,Property Management,Property,Corporate Repairs & Maintenance Programme,Premises Costs,Maintenance - Buildings,COOLINK LTD,SN11,10/03/2023,196.1
72683233,Property Management,Property,Corporate Repairs & Maintenance Programme,Premises Costs,Maintenance - Buildings,COOLINK LTD,SN11,01/03/2023,"1,865.00"
75101233,Property Management,Property,Corporate Repairs & Maintenance Programme,Premises Costs,Maintenance - Buildings,COOLINK LTD,SN11,15/03/2023,548
74567233,Property Service Charged Properties,Property,Service Charged - North Swindon Library Complex,Premises Costs,Maintenance - Buildings,COOLINK LTD,SN11,10/03/2023,229
75102233,Facilities Management,"People, Culture and Organisational Resilience",Office Accommodation,Premises Costs,Maintenance - Buildings,COOLINK LTD,SN11,15/03/2023,207.2
75103233,DMJ Tower,Housing Services,DMJ Apartments,Premises Costs,Maintenance - Buildings,COOLINK LTD,SN11,15/03/2023,523.24
75102233,Other Repairs,Repairs,Unallocated job costs from OPEN system,Premises Costs,Maintenance - Buildings,COOLINK LTD,SN11,15/03/2023,239.4
76468233,Property Management,Property,Corporate Repairs & Maintenance Programme,Premises Costs,Maintenance - Buildings,COOLINK LTD,SN11,22/03/2023,420
75103233,DMJ Tower,Housing Services,DMJ Apartments,Premises Costs,Maintenance - Buildings,COOLINK LTD,SN11,15/03/2023,493.24
74567233,Property Management,Property,Corporate Repairs & Maintenance Programme,Premises Costs,Maintenance - Buildings,COOLINK LTD,SN11,10/03/2023,120
76836234,Property Management,Property,Corporate Repairs & Maintenance Programme,Premises Costs,Maintenance - Buildings,COOLINK LTD,SN11,27/03/2023,"4,285.00"
74054233,Other Repairs,Repairs,Unallocated job costs from OPEN system,Premises Costs,Maintenance - Buildings,COOLINK LTD,SN11,08/03/2023,258.6
78259233,Early Help,Early Intervention & Prevention,"Holiday, Activities & Food Grant",3rd Party Payments,Contracts - Child Care,CORAM FAMILY AND CHILDCARE,WC1N,29/03/2023,"20,775.00"
73887233,Responsive Repairs,Repairs,Responsive Repairs,3rd Party Payments,Contract Payments,REDACTED PERSONAL DATA,SN2 ,15/03/2023,"2,900.00"
73886233,Responsive Repairs,Repairs,Responsive Repairs,3rd Party Payments,Contract Payments,REDACTED PERSONAL DATA,SN2 ,15/03/2023,"3,900.00"
73888233,Responsive Repairs,Repairs,Responsive Repairs,3rd Party Payments,Contract Payments,REDACTED PERSONAL DATA,SN2 ,15/03/2023,"1,200.00"
76204233,Streetsmart,Streetsmart,Waste - Processing,Supplies and Services,Repairs & Maintenance,CORGIN LTD,ST16,17/03/2023,"1,590.00"
75767234,Streetsmart,Streetsmart,Waste - Processing,Supplies and Services,Repairs & Maintenance,CORGIN LTD,ST16,15/03/2023,"2,385.00"
75818233,Streetsmart,Streetsmart,Waste - Processing,Supplies and Services,Repairs & Maintenance,CORGIN LTD,ST16,17/03/2023,"2,690.00"
77905235,Social Care,"Children, Families and Community Health Services",Placement Adoption Service,3rd Party Payments,Adoption Allowances,REDACTED PERSONAL DATA,BA15,27/03/2023,860
74780233,Social Care,"Children, Families and Community Health Services",Placement Adoption Service,3rd Party Payments,Adoption Allowances,REDACTED PERSONAL DATA,BA15,13/03/2023,860
76050282,Learning Disabilities,Adults,Learning Disability 18 - 64,3rd Party Payments,Residential Care,CORNERSTONES UK LTD,SN9 ,17/03/2023,"5,322.56"
76050282,Learning Disabilities,Adults,Learning Disability 18 - 64,3rd Party Payments,Residential Care,CORNERSTONES UK LTD,SN9 ,17/03/2023,"6,251.16"
76050282,Learning Disabilities,Adults,Learning Disability 18 - 64,3rd Party Payments,Residential Care,CORNERSTONES UK LTD,SN9 ,17/03/2023,"4,178.84"
76050282,Learning Disabilities,Adults,Learning Disability 18 - 64,3rd Party Payments,Residential Care,CORNERSTONES UK LTD,SN9 ,17/03/2023,"8,160.76"
76050282,Learning Disabilities,Adults,Learning Disability 18 - 64,Income,Client Contribution - Residential,CORNERSTONES UK LTD,SN9 ,17/03/2023,-423
76050282,Learning Disabilities,Adults,Learning Disability 18 - 64,Income,Client Contribution - Residential,CORNERSTONES UK LTD,SN9 ,17/03/2023,-438.8
76050282,Learning Disabilities,Adults,Learning Disability 18 - 64,Income,Client Contribution - Residential,CORNERSTONES UK LTD,SN9 ,17/03/2023,-487.8
76050282,Learning Disabilities,Adults,Learning Disability 18 - 64,Income,Client Contribution - Residential,CORNERSTONES UK LTD,SN9 ,17/03/2023,-381
76050282,Learning Disabilities,Adults,Learning Disability 18 - 64,3rd Party Payments,Residential Care,CORNERSTONES UK LTD,SN9 ,17/03/2023,"7,986.12"
76050282,Learning Disabilities,Adults,Learning Disability 18 - 64,Income,Client Contribution - Residential,CORNERSTONES UK LTD,SN9 ,17/03/2023,-414.2
76050282,Learning Disabilities,Adults,Learning Disability 18 - 64,3rd Party Payments,Residential Care,CORNERSTONES UK LTD,SN9 ,17/03/2023,"6,922.20"
74292233,Housing & Supported Living,Adults,Disabled Facilities Grants,Capital,Grant Payments,COTSWOLD BUILDING RENOVATIONS LTD,GL7 ,10/03/2023,"2,400.00"
76747233,High Needs Block,DSG Skills and Attainment,Out of Borough School Fees,3rd Party Payments,Independent Special School- Pre 16,COTSWOLD CHINE SCHOOL,GL5 ,22/03/2023,"27,553.76"
76765233,High Needs Block,DSG Skills and Attainment,Out of Borough School Fees,3rd Party Payments,Independent Special School- Pre 16,COTSWOLD CHINE SCHOOL,GL5 ,22/03/2023,"27,553.76"
76766233,High Needs Block,DSG Skills and Attainment,Out of Borough School Fees,3rd Party Payments,OLA Special schools- Pre 16,COTSWOLD CHINE SCHOOL,GL5 ,22/03/2023,"75,053.33"
73467233,Streetsmart,Streetsmart,Waterside Fleet Hires,Transport Costs,Vehicle Hire / Contract,COTSWOLD RECYCLING COMPANY LTD,GL12,06/03/2023,"1,900.00"
73466233,Streetsmart,Streetsmart,Waterside Fleet Hires,Transport Costs,Vehicle Hire / Contract,COTSWOLD RECYCLING COMPANY LTD,GL12,06/03/2023,"2,380.00"
73458233,Learning Disabilities,Adults,Firethorn Close,Premises Costs,Maintenance - Grounds,COUNTRYWIDE GROUNDS MAINTENANCE LTD,NN13,06/03/2023,654
79007647,Learning Disabilities,Adults,Learning Disability 18 - 64,Transfer Payments,Personal Budget - Direct Payments - Domiciliary Care,REDACTED PERSONAL DATA,SP11,31/03/2023,"1,084.61"
76408233,Libraries,"Education, Inclusion and Skills",Library Delivery,Supplies and Services,Repairs & Maintenance,COVERGOLD LTD,NN3 ,20/03/2023,618.5
75125233,Early Years Block,DSG Skills and Attainment,Free Nursery Education Commissioning - three & four  year olds,3rd Party Payments,Contracts - Child Care,COVINGHAM KINGFISHER PRE-SCHOOL,SN3 ,15/03/2023,679.8
75443233,Early Years Block,DSG Skills and Attainment,Free Nursery Education Commissioning - three & four  year olds,3rd Party Payments,Contracts - Child Care,COVINGHAM KINGFISHER PRE-SCHOOL,SN3 ,15/03/2023,"4,418.69"
74645233,High Needs Block,DSG Skills and Attainment,SEN Resourcing Assessment Panel,3rd Party Payments,Top up funding - Maintained providers Pre 16,COVINGHAM PARK PRIMARY SCHOOL,SN3 ,13/03/2023,"2,161.67"
76044242,DSG Other Funding,DSG Skills and Attainment,DFE Additional Grants,3rd Party Payments,Payment of Pupil Premium to school,COVINGHAM PARK PRIMARY SCHOOL,SN3 ,17/03/2023,"7,353.00"
75738233,Schools Maintenance,Skills & Attainment,DFC Allocations to Schools,Capital,Grant Payments,COVINGHAM PARK PRIMARY SCHOOL,SN3 ,15/03/2023,"17,562.62"
75450233,Early Years Block,DSG Skills and Attainment,Free Nursery Education Commissioning - two year olds,3rd Party Payments,Contracts - Child Care,COVINGHAM ROUNDABOUT PLAYGROUP,SN3 ,15/03/2023,"2,686.86"
75447233,Early Years Block,DSG Skills and Attainment,Free Nursery Education Commissioning - three & four  year olds,3rd Party Payments,Contracts - Child Care,COVINGHAM ROUNDABOUT PLAYGROUP,SN3 ,15/03/2023,"8,138.90"
76050357,Memory & Cognition,Adults,Support for Memory and Cognition 65 and over,3rd Party Payments,Residential Care,COXWELL HALL AND MEWS NURSING HOME,TW20,17/03/2023,"5,968.24"
76050357,Mental Health,Adults,Mental Health 65 and over,3rd Party Payments,Nursing Care,COXWELL HALL AND MEWS NURSING HOME,TW20,17/03/2023,"5,920.00"
72910233,Public Health,Public Health,Supplementary SMTR Grant,3rd Party Payments,Contract Payments,CPD EUROPE LTD,CO11,03/03/2023,971
73193233,Responsive Repairs,Repairs,Responsive Repairs,3rd Party Payments,Contract Payments,CPS CONSTRUCTION LTD,BS15,03/03/2023,750.68
72678276,Planned Maintenance Programme,HRA Capital Financing,Improvements,Capital,Contractor Payments,CPS CONSTRUCTION LTD,BS15,01/03/2023,"11,395.80"
76050257,Learning Disabilities,Adults,Learning Disability 18 - 64,3rd Party Payments,Residential Care,CRAEGMOOR HEALTHCARE,BA14,17/03/2023,"8,639.88"
76050257,Learning Disabilities,Adults,Learning Disability 18 - 64,Income,Client Contribution - Residential,CRAEGMOOR HEALTHCARE,BA14,17/03/2023,-414.2
72743233,Early Help,Early Intervention & Prevention,"Holiday, Activities & Food Grant",3rd Party Payments,Contracts - Child Care,CRAFTING TREASURES - TANYA MEDCROFT,SN2 ,01/03/2023,800
76555233,Early Help,Early Intervention & Prevention,"Holiday, Activities & Food Grant",3rd Party Payments,Contracts - Child Care,CRAFTING TREASURES - TANYA MEDCROFT,SN2 ,22/03/2023,"1,926.00"
76195233,Streetsmart,Streetsmart,Waste - Disposal,3rd Party Payments,Contract Payments,CRAPPER & SONS LANDFILL LTD,SN4 ,17/03/2023,712.3
76965233,Streetsmart,Streetsmart,Waste - Disposal,3rd Party Payments,Contract Payments,CRAPPER & SONS LANDFILL LTD,SN4 ,22/03/2023,"1,235.05"
76946233,Streetsmart,Streetsmart,Waste - Disposal,3rd Party Payments,Contract Payments,CRAPPER & SONS LANDFILL LTD,SN4 ,22/03/2023,"3,237.07"
76386233,Streetsmart,Streetsmart,Waste - Disposal,3rd Party Payments,Contract Payments,CRAPPER & SONS LANDFILL LTD,SN4 ,20/03/2023,"7,797.50"
77175233,Streetsmart,Streetsmart,Waste - Disposal,3rd Party Payments,Contract Payments,CRAPPER & SONS LANDFILL LTD,SN4 ,24/03/2023,"1,312.67"
76962233,Streetsmart,Streetsmart,Waste - Disposal,3rd Party Payments,Contract Payments,CRAPPER & SONS LANDFILL LTD,SN4 ,22/03/2023,"1,034.67"
73642235,Streetsmart,Streetsmart,Waste - Processing,Transport Costs,Vehicle Hire / Contract,CRAPPER & SONS LANDFILL LTD,SN4 ,08/03/2023,600
78246235,Streetsmart,Streetsmart,Waste - Disposal,3rd Party Payments,Contract Payments,CRAPPER & SONS LANDFILL LTD,SN4 ,29/03/2023,"1,159.12"
78012233,Streetsmart,Streetsmart,Waste - Disposal,3rd Party Payments,Contract Payments,CRAPPER & SONS LANDFILL LTD,SN4 ,27/03/2023,670.24
76955233,Streetsmart,Streetsmart,Waste - Disposal,3rd Party Payments,Contract Payments,CRAPPER & SONS LANDFILL LTD,SN4 ,22/03/2023,595.92
76945233,Streetsmart,Streetsmart,Waste - Disposal,3rd Party Payments,Contract Payments,CRAPPER & SONS LANDFILL LTD,SN4 ,22/03/2023,583.48
76210233,Streetsmart,Streetsmart,Waste - Disposal,3rd Party Payments,Contract Payments,CRAPPER & SONS LANDFILL LTD,SN4 ,17/03/2023,"3,055.03"
76207233,Streetsmart,Streetsmart,Waste - Disposal,3rd Party Payments,Contract Payments,CRAPPER & SONS LANDFILL LTD,SN4 ,17/03/2023,896.75
76961233,Streetsmart,Streetsmart,Waste - Disposal,3rd Party Payments,Contract Payments,CRAPPER & SONS LANDFILL LTD,SN4 ,22/03/2023,467.86
76889233,Streetsmart,Streetsmart,Waste - Disposal,3rd Party Payments,Contract Payments,CRAPPER & SONS LANDFILL LTD,SN4 ,22/03/2023,"1,169.74"
78270233,Streetsmart,Streetsmart,Waste - Disposal,3rd Party Payments,Contract Payments,CRAPPER & SONS LANDFILL LTD,SN4 ,29/03/2023,"3,424.61"
76892233,Streetsmart,Streetsmart,Waste - Disposal,3rd Party Payments,Contract Payments,CRAPPER & SONS LANDFILL LTD,SN4 ,22/03/2023,"2,727.02"
78246233,Streetsmart,Streetsmart,Waste - Disposal,3rd Party Payments,Contract Payments,CRAPPER & SONS LANDFILL LTD,SN4 ,29/03/2023,"2,578.74"
78253233,Streetsmart,Streetsmart,Waste - Disposal,3rd Party Payments,Contract Payments,CRAPPER & SONS LANDFILL LTD,SN4 ,29/03/2023,"2,285.51"
78252234,Streetsmart,Streetsmart,Waste - Disposal,3rd Party Payments,Contract Payments,CRAPPER & SONS LANDFILL LTD,SN4 ,29/03/2023,"1,048.59"
78011233,Streetsmart,Streetsmart,Waste - Disposal,3rd Party Payments,Contract Payments,CRAPPER & SONS LANDFILL LTD,SN4 ,27/03/2023,687.17
76887234,Streetsmart,Streetsmart,Waste - Disposal,3rd Party Payments,Contract Payments,CRAPPER & SONS LANDFILL LTD,SN4 ,22/03/2023,646.59
77174233,Streetsmart,Streetsmart,Waste - Disposal,3rd Party Payments,Contract Payments,CRAPPER & SONS LANDFILL LTD,SN4 ,24/03/2023,870
76205233,Streetsmart,Streetsmart,Waste - Disposal,3rd Party Payments,Contract Payments,CRAPPER & SONS LANDFILL LTD,SN4 ,17/03/2023,"1,901.62"
78247233,Streetsmart,Streetsmart,Waste - Disposal,3rd Party Payments,Contract Payments,CRAPPER & SONS LANDFILL LTD,SN4 ,29/03/2023,"1,646.00"
76197233,Streetsmart,Streetsmart,Waste - Processing,Transport Costs,Vehicle Hire / Contract,CRAPPER & SONS LANDFILL LTD,SN4 ,17/03/2023,450
76577233,Routes to Employment,"Education, Inclusion and Skills",Multiply,Supplies and Services,Materials,CREATE STUDIOS DIGITAL MEDIA LTD,SN1 ,22/03/2023,"7,500.00"
76060234,Physical Support,Adults,Fessey House,Supplies and Services,Food,CREED CATERING SUPPLIES LTD,GL51,17/03/2023,531.83
76060234,Physical Support,Adults,Fessey House,Supplies and Services,Food,CREED CATERING SUPPLIES LTD,GL51,17/03/2023,28.81
77513233,Physical Support,Adults,Fessey House,Supplies and Services,Food,CREED CATERING SUPPLIES LTD,GL51,24/03/2023,425.67
76055233,Physical Support,Adults,Fessey House,Supplies and Services,Food,CREED CATERING SUPPLIES LTD,GL51,17/03/2023,21.67
77513233,Physical Support,Adults,Fessey House,Supplies and Services,Food,CREED CATERING SUPPLIES LTD,GL51,24/03/2023,94.4
76055233,Physical Support,Adults,Fessey House,Supplies and Services,Food,CREED CATERING SUPPLIES LTD,GL51,17/03/2023,475.79
73255233,Sheltered Accomodation,Special Services,George Hall Court,Premises Costs,Maintenance - Grounds,CROCSEC LIMITED,SN25,03/03/2023,"3,111.00"
75451233,Early Years Block,DSG Skills and Attainment,Free Nursery Education Commissioning - three & four  year olds,3rd Party Payments,Contracts - Child Care,CROFT PLAYGROUP,SN3 ,15/03/2023,"14,498.67"
76397233,School Transport,"Education, Inclusion and Skills",Special Educational Needs Transport,Transport Costs,Home to School Transport,CROSS STREET RADIO CARS,SN1 ,20/03/2023,"3,990.00"
73727234,School Transport,"Education, Inclusion and Skills",Special Educational Needs Transport,Transport Costs,Home to School Transport,CROSS STREET RADIO CARS,SN1 ,08/03/2023,"1,430.00"
72907233,School Transport,"Education, Inclusion and Skills",Mainstream School Transport,Transport Costs,Home to School Transport,CROSS STREET RADIO CARS,SN1 ,03/03/2023,"1,300.00"
73730234,School Transport,"Education, Inclusion and Skills",Special Educational Needs Transport,Transport Costs,Home to School Transport,CROSS STREET RADIO CARS,SN1 ,08/03/2023,"2,755.00"
76754233,School Transport,"Education, Inclusion and Skills",Special Educational Needs Transport,Transport Costs,Home to School Transport,CROSS STREET RADIO CARS,SN1 ,22/03/2023,"2,730.00"
76737233,School Transport,"Education, Inclusion and Skills",Special Educational Needs Transport,Employees,Temporary / Agency - by Accounts Payable,CROSS STREET RADIO CARS,SN1 ,22/03/2023,"3,040.00"
73728233,School Transport,"Education, Inclusion and Skills",Special Educational Needs Transport,Transport Costs,Home to School Transport,CROSS STREET RADIO CARS,SN1 ,08/03/2023,"4,350.00"
73729233,School Transport,"Education, Inclusion and Skills",Special Educational Needs Transport,Transport Costs,Home to School Transport,CROSS STREET RADIO CARS,SN1 ,08/03/2023,"1,560.00"
73730238,School Transport,"Education, Inclusion and Skills",Special Educational Needs Transport,Transport Costs,Home to School Transport,CROSS STREET RADIO CARS,SN1 ,08/03/2023,"1,350.00"
73730235,School Transport,"Education, Inclusion and Skills",Special Educational Needs Transport,Employees,Temporary / Agency - by Accounts Payable,CROSS STREET RADIO CARS,SN1 ,08/03/2023,870
73730237,School Transport,"Education, Inclusion and Skills",Special Educational Needs Transport,Employees,Temporary / Agency - by Accounts Payable,CROSS STREET RADIO CARS,SN1 ,08/03/2023,"2,660.00"
73726236,School Transport,"Education, Inclusion and Skills",Special Educational Needs Transport,Transport Costs,Home to School Transport,CROSS STREET RADIO CARS,SN1 ,08/03/2023,"2,970.00"
76735235,School Transport,"Education, Inclusion and Skills",Special Educational Needs Transport,Employees,Temporary / Agency - by Accounts Payable,CROSS STREET RADIO CARS,SN1 ,22/03/2023,725
76736234,School Transport,"Education, Inclusion and Skills",Special Educational Needs Transport,Employees,Temporary / Agency - by Accounts Payable,CROSS STREET RADIO CARS,SN1 ,22/03/2023,725
76738233,School Transport,"Education, Inclusion and Skills",Special Educational Needs Transport,Transport Costs,Home to School Transport,CROSS STREET RADIO CARS,SN1 ,22/03/2023,"2,310.00"
76740233,School Transport,"Education, Inclusion and Skills",Special Educational Needs Transport,Transport Costs,Home to School Transport,CROSS STREET RADIO CARS,SN1 ,22/03/2023,"3,960.00"
78217233,School Transport,"Education, Inclusion and Skills",Special Educational Needs Transport,Transport Costs,Home to School Transport,CROSS STREET RADIO CARS,SN1 ,29/03/2023,"5,800.00"
73730233,School Transport,"Education, Inclusion and Skills",Special Educational Needs Transport,Employees,Temporary / Agency - by Accounts Payable,CROSS STREET RADIO CARS,SN1 ,08/03/2023,"2,240.00"
74663233,High Needs Block,DSG Skills and Attainment,SEN Resourcing Assessment Panel,3rd Party Payments,Top up funding - Maintained providers Pre 16,CROWDYS HILL SCHOOL,SN2 ,13/03/2023,"137,153.56"
75739233,Schools Maintenance,Skills & Attainment,DFC Allocations to Schools,Capital,Grant Payments,CROWDYS HILL SCHOOL,SN2 ,15/03/2023,"30,942.64"
76044251,DSG Other Funding,DSG Skills and Attainment,DFE Additional Grants,3rd Party Payments,Payment of Pupil Premium to school,CROWDYS HILL SCHOOL,SN2 ,17/03/2023,"8,420.00"
74662233,High Needs Block,DSG Skills and Attainment,SEN Resourcing Assessment Panel,3rd Party Payments,Top up funding - Maintained providers Pre 16,CROWDYS HILL SCHOOL,SN2 ,13/03/2023,"41,529.35"
74667233,High Needs Block,DSG Skills and Attainment,SEN Resourcing Assessment Panel,3rd Party Payments,Top up funding - Maintained providers Post 16,CROWDYS HILL SCHOOL,SN2 ,13/03/2023,"49,699.25"
73053233,Physical Support,Adults,Physical Support 65 and over,3rd Party Payments,Personal Budget - Domiciliary care,CRYSTAL CARING LIMITED,SN2 ,03/03/2023,"1,315.84"
73054233,Physical Support,Adults,Physical Support 65 and over,3rd Party Payments,Personal Budget - Domiciliary care,CRYSTAL CARING LIMITED,SN2 ,03/03/2023,"2,590.56"
73055233,Physical Support,Adults,Physical Support 65 and over,3rd Party Payments,Personal Budget - Domiciliary care,CRYSTAL CARING LIMITED,SN2 ,03/03/2023,"1,570.88"
73055233,Care Management & Safeguarding,Adults,Adults Community Team - Initial Contact Team,3rd Party Payments,Personal Budget - Domiciliary care,CRYSTAL CARING LIMITED,SN2 ,03/03/2023,"1,225.28"
73056233,Physical Support,Adults,Physical Support 18 - 64,3rd Party Payments,Personal Budget - Domiciliary care,CRYSTAL CARING LIMITED,SN2 ,03/03/2023,"3,454.08"
72528238,Planned Maintenance Programme,HRA Capital Financing,Contingent Major Repairs,Capital,Contractor Payments,CRYSTAL ELECTRONICS LTD,NN6 ,01/03/2023,"6,679.76"
72534233,Planned Maintenance Programme,HRA Capital Financing,Contingent Major Repairs,Capital,Contractor Payments,CRYSTAL ELECTRONICS LTD,NN6 ,01/03/2023,"3,980.39"
73116233,Planned Maintenance Programme,HRA Capital Financing,Contingent Major Repairs,Capital,Contractor Payments,CRYSTAL ELECTRONICS LTD,NN6 ,03/03/2023,"3,406.17"
76828233,Planned Maintenance Programme,HRA Capital Financing,Contingent Major Repairs,Capital,Contractor Payments,CRYSTAL ELECTRONICS LTD,NN6 ,27/03/2023,"3,225.06"
76829233,Planned Maintenance Programme,HRA Capital Financing,Contingent Major Repairs,Capital,Contractor Payments,CRYSTAL ELECTRONICS LTD,NN6 ,27/03/2023,"12,125.94"
Corporate Card Transaction,Homelessness and Travellers,Housing Services,Warm Welcome Project,Supplies and Services,Discretionary Costs,Currys Online,,20/03/2023,619.17
73502233,Highways Schemes,Strategic Planning and Highways,School safe environment zones,Capital,Contractor Payments,CYCLEPODS LTD,TN16,06/03/2023,"1,325.00"
74285233,Highways Schemes,Strategic Planning and Highways,School safe environment zones,Capital,Contractor Payments,CYCLEPODS LTD,TN16,10/03/2023,"6,965.00"
78990233,Physical Support,Adults,Physical Support 18 - 64,Transfer Payments,Personal Budget - Direct Payments - Domiciliary Care,REDACTED PERSONAL DATA,SN25,31/03/2023,"3,356.42"
79007815,Physical Support,Adults,Physical Support 18 - 64,Transfer Payments,Personal Budget - Direct Payments - Domiciliary Care,REDACTED PERSONAL DATA,SP11,31/03/2023,"5,249.28"
74415233,Routes to Employment,"Education, Inclusion and Skills",Multiply,Supplies and Services,Materials,D'AMBROSIO CONSULTANTS LTD,BA3 ,10/03/2023,"1,000.00"
78960234,Physical Support,Adults,Physical Support 18 - 64,Transfer Payments,Personal Budget - Direct Payments - Domiciliary Care,REDACTED PERSONAL DATA,SN3 ,31/03/2023,"3,025.69"
79007448,Learning Disabilities,Adults,Learning Disability 18 - 64,Transfer Payments,Personal Budget - Direct Payments - Domiciliary Care,REDACTED PERSONAL DATA,SN2 ,31/03/2023,"1,622.12"
79007520,Learning Disabilities,Adults,Learning Disability 18 - 64,Transfer Payments,Personal Budget - Direct Payments - Domiciliary Care,REDACTED PERSONAL DATA,SN2 ,31/03/2023,"11,026.66"
76111233,Museums & Heritage,Culture & Heritage,Swindon Museum & Art Gallery,Supplies and Services,Hire / Rental,DAUPHIN ACRYLIC DESIGN LTD,OX9 ,17/03/2023,"2,742.09"
79007276,Physical Support,Adults,Physical Support 18 - 64,Transfer Payments,Personal Budget - Direct Payments - Domiciliary Care,REDACTED PERSONAL DATA,SN2 ,31/03/2023,684.38
79007422,Learning Disabilities,Adults,Learning Disability 18 - 64,Transfer Payments,Personal Budget - Direct Payments - Domiciliary Care,REDACTED PERSONAL DATA,SP11,31/03/2023,747.87
73396235,Education,"Education, Inclusion and Skills",Education Psychology Service,Employees,Training,DAVID WRIGHT PSYCHOLOGY SERVICES LTD,GL7 ,06/03/2023,"1,325.00"
74827361,Social Care,"Children, Families and Community Health Services",Placement Adoption Service,3rd Party Payments,Special Guardianship Orders,REDACTED PERSONAL DATA,B35 ,13/03/2023,676.96
77957233,Social Care,"Children, Families and Community Health Services",Placement Adoption Service,3rd Party Payments,Special Guardianship Orders,REDACTED PERSONAL DATA,B35 ,27/03/2023,676.96
73473233,Streetsmart,Streetsmart,Waterside Fleet Hires,Transport Costs,Vehicle Hire / Contract,DAWSONRENTLES SWEEPERS,HD6 ,08/03/2023,"2,954.77"
73471233,Streetsmart,Streetsmart,Waterside Fleet Hires,Transport Costs,Vehicle Hire / Contract,DAWSONRENTLES SWEEPERS,HD6 ,08/03/2023,"2,150.90"
73469233,Streetsmart,Streetsmart,Waterside Fleet Hires,Transport Costs,Vehicle Hire / Contract,DAWSONRENTLES SWEEPERS,HD6 ,08/03/2023,"2,867.86"
73470233,Streetsmart,Streetsmart,Waterside Fleet Hires,Transport Costs,Vehicle Hire / Contract,DAWSONRENTLES SWEEPERS,HD6 ,08/03/2023,"3,215.48"
73472233,Streetsmart,Streetsmart,Waterside Fleet Hires,Transport Costs,Vehicle Hire / Contract,DAWSONRENTLES SWEEPERS,HD6 ,08/03/2023,"2,954.77"
74840248,Social Care,"Children, Families and Community Health Services",Placement Fostering Service,3rd Party Payments,Foster Care Basic Payments,REDACTED PERSONAL DATA,SN5 ,13/03/2023,536
77831234,Social Care,"Children, Families and Community Health Services",Placement Fostering Service,3rd Party Payments,Carers Skills Payments - Advanced,REDACTED PERSONAL DATA,SN5 ,27/03/2023,370
74840248,Social Care,"Children, Families and Community Health Services",Placement Fostering Service,3rd Party Payments,Carers Skills Payments - Advanced,REDACTED PERSONAL DATA,SN5 ,13/03/2023,370
77831234,Social Care,"Children, Families and Community Health Services",Placement Fostering Service,3rd Party Payments,Foster Care Basic Payments,REDACTED PERSONAL DATA,SN5 ,27/03/2023,536
77831234,Social Care,"Children, Families and Community Health Services",Placement Fostering Service,3rd Party Payments,Foster Care Additional Allowance,REDACTED PERSONAL DATA,SN5 ,27/03/2023,100
74840248,Social Care,"Children, Families and Community Health Services",Placement Fostering Service,3rd Party Payments,Foster Care Additional Allowance,REDACTED PERSONAL DATA,SN5 ,13/03/2023,100
75458233,Early Years Block,DSG Skills and Attainment,Free Nursery Education Commissioning - three & four  year olds,3rd Party Payments,Contracts - Child Care,REDACTED PERSONAL DATA,SN5 ,15/03/2023,775.48
72764233,Early Help,Early Intervention & Prevention,"Holiday, Activities & Food Grant",3rd Party Payments,Contracts - Child Care,DELTA ACTIVITIES LTD,SN3 ,01/03/2023,"1,672.00"
76556233,Early Help,Early Intervention & Prevention,"Holiday, Activities & Food Grant",3rd Party Payments,Contracts - Child Care,DELTA ACTIVITIES LTD,SN3 ,22/03/2023,"1,746.00"
74869233,Elections & Democracy,Elections and Democracy,Local Elections,Supplies and Services,Services,"DEPARTMENT FOR LEVELLING UP, HOUSING & COMMUNITIES",NR7 ,13/03/2023,"6,345.31"
75794233,Learning Disabilities,Adults,Learning Disability 18 - 64,3rd Party Payments,Supported Accommodation Scheme,REDACTED PERSONAL DATA,SN2 ,22/03/2023,"2,362.71"
75794233,Learning Disabilities,Adults,Learning Disability 18 - 64,3rd Party Payments,Supported Accommodation Scheme,REDACTED PERSONAL DATA,SN2 ,22/03/2023,"1,974.53"
75794233,Learning Disabilities,Adults,Learning Disability 18 - 64,3rd Party Payments,Supported Accommodation Scheme,REDACTED PERSONAL DATA,SN2 ,22/03/2023,"1,557.32"
73683233,Local Transport Plan Funded,Strategic Planning and Highways,Street Lighting,Capital,Contractor Payments,DESIGNS FOR LIGHTING LTD,SO23,08/03/2023,745
73697234,Highways & Transport,Highways & Transport,Highways Management,Employees,Temporary / Agency - by Accounts Payable,DESIGNS FOR LIGHTING LTD,SO23,08/03/2023,"1,539.00"
78241233,Supported Employment,Housing Services,Enterprise Works,Supplies and Services,Repairs & Maintenance,DEXTEROUS DESIGNS LTD,TA1 ,29/03/2023,950
77880233,Social Care,"Children, Families and Community Health Services",Placement Adoption Service,3rd Party Payments,Adoption Allowances,REDACTED PERSONAL DATA,CF44,27/03/2023,500.34
74745234,Social Care,"Children, Families and Community Health Services",Placement Adoption Service,3rd Party Payments,Adoption Allowances,REDACTED PERSONAL DATA,CF44,13/03/2023,500.34
75672233,DSG Other Funding,DSG Skills and Attainment,LAC pupil premium,3rd Party Payments,Education / Training,DICTATE2US LIMITED,BL9 ,15/03/2023,946.1
78474233,Finance Team,Finance & Procurement Service,Financial Support,Supplies and Services,Equipment,DIGITAL HEARING CARE SOLUTIONS LIMITED,BD20,29/03/2023,"1,650.00"
74633234,High Needs Block,DSG Skills and Attainment,SEN Resourcing Assessment Panel,Supplies and Services,Services,REDACTED PERSONAL DATA,SN25,13/03/2023,"4,275.83"
76050344,Physical Support,Adults,Physical Support 65 and over,3rd Party Payments,Nursing Care,DIVA CARE LIMITED,GL7 ,17/03/2023,"3,246.44"
76050344,Physical Support,Adults,Physical Support 65 and over,Income,Client Contribution - Nursing,DIVA CARE LIMITED,GL7 ,17/03/2023,-268.72
72916233,Museums & Heritage,Culture & Heritage,Swindon Museum & Art Gallery,Supplies and Services,Hire / Rental,DIY FRAMING LTD,HP12,03/03/2023,"3,558.52"
74943233,Traded Services,"Education, Inclusion and Skills",Plas Pencelli Outdoor Education Centre,Supplies and Services,Equipment,DMM ---------------------------,LL55,15/03/2023,"2,275.09"
78968234,Physical Support,Adults,Physical Support 18 - 64,Transfer Payments,Personal Budget - Direct Payments - Domiciliary Care,REDACTED PERSONAL DATA,SP11,31/03/2023,"4,899.42"
74840254,Social Care,"Children, Families and Community Health Services",Placement Fostering Service,3rd Party Payments,Foster Care Basic Payments,REDACTED PERSONAL DATA,SN2 ,13/03/2023,352
77833233,Social Care,"Children, Families and Community Health Services",Placement Fostering Service,3rd Party Payments,Foster Care Additional Allowance,REDACTED PERSONAL DATA,SN2 ,27/03/2023,18
77833233,Social Care,"Children, Families and Community Health Services",Placement Fostering Service,3rd Party Payments,Carers Skills Payments - Core,REDACTED PERSONAL DATA,SN2 ,27/03/2023,216
77833233,Social Care,"Children, Families and Community Health Services",Placement Fostering Service,3rd Party Payments,Birthday Payment,REDACTED PERSONAL DATA,SN2 ,27/03/2023,176
74840254,Social Care,"Children, Families and Community Health Services",Placement Fostering Service,3rd Party Payments,Carers Skills Payments - Core,REDACTED PERSONAL DATA,SN2 ,13/03/2023,216
77833233,Social Care,"Children, Families and Community Health Services",Placement Fostering Service,3rd Party Payments,Foster Care Basic Payments,REDACTED PERSONAL DATA,SN2 ,27/03/2023,352
77833233,Social Care,"Children, Families and Community Health Services",Placement Fostering Service,3rd Party Payments,Holiday Payment,REDACTED PERSONAL DATA,SN2 ,27/03/2023,352
74840254,Social Care,"Children, Families and Community Health Services",Placement Fostering Service,3rd Party Payments,Foster Care Additional Allowance,REDACTED PERSONAL DATA,SN2 ,13/03/2023,18
77645244,High Needs Block,DSG Skills and Attainment,SEN Resourcing Assessment Panel,3rd Party Payments,Top up funding - Academies and Free Schools Pre 16,DORCAN ACADEMY,SN3 ,27/03/2023,"2,312.92"
74705233,High Needs Block,DSG Skills and Attainment,SEN Resourcing Assessment Panel,3rd Party Payments,Top up funding - Academies and Free Schools Pre 16,DORCAN ACADEMY,SN3 ,13/03/2023,"4,234.60"
78472233,Mainstream Schools Extension,Skills & Attainment,Dorcan Academy PAN,Capital,Contractor Payments,DORCAN ACADEMY,SN3 ,29/03/2023,"142,105.90"
78930236,Physical Support,Adults,Physical Support 18 - 64,Transfer Payments,Personal Budget - Direct Payments - Domiciliary Care,REDACTED PERSONAL DATA,SP11,31/03/2023,"1,674.91"
74583233,Organisational Resilience,"People, Culture and Organisational Resilience",Emergency Planning,Supplies and Services,Equipment,DORSET & WILTSHIRE FIRE & RESCUE SERVICE,SP1 ,10/03/2023,"-1,223.37"
74582233,Organisational Resilience,"People, Culture and Organisational Resilience",Emergency Planning,Supplies and Services,Equipment,DORSET & WILTSHIRE FIRE & RESCUE SERVICE,SP1 ,10/03/2023,"2,854.53"
77630378,Homelessness and Travellers,Housing Services,Leased Private Managed Accommodation,Transfer Payments,Payment of Costs,REDACTED PERSONAL DATA,SN6 ,24/03/2023,725
77630352,Homelessness and Travellers,Housing Services,Leased Private Managed Accommodation,Transfer Payments,Payment of Costs,REDACTED PERSONAL DATA,SN6 ,24/03/2023,725
76324233,Highways & Transport,Highways & Transport,Traffic Management & Road Safety,3rd Party Payments,Contract Payments,DRAKEWELL LTD,MK18,20/03/2023,"2,250.00"
76557233,Early Help,Early Intervention & Prevention,"Holiday, Activities & Food Grant",3rd Party Payments,Contracts - Child Care,DRAYCOTT SPORTS CAMP,SN25,22/03/2023,"3,330.00"
72744233,Early Help,Early Intervention & Prevention,"Holiday, Activities & Food Grant",3rd Party Payments,Contracts - Child Care,DRAYCOTT SPORTS CAMP,SN25,01/03/2023,"4,948.00"
Corporate Card Transaction,ASC Finance Services Teams,ASC Finance Services,ASC Money Management Team,Supplies and Services,Services,Dreams Ltd,,07/03/2023,"1,109.00"
Corporate Card Transaction,ASC Finance Services Teams,ASC Finance Services,ASC Money Management Team,Supplies and Services,Services,Dreams Ltd,,07/03/2023,953
73791233,Education,"Education, Inclusion and Skills",Education Psychology Service,Employees,Training,DRMARY,BS49,08/03/2023,"1,325.00"
78384233,Sheltered Accomodation,Special Services,Sheltered Housing Management General,Premises Costs,Contract Cleaning,DRPK CONTRACTS LTD,BT30,29/03/2023,"1,234.45"
78384233,Sheltered Accomodation,Special Services,Sheltered Housing Management General,Premises Costs,Contract Cleaning,DRPK CONTRACTS LTD,BT30,29/03/2023,529.05
76050341,Physical Support,Adults,Physical Support 18 - 64,3rd Party Payments,Nursing Care,DRUMMOND GRANGE NURSING HOME,EH18,17/03/2023,"6,603.00"
75769233,Learning Disabilities,Adults,Learning Disability 18 - 64,3rd Party Payments,Supported Accommodation Scheme,REDACTED PERSONAL DATA,SN25,22/03/2023,"2,426.63"
72650234,Traded Services,"Education, Inclusion and Skills",Plas Pencelli Outdoor Education Centre,Premises Costs,Water,DWR CYMRU WELSH WATER,CF3 ,01/03/2023,"1,703.08"
77875233,NEV,"Economy, Growth and Place",Gablecross Junction,Capital,Contractor Payments,DYER & BUTLER LTD,SO16,27/03/2023,"42,813.35"
76050338,Learning Disabilities,Adults,Learning Disability 18 - 64,Income,Client Contribution - Supported Living,DYNAMIC SUPPORT LTD,SN25,17/03/2023,-112
76050338,Learning Disabilities,Adults,Learning Disability 18 - 64,Income,Client Contribution - Supported Living,DYNAMIC SUPPORT LTD,SN25,17/03/2023,-336.48
76050338,Learning Disabilities,Adults,Learning Disability 18 - 64,Income,Client Contribution - Supported Living,DYNAMIC SUPPORT LTD,SN25,17/03/2023,-9.21
76050338,Learning Disabilities,Adults,Learning Disability 18 - 64,3rd Party Payments,Supported Lodgings (Childrens)/Supported Living (Adults),DYNAMIC SUPPORT LTD,SN25,17/03/2023,"5,646.92"
76050338,Learning Disabilities,Adults,Learning Disability 18 - 64,3rd Party Payments,Supported Lodgings (Childrens)/Supported Living (Adults),DYNAMIC SUPPORT LTD,SN25,17/03/2023,142.96
76050338,Learning Disabilities,Adults,Learning Disability 18 - 64,3rd Party Payments,Supported Lodgings (Childrens)/Supported Living (Adults),DYNAMIC SUPPORT LTD,SN25,17/03/2023,"3,132.76"
76050338,Learning Disabilities,Adults,Learning Disability 18 - 64,3rd Party Payments,Supported Lodgings (Childrens)/Supported Living (Adults),DYNAMIC SUPPORT LTD,SN25,17/03/2023,428.88
76050338,Learning Disabilities,Adults,Learning Disability 18 - 64,3rd Party Payments,Supported Lodgings (Childrens)/Supported Living (Adults),DYNAMIC SUPPORT LTD,SN25,17/03/2023,"1,572.56"
76050338,Learning Disabilities,Adults,Learning Disability 18 - 64,3rd Party Payments,Supported Lodgings (Childrens)/Supported Living (Adults),DYNAMIC SUPPORT LTD,SN25,17/03/2023,"2,501.80"
76050338,Learning Disabilities,Adults,Learning Disability 18 - 64,3rd Party Payments,Supported Lodgings (Childrens)/Supported Living (Adults),DYNAMIC SUPPORT LTD,SN25,17/03/2023,"1,536.84"
76050338,Learning Disabilities,Adults,Learning Disability 18 - 64,3rd Party Payments,Supported Lodgings (Childrens)/Supported Living (Adults),DYNAMIC SUPPORT LTD,SN25,17/03/2023,"2,358.84"
76050338,Learning Disabilities,Adults,Learning Disability 18 - 64,3rd Party Payments,Supported Lodgings (Childrens)/Supported Living (Adults),DYNAMIC SUPPORT LTD,SN25,17/03/2023,536.12
73068237,Learning Disabilities,Adults,Learning Disability 18 - 64,3rd Party Payments,Personal Budget - Domiciliary care,DYNAMIC SUPPORT LTD,SN25,03/03/2023,632.96
76050338,Physical Support,Adults,Physical Support 18 - 64,3rd Party Payments,Supported Lodgings (Childrens)/Supported Living (Adults),DYNAMIC SUPPORT LTD,SN25,17/03/2023,"2,685.48"
76050338,Physical Support,Adults,Physical Support 65 and over,3rd Party Payments,Supported Lodgings (Childrens)/Supported Living (Adults),DYNAMIC SUPPORT LTD,SN25,17/03/2023,"4,475.52"
73724264,Physical Support,Adults,Physical Support 65 and over,3rd Party Payments,Personal Budget - Domiciliary care,DYNAMIC SUPPORT LTD,SN25,08/03/2023,"6,800.64"
76050338,Learning Disabilities,Adults,Learning Disability 18 - 64,3rd Party Payments,Supported Lodgings (Childrens)/Supported Living (Adults),DYNAMIC SUPPORT LTD,SN25,17/03/2023,"1,342.76"
76050338,Learning Disabilities,Adults,Learning Disability 18 - 64,3rd Party Payments,Supported Lodgings (Childrens)/Supported Living (Adults),DYNAMIC SUPPORT LTD,SN25,17/03/2023,"6,280.64"
76050338,Learning Disabilities,Adults,Learning Disability 18 - 64,3rd Party Payments,Supported Lodgings (Childrens)/Supported Living (Adults),DYNAMIC SUPPORT LTD,SN25,17/03/2023,"-3,644.58"
76050338,Learning Disabilities,Adults,Learning Disability 18 - 64,3rd Party Payments,Supported Lodgings (Childrens)/Supported Living (Adults),DYNAMIC SUPPORT LTD,SN25,17/03/2023,"1,572.48"
76050338,Learning Disabilities,Adults,Learning Disability 18 - 64,3rd Party Payments,Supported Lodgings (Childrens)/Supported Living (Adults),DYNAMIC SUPPORT LTD,SN25,17/03/2023,641.6
76050338,Learning Disabilities,Adults,Learning Disability 18 - 64,3rd Party Payments,Supported Lodgings (Childrens)/Supported Living (Adults),DYNAMIC SUPPORT LTD,SN25,17/03/2023,"6,504.68"
76050338,Learning Disabilities,Adults,Learning Disability 18 - 64,3rd Party Payments,Supported Lodgings (Childrens)/Supported Living (Adults),DYNAMIC SUPPORT LTD,SN25,17/03/2023,"6,433.20"
76050338,Physical Support,Adults,Physical Support 18 - 64,3rd Party Payments,Supported Lodgings (Childrens)/Supported Living (Adults),DYNAMIC SUPPORT LTD,SN25,17/03/2023,"-1,598.40"
73724263,Physical Support,Adults,Physical Support 65 and over,3rd Party Payments,Personal Budget - Domiciliary care,DYNAMIC SUPPORT LTD,SN25,08/03/2023,"13,601.28"
76050338,Learning Disabilities,Adults,Learning Disability 18 - 64,Income,Client Contribution - Supported Living,DYNAMIC SUPPORT LTD,SN25,17/03/2023,-18.12
76050338,Learning Disabilities,Adults,Learning Disability 18 - 64,3rd Party Payments,Supported Lodgings (Childrens)/Supported Living (Adults),DYNAMIC SUPPORT LTD,SN25,17/03/2023,"7,505.40"
76050338,Learning Disabilities,Adults,Learning Disability 18 - 64,3rd Party Payments,Supported Lodgings (Childrens)/Supported Living (Adults),DYNAMIC SUPPORT LTD,SN25,17/03/2023,123.4
76050338,Learning Disabilities,Adults,Learning Disability 18 - 64,3rd Party Payments,Supported Lodgings (Childrens)/Supported Living (Adults),DYNAMIC SUPPORT LTD,SN25,17/03/2023,"3,145.12"
76050338,Learning Disabilities,Adults,Learning Disability 18 - 64,3rd Party Payments,Supported Lodgings (Childrens)/Supported Living (Adults),DYNAMIC SUPPORT LTD,SN25,17/03/2023,"1,390.40"
76050338,Mental Health,Adults,Mental Health 18-64,3rd Party Payments,Supported Lodgings (Childrens)/Supported Living (Adults),DYNAMIC SUPPORT LTD,SN25,17/03/2023,"7,505.40"
76050338,Mental Health,Adults,Mental Health 18-64,3rd Party Payments,Supported Lodgings (Childrens)/Supported Living (Adults),DYNAMIC SUPPORT LTD,SN25,17/03/2023,"-6,251.52"
76050338,Learning Disabilities,Adults,Learning Disability 18 - 64,3rd Party Payments,Supported Lodgings (Childrens)/Supported Living (Adults),DYNAMIC SUPPORT LTD,SN25,17/03/2023,"-3,460.17"
76050338,Learning Disabilities,Adults,Learning Disability 18 - 64,3rd Party Payments,Supported Lodgings (Childrens)/Supported Living (Adults),DYNAMIC SUPPORT LTD,SN25,17/03/2023,-168.8
76050338,Learning Disabilities,Adults,Learning Disability 18 - 64,3rd Party Payments,Supported Lodgings (Childrens)/Supported Living (Adults),DYNAMIC SUPPORT LTD,SN25,17/03/2023,"1,858.48"
76050338,Learning Disabilities,Adults,Learning Disability 18 - 64,3rd Party Payments,Supported Lodgings (Childrens)/Supported Living (Adults),DYNAMIC SUPPORT LTD,SN25,17/03/2023,"1,072.00"
76050338,Learning Disabilities,Adults,Learning Disability 65 and over,3rd Party Payments,Supported Lodgings (Childrens)/Supported Living (Adults),DYNAMIC SUPPORT LTD,SN25,17/03/2023,"3,502.52"
76050338,Physical Support,Adults,Physical Support 18 - 64,3rd Party Payments,Supported Lodgings (Childrens)/Supported Living (Adults),DYNAMIC SUPPORT LTD,SN25,17/03/2023,"-2,680.50"
76050338,Learning Disabilities,Adults,Learning Disability 18 - 64,Income,Client Contribution - Supported Living,DYNAMIC SUPPORT LTD,SN25,17/03/2023,-21.51
76050338,Learning Disabilities,Adults,Learning Disability 18 - 64,3rd Party Payments,Supported Lodgings (Childrens)/Supported Living (Adults),DYNAMIC SUPPORT LTD,SN25,17/03/2023,"7,219.48"
76050338,Learning Disabilities,Adults,Learning Disability 18 - 64,3rd Party Payments,Supported Lodgings (Childrens)/Supported Living (Adults),DYNAMIC SUPPORT LTD,SN25,17/03/2023,267.32
76050338,Learning Disabilities,Adults,Learning Disability 18 - 64,3rd Party Payments,Supported Lodgings (Childrens)/Supported Living (Adults),DYNAMIC SUPPORT LTD,SN25,17/03/2023,"6,849.68"
76050338,Physical Support,Adults,Physical Support 18 - 64,3rd Party Payments,Supported Lodgings (Childrens)/Supported Living (Adults),DYNAMIC SUPPORT LTD,SN25,17/03/2023,"7,505.40"
76050338,Learning Disabilities,Adults,Learning Disability 18 - 64,Income,Client Contribution - Supported Living,DYNAMIC SUPPORT LTD,SN25,17/03/2023,-440.6
76050338,Learning Disabilities,Adults,Learning Disability 18 - 64,3rd Party Payments,Supported Lodgings (Childrens)/Supported Living (Adults),DYNAMIC SUPPORT LTD,SN25,17/03/2023,"4,475.52"
76050338,Learning Disabilities,Adults,Learning Disability 18 - 64,3rd Party Payments,Supported Lodgings (Childrens)/Supported Living (Adults),DYNAMIC SUPPORT LTD,SN25,17/03/2023,"-2,076.90"
76050338,Learning Disabilities,Adults,Learning Disability 18 - 64,3rd Party Payments,Supported Lodgings (Childrens)/Supported Living (Adults),DYNAMIC SUPPORT LTD,SN25,17/03/2023,671.36
76050338,Learning Disabilities,Adults,Learning Disability 18 - 64,3rd Party Payments,Supported Lodgings (Childrens)/Supported Living (Adults),DYNAMIC SUPPORT LTD,SN25,17/03/2023,"2,787.72"
76050338,Learning Disabilities,Adults,Learning Disability 18 - 64,3rd Party Payments,Supported Lodgings (Childrens)/Supported Living (Adults),DYNAMIC SUPPORT LTD,SN25,17/03/2023,"3,788.44"
76050338,Learning Disabilities,Adults,Learning Disability 65 and over,3rd Party Payments,Supported Lodgings (Childrens)/Supported Living (Adults),DYNAMIC SUPPORT LTD,SN25,17/03/2023,"2,685.48"
76050338,Physical Support,Adults,Physical Support 18 - 64,3rd Party Payments,Supported Lodgings (Childrens)/Supported Living (Adults),DYNAMIC SUPPORT LTD,SN25,17/03/2023,959.1
76050338,Physical Support,Adults,Physical Support 18 - 64,3rd Party Payments,Supported Lodgings (Childrens)/Supported Living (Adults),DYNAMIC SUPPORT LTD,SN25,17/03/2023,"2,680.50"
76050338,Learning Disabilities,Adults,Learning Disability 18 - 64,3rd Party Payments,Supported Lodgings (Childrens)/Supported Living (Adults),DYNAMIC SUPPORT LTD,SN25,17/03/2023,"4,688.64"
76050338,Learning Disabilities,Adults,Learning Disability 18 - 64,3rd Party Payments,Supported Lodgings (Childrens)/Supported Living (Adults),DYNAMIC SUPPORT LTD,SN25,17/03/2023,865.8
76050338,Learning Disabilities,Adults,Learning Disability 18 - 64,3rd Party Payments,Supported Lodgings (Childrens)/Supported Living (Adults),DYNAMIC SUPPORT LTD,SN25,17/03/2023,"2,685.48"
76050338,Physical Support,Adults,Physical Support 65 and over,3rd Party Payments,Supported Lodgings (Childrens)/Supported Living (Adults),DYNAMIC SUPPORT LTD,SN25,17/03/2023,"7,505.40"
76050338,Mental Health,Adults,Mental Health 18-64,3rd Party Payments,Supported Lodgings (Childrens)/Supported Living (Adults),DYNAMIC SUPPORT LTD,SN25,17/03/2023,"1,342.76"
74449233,Care Management & Safeguarding,Adults,Mental Capacity & DOL,3rd Party Payments,Contracts - Social Care,DYSLEXIA BOX LIMITED,CB4 ,10/03/2023,"1,081.98"
73548233,Human Resources and Organisational Development,"People, Culture and Organisational Resilience",Organisational Development,Employees,Training,DYSPHAGIA COURSE LIMITED,WA4 ,06/03/2023,747.5
73788233,Property Management,Property,Property Assets,Supplies and Services,Fees,E P STEVENS ASSOCIATES,SN14,08/03/2023,750
74418233,Town Centre,"Economy, Growth and Place","No 7, 9 & 11 Carriage works @ Railway Village",Capital,Contractor Payments,E W BEARD LTD,SN3 ,10/03/2023,"200,795.90"
79115233,"Data, Performance and Insight",Digital & Business Change,"Performance, Intelligence and Insight",Supplies and Services,Services,EAST SUSSEX COUNTY COUNCIL,BN7 ,31/03/2023,750
76044243,DSG Other Funding,DSG Skills and Attainment,DFE Additional Grants,3rd Party Payments,Payment of Pupil Premium to school,EAST WICHEL COMMUNITY PRIMARY SCHOOL,SN1 ,17/03/2023,"7,111.00"
75462233,Early Years Block,DSG Skills and Attainment,Free Nursery Education Commissioning - three & four  year olds,3rd Party Payments,Contracts - Child Care,EAST WICHEL COMMUNITY PRIMARY SCHOOL,SN1 ,15/03/2023,"12,046.31"
